﻿Body Name,Body,Service Area Categorisation,Service Division Categorisation,Responsible Unit,Expenses Type,Detailed Expenses Type,Payment Date,Transaction Number,Payment Amount,Supplier Type,Supplier Name,Supplier Id
Portsmouth City Council,PCC,Children's and Education Services,Children Looked After,Children's Services and Education,Third Party Payments,Other establishments,03-Sep-21,6526523,"-1,490.00",SUPPLIER,ISWP SUPPORT SERVICES LTD,300000020472942
Portsmouth City Council,PCC,Children's and Education Services,Children Looked After,Children's Services and Education,Third Party Payments,Other establishments,03-Sep-21,6526523,-191.43,SUPPLIER,ISWP SUPPORT SERVICES LTD,300000020472942
Portsmouth City Council,PCC,Children's and Education Services,Children Looked After,Children's Services and Education,Third Party Payments,Other establishments,03-Sep-21,6526523,"-1,229.11",SUPPLIER,ISWP SUPPORT SERVICES LTD,300000020472942
Portsmouth City Council,PCC,Housing Revenue Account,"Rents, Rates, Taxes and Other Charges","Housing, Neighbourhood and Building Services",Premises-Related Expenditure,Rates,28-Sep-21,6530572,124,OTHER LOCAL AUTHORITY,HAVANT BOROUGH COUNCIL,300000020457057
Portsmouth City Council,PCC,Housing Revenue Account,"Rents, Rates, Taxes and Other Charges","Housing, Neighbourhood and Building Services",Premises-Related Expenditure,Rates,28-Sep-21,6530572,124,OTHER LOCAL AUTHORITY,HAVANT BOROUGH COUNCIL,300000020457057
Portsmouth City Council,PCC,Housing Revenue Account,"Rents, Rates, Taxes and Other Charges","Housing, Neighbourhood and Building Services",Premises-Related Expenditure,Rates,28-Sep-21,6530572,124,OTHER LOCAL AUTHORITY,HAVANT BOROUGH COUNCIL,300000020457057
Portsmouth City Council,PCC,Housing Revenue Account,"Rents, Rates, Taxes and Other Charges","Housing, Neighbourhood and Building Services",Premises-Related Expenditure,Rates,28-Sep-21,6530572,124,OTHER LOCAL AUTHORITY,HAVANT BOROUGH COUNCIL,300000020457057
Portsmouth City Council,PCC,Housing Revenue Account,"Rents, Rates, Taxes and Other Charges","Housing, Neighbourhood and Building Services",Premises-Related Expenditure,Rates,28-Sep-21,6530572,124,OTHER LOCAL AUTHORITY,HAVANT BOROUGH COUNCIL,300000020457057
Portsmouth City Council,PCC,Housing Revenue Account,"Rents, Rates, Taxes and Other Charges","Housing, Neighbourhood and Building Services",Premises-Related Expenditure,Rates,28-Sep-21,6530572,124,OTHER LOCAL AUTHORITY,HAVANT BOROUGH COUNCIL,300000020457057
Portsmouth City Council,PCC,Housing Revenue Account,"Rents, Rates, Taxes and Other Charges","Housing, Neighbourhood and Building Services",Premises-Related Expenditure,Rates,28-Sep-21,6530572,124,OTHER LOCAL AUTHORITY,HAVANT BOROUGH COUNCIL,300000020457057
Portsmouth City Council,PCC,Housing Revenue Account,"Rents, Rates, Taxes and Other Charges","Housing, Neighbourhood and Building Services",Premises-Related Expenditure,Rates,28-Sep-21,6530572,124,OTHER LOCAL AUTHORITY,HAVANT BOROUGH COUNCIL,300000020457057
Portsmouth City Council,PCC,Housing Revenue Account,"Rents, Rates, Taxes and Other Charges","Housing, Neighbourhood and Building Services",Premises-Related Expenditure,Rates,28-Sep-21,6530572,-124,OTHER LOCAL AUTHORITY,HAVANT BOROUGH COUNCIL,300000020457057
Portsmouth City Council,PCC,Housing Revenue Account,"Rents, Rates, Taxes and Other Charges","Housing, Neighbourhood and Building Services",Premises-Related Expenditure,Rates,28-Sep-21,6530572,124,OTHER LOCAL AUTHORITY,HAVANT BOROUGH COUNCIL,300000020457057
Portsmouth City Council,PCC,Housing Revenue Account,"Rents, Rates, Taxes and Other Charges","Housing, Neighbourhood and Building Services",Premises-Related Expenditure,Rates,28-Sep-21,6530572,248,OTHER LOCAL AUTHORITY,HAVANT BOROUGH COUNCIL,300000020457057
Portsmouth City Council,PCC,Housing Revenue Account,"Rents, Rates, Taxes and Other Charges","Housing, Neighbourhood and Building Services",Premises-Related Expenditure,Rates,28-Sep-21,6530572,76,OTHER LOCAL AUTHORITY,HAVANT BOROUGH COUNCIL,300000020457057
Portsmouth City Council,PCC,Housing Revenue Account,"Rents, Rates, Taxes and Other Charges","Housing, Neighbourhood and Building Services",Premises-Related Expenditure,Rates,28-Sep-21,6530572,124,OTHER LOCAL AUTHORITY,HAVANT BOROUGH COUNCIL,300000020457057
Portsmouth City Council,PCC,Housing Revenue Account,"Rents, Rates, Taxes and Other Charges","Housing, Neighbourhood and Building Services",Premises-Related Expenditure,Rates,28-Sep-21,6530572,124,OTHER LOCAL AUTHORITY,HAVANT BOROUGH COUNCIL,300000020457057
Portsmouth City Council,PCC,Housing Revenue Account,"Rents, Rates, Taxes and Other Charges","Housing, Neighbourhood and Building Services",Premises-Related Expenditure,Rates,28-Sep-21,6530572,124,OTHER LOCAL AUTHORITY,HAVANT BOROUGH COUNCIL,300000020457057
Portsmouth City Council,PCC,Housing Revenue Account,"Rents, Rates, Taxes and Other Charges","Housing, Neighbourhood and Building Services",Premises-Related Expenditure,Rates,28-Sep-21,6530572,124,OTHER LOCAL AUTHORITY,HAVANT BOROUGH COUNCIL,300000020457057
Portsmouth City Council,PCC,Housing Revenue Account,Special Services,"Housing, Neighbourhood and Building Services",Premises-Related Expenditure,Rates,28-Sep-21,6530572,394,OTHER LOCAL AUTHORITY,HAVANT BOROUGH COUNCIL,300000020457057
Portsmouth City Council,PCC,Housing Revenue Account,"Rents, Rates, Taxes and Other Charges","Housing, Neighbourhood and Building Services",Premises-Related Expenditure,Rates,24-Sep-21,6530242,124,OTHER LOCAL AUTHORITY,HAVANT BOROUGH COUNCIL,300000020457057
Portsmouth City Council,PCC,Housing Revenue Account,Supervision and Management,"Housing, Neighbourhood and Building Services",Premises-Related Expenditure,Rates,28-Sep-21,6530572,"3,174.00",OTHER LOCAL AUTHORITY,HAVANT BOROUGH COUNCIL,300000020457057
Portsmouth City Council,PCC,Housing Revenue Account,Supervision and Management,"Housing, Neighbourhood and Building Services",Premises-Related Expenditure,Rates,28-Sep-21,6530572,"1,198.00",OTHER LOCAL AUTHORITY,HAVANT BOROUGH COUNCIL,300000020457057
Portsmouth City Council,PCC,Housing Revenue Account,"Rents, Rates, Taxes and Other Charges","Housing, Neighbourhood and Building Services",Premises-Related Expenditure,Rates,24-Sep-21,6530242,120,OTHER LOCAL AUTHORITY,HAVANT BOROUGH COUNCIL,300000020457057
Portsmouth City Council,PCC,Housing Revenue Account,Special Services,"Housing, Neighbourhood and Building Services",Premises-Related Expenditure,Rates,28-Sep-21,6530572,254,OTHER LOCAL AUTHORITY,HAVANT BOROUGH COUNCIL,300000020457057
Portsmouth City Council,PCC,Housing Revenue Account,Special Services,"Housing, Neighbourhood and Building Services",Premises-Related Expenditure,Rates,24-Sep-21,6530242,182,OTHER LOCAL AUTHORITY,HAVANT BOROUGH COUNCIL,300000020457057
Portsmouth City Council,PCC,Costs below Net Cost of Services,Trading,Regeneration,Premises-Related Expenditure,Rates,10-Sep-21,6527731,137,SUPPLIER,MANCHESTER CITY COUNCIL,300000112662644
Portsmouth City Council,PCC,Costs below Net Cost of Services,Trading,Regeneration,Premises-Related Expenditure,Rates,10-Sep-21,6527731,137,SUPPLIER,MANCHESTER CITY COUNCIL,300000112662644
Portsmouth City Council,PCC,Costs below Net Cost of Services,Trading,Regeneration,Premises-Related Expenditure,Rates,10-Sep-21,6527731,137,SUPPLIER,MANCHESTER CITY COUNCIL,300000112662644
Portsmouth City Council,PCC,Costs below Net Cost of Services,Trading,Regeneration,Premises-Related Expenditure,Rates,10-Sep-21,6527731,274,SUPPLIER,MANCHESTER CITY COUNCIL,300000112662644
Portsmouth City Council,PCC,Housing Revenue Account,"Rents, Rates, Taxes and Other Charges","Housing, Neighbourhood and Building Services",Premises-Related Expenditure,Rates,24-Sep-21,6530242,119,OTHER LOCAL AUTHORITY,HAVANT BOROUGH COUNCIL,300000020457057
Portsmouth City Council,PCC,Costs below Net Cost of Services,Trading,Regeneration,Premises-Related Expenditure,Rates,10-Sep-21,6527731,409,SUPPLIER,MANCHESTER CITY COUNCIL,300000112662644
Portsmouth City Council,PCC,Housing Revenue Account,"Rents, Rates, Taxes and Other Charges","Housing, Neighbourhood and Building Services",Premises-Related Expenditure,Rates,24-Sep-21,6530242,124,OTHER LOCAL AUTHORITY,HAVANT BOROUGH COUNCIL,300000020457057
Portsmouth City Council,PCC,Housing Revenue Account,"Rents, Rates, Taxes and Other Charges","Housing, Neighbourhood and Building Services",Premises-Related Expenditure,Rates,24-Sep-21,6530242,228,OTHER LOCAL AUTHORITY,HAVANT BOROUGH COUNCIL,300000020457057
Portsmouth City Council,PCC,Housing Revenue Account,"Rents, Rates, Taxes and Other Charges","Housing, Neighbourhood and Building Services",Premises-Related Expenditure,Rates,24-Sep-21,6530242,113,OTHER LOCAL AUTHORITY,HAVANT BOROUGH COUNCIL,300000020457057
Portsmouth City Council,PCC,Housing Revenue Account,"Rents, Rates, Taxes and Other Charges","Housing, Neighbourhood and Building Services",Premises-Related Expenditure,Rates,24-Sep-21,6530242,121,OTHER LOCAL AUTHORITY,HAVANT BOROUGH COUNCIL,300000020457057
Portsmouth City Council,PCC,Housing Revenue Account,"Rents, Rates, Taxes and Other Charges","Housing, Neighbourhood and Building Services",Premises-Related Expenditure,Rates,24-Sep-21,6530242,124,OTHER LOCAL AUTHORITY,HAVANT BOROUGH COUNCIL,300000020457057
Portsmouth City Council,PCC,Housing Revenue Account,Special Services,"Housing, Neighbourhood and Building Services",Premises-Related Expenditure,Rates,24-Sep-21,6530242,52,OTHER LOCAL AUTHORITY,HAVANT BOROUGH COUNCIL,300000020457057
Portsmouth City Council,PCC,Housing Revenue Account,"Rents, Rates, Taxes and Other Charges","Housing, Neighbourhood and Building Services",Premises-Related Expenditure,Rates,24-Sep-21,6530242,124,OTHER LOCAL AUTHORITY,HAVANT BOROUGH COUNCIL,300000020457057
Portsmouth City Council,PCC,Housing Revenue Account,"Rents, Rates, Taxes and Other Charges","Housing, Neighbourhood and Building Services",Premises-Related Expenditure,Rates,24-Sep-21,6530242,120,OTHER LOCAL AUTHORITY,HAVANT BOROUGH COUNCIL,300000020457057
Portsmouth City Council,PCC,Housing Revenue Account,"Rents, Rates, Taxes and Other Charges","Housing, Neighbourhood and Building Services",Premises-Related Expenditure,Rates,24-Sep-21,6530242,126,OTHER LOCAL AUTHORITY,HAVANT BOROUGH COUNCIL,300000020457057
Portsmouth City Council,PCC,Housing Revenue Account,"Rents, Rates, Taxes and Other Charges","Housing, Neighbourhood and Building Services",Premises-Related Expenditure,Rates,24-Sep-21,6530242,128,OTHER LOCAL AUTHORITY,HAVANT BOROUGH COUNCIL,300000020457057
Portsmouth City Council,PCC,Housing Revenue Account,"Rents, Rates, Taxes and Other Charges","Housing, Neighbourhood and Building Services",Premises-Related Expenditure,Rates,24-Sep-21,6530242,124,OTHER LOCAL AUTHORITY,HAVANT BOROUGH COUNCIL,300000020457057
Portsmouth City Council,PCC,Housing Revenue Account,"Rents, Rates, Taxes and Other Charges","Housing, Neighbourhood and Building Services",Premises-Related Expenditure,Rates,24-Sep-21,6530242,110,OTHER LOCAL AUTHORITY,HAVANT BOROUGH COUNCIL,300000020457057
Portsmouth City Council,PCC,Housing Services,Homelessness,"Housing, Neighbourhood and Building Services",Premises-Related Expenditure,Rents,24-Sep-21,6530243,"1,650.00",SOLETRADER,Classified as 'personal data' (under the Data Protection Act 2018),300000020478633
Portsmouth City Council,PCC,Housing Services,Homelessness,"Housing, Neighbourhood and Building Services",Premises-Related Expenditure,Rents,24-Sep-21,6530234,"2,730.00",SOLETRADER,Classified as 'personal data' (under the Data Protection Act 2018),300000020482994
Portsmouth City Council,PCC,Housing Services,Homelessness,"Housing, Neighbourhood and Building Services",Premises-Related Expenditure,Rents,28-Sep-21,6530556,"2,625.00",SOLETRADER,Classified as 'personal data' (under the Data Protection Act 2018),300000020470862
Portsmouth City Council,PCC,Housing Services,Homelessness,"Housing, Neighbourhood and Building Services",Premises-Related Expenditure,Rents,28-Sep-21,6530556,"2,625.00",SOLETRADER,Classified as 'personal data' (under the Data Protection Act 2018),300000020470862
Portsmouth City Council,PCC,Housing Services,Homelessness,"Housing, Neighbourhood and Building Services",Premises-Related Expenditure,Rents,24-Sep-21,6530255,"1,830.00",SOLETRADER,Classified as 'personal data' (under the Data Protection Act 2018),300000020482847
Portsmouth City Council,PCC,Housing Services,Homelessness,"Housing, Neighbourhood and Building Services",Premises-Related Expenditure,Rents,24-Sep-21,6530238,"3,000.00",SOLETRADER,Classified as 'personal data' (under the Data Protection Act 2018),300000020457106
Portsmouth City Council,PCC,Housing Services,Homelessness,"Housing, Neighbourhood and Building Services",Premises-Related Expenditure,Rents,24-Sep-21,6530296,"1,950.00",SOLETRADER,Classified as 'personal data' (under the Data Protection Act 2018),300000020464746
Portsmouth City Council,PCC,Housing Services,Homelessness,"Housing, Neighbourhood and Building Services",Premises-Related Expenditure,Rents,28-Sep-21,6530563,"2,520.00",SOLETRADER,Classified as 'personal data' (under the Data Protection Act 2018),300000020466304
Portsmouth City Council,PCC,Housing Services,Homelessness,"Housing, Neighbourhood and Building Services",Premises-Related Expenditure,Rents,24-Sep-21,6530239,"1,650.00",SOLETRADER,Classified as 'personal data' (under the Data Protection Act 2018),300000020476961
Portsmouth City Council,PCC,Housing Services,Homelessness,"Housing, Neighbourhood and Building Services",Premises-Related Expenditure,Rents,24-Sep-21,6530237,"1,920.00",SOLETRADER,Classified as 'personal data' (under the Data Protection Act 2018),300000020479098
Portsmouth City Council,PCC,Housing Services,Homelessness,"Housing, Neighbourhood and Building Services",Premises-Related Expenditure,Rents,28-Sep-21,6530636,"5,625.00",SUPPLIER,Classified as 'personal data' (under the Data Protection Act 2018),300000020472274
Portsmouth City Council,PCC,Housing Services,Homelessness,"Housing, Neighbourhood and Building Services",Premises-Related Expenditure,Rents,24-Sep-21,6530232,"1,560.00",SOLETRADER,Classified as 'personal data' (under the Data Protection Act 2018),300000020484360
Portsmouth City Council,PCC,Housing Services,Homelessness,"Housing, Neighbourhood and Building Services",Premises-Related Expenditure,Rents,24-Sep-21,6530313,"1,950.00",SOLETRADER,Classified as 'personal data' (under the Data Protection Act 2018),300000020461845
Portsmouth City Council,PCC,Housing Services,Homelessness,"Housing, Neighbourhood and Building Services",Premises-Related Expenditure,Rents,28-Sep-21,6530568,"1,800.00",SOLETRADER,Classified as 'personal data' (under the Data Protection Act 2018),300000020474472
Portsmouth City Council,PCC,Housing Services,Homelessness,"Housing, Neighbourhood and Building Services",Premises-Related Expenditure,Rents,28-Sep-21,6530562,"2,220.00",SOLETRADER,Classified as 'personal data' (under the Data Protection Act 2018),300000020469518
Portsmouth City Council,PCC,Housing Services,Homelessness,"Housing, Neighbourhood and Building Services",Premises-Related Expenditure,Rents,28-Sep-21,6530576,"2,640.00",SOLETRADER,Classified as 'personal data' (under the Data Protection Act 2018),300000020475891
Portsmouth City Council,PCC,Housing Services,Homelessness,"Housing, Neighbourhood and Building Services",Premises-Related Expenditure,Rents,28-Sep-21,6530561,"2,160.00",SOLETRADER,RAM BUILDING INVESTMENTS LIMITED,300000020469488
Portsmouth City Council,PCC,Housing Services,Homelessness,"Housing, Neighbourhood and Building Services",Premises-Related Expenditure,Rents,28-Sep-21,6530570,"1,380.00",SOLETRADER,Classified as 'personal data' (under the Data Protection Act 2018),300000020471749
Portsmouth City Council,PCC,Housing Services,Homelessness,"Housing, Neighbourhood and Building Services",Premises-Related Expenditure,Rents,24-Sep-21,6530227,"2,280.00",SOLETRADER,Classified as 'personal data' (under the Data Protection Act 2018),300000020467123
Portsmouth City Council,PCC,Housing Services,Homelessness,"Housing, Neighbourhood and Building Services",Premises-Related Expenditure,Rents,24-Sep-21,6530253,"2,040.00",SOLETRADER,Classified as 'personal data' (under the Data Protection Act 2018),300000020477639
Portsmouth City Council,PCC,Housing Services,Homelessness,"Housing, Neighbourhood and Building Services",Premises-Related Expenditure,Rents,24-Sep-21,6530230,"1,890.00",SOLETRADER,Classified as 'personal data' (under the Data Protection Act 2018),300000020482755
Portsmouth City Council,PCC,Housing Services,Homelessness,"Housing, Neighbourhood and Building Services",Premises-Related Expenditure,Rents,24-Sep-21,6530293,"4,240.00",SUPPLIER,Classified as 'personal data' (under the Data Protection Act 2018),300000020477388
Portsmouth City Council,PCC,Housing Services,Homelessness,"Housing, Neighbourhood and Building Services",Premises-Related Expenditure,Rents,24-Sep-21,6530223,"3,450.00",SOLETRADER,Classified as 'personal data' (under the Data Protection Act 2018),300000020482117
Portsmouth City Council,PCC,Housing Services,Homelessness,"Housing, Neighbourhood and Building Services",Premises-Related Expenditure,Rents,24-Sep-21,6530219,"2,580.00",SOLETRADER,Classified as 'personal data' (under the Data Protection Act 2018),300000020484434
Portsmouth City Council,PCC,Housing Services,Homelessness,"Housing, Neighbourhood and Building Services",Premises-Related Expenditure,Rents,24-Sep-21,6530256,"1,950.00",SOLETRADER,Classified as 'personal data' (under the Data Protection Act 2018),300000020484086
Portsmouth City Council,PCC,Housing Services,Homelessness,"Housing, Neighbourhood and Building Services",Premises-Related Expenditure,Rents,15-Sep-21,6528616,"2,310.00",SOLETRADER,Classified as 'personal data' (under the Data Protection Act 2018),300000020473300
Portsmouth City Council,PCC,Housing Services,Homelessness,"Housing, Neighbourhood and Building Services",Premises-Related Expenditure,Rents,24-Sep-21,6530295,"5,130.00",SOLETRADER,Classified as 'personal data' (under the Data Protection Act 2018),300000020463749
Portsmouth City Council,PCC,Housing Services,Homelessness,"Housing, Neighbourhood and Building Services",Premises-Related Expenditure,Rents,01-Sep-21,6526035,"6,000.00",SUPPLIER,K H PROPERTY INVESTMENT LIMITED,300000020467836
Portsmouth City Council,PCC,Housing Services,Homelessness,"Housing, Neighbourhood and Building Services",Premises-Related Expenditure,Rents,24-Sep-21,6530207,"2,100.00",SUPPLIER,Classified as 'personal data' (under the Data Protection Act 2018),300000020480090
Portsmouth City Council,PCC,Housing Services,Homelessness,"Housing, Neighbourhood and Building Services",Premises-Related Expenditure,Rents,28-Sep-21,6530657,"2,340.00",SUPPLIER,Classified as 'personal data' (under the Data Protection Act 2018),300000020472897
Portsmouth City Council,PCC,Housing Services,Homelessness,"Housing, Neighbourhood and Building Services",Premises-Related Expenditure,Rents,24-Sep-21,6530220,"1,620.00",SOLETRADER,Classified as 'personal data' (under the Data Protection Act 2018),300000020478191
Portsmouth City Council,PCC,Housing Services,Homelessness,"Housing, Neighbourhood and Building Services",Premises-Related Expenditure,Rents,28-Sep-21,6530569,"1,950.00",SOLETRADER,Classified as 'personal data' (under the Data Protection Act 2018),300000020474888
Portsmouth City Council,PCC,Housing Services,Homelessness,"Housing, Neighbourhood and Building Services",Premises-Related Expenditure,Rents,24-Sep-21,6530221,"1,560.00",SOLETRADER,Classified as 'personal data' (under the Data Protection Act 2018),300000020477758
Portsmouth City Council,PCC,Housing Services,Homelessness,"Housing, Neighbourhood and Building Services",Premises-Related Expenditure,Rents,24-Sep-21,6530263,"1,890.00",SUPPLIER,DOLPHIN PROPERTY RENTAL,300000020461423
Portsmouth City Council,PCC,Housing Services,Homelessness,"Housing, Neighbourhood and Building Services",Premises-Related Expenditure,Rents,28-Sep-21,6530609,"1,890.00",SOLETRADER,Classified as 'personal data' (under the Data Protection Act 2018),300000020467247
Portsmouth City Council,PCC,Housing Services,Homelessness,"Housing, Neighbourhood and Building Services",Premises-Related Expenditure,Rents,24-Sep-21,6530263,"2,490.00",SUPPLIER,DOLPHIN PROPERTY RENTAL,300000020461423
Portsmouth City Council,PCC,Housing Services,Homelessness,"Housing, Neighbourhood and Building Services",Premises-Related Expenditure,Rents,24-Sep-21,6530234,"2,645.30",SOLETRADER,Classified as 'personal data' (under the Data Protection Act 2018),300000020482994
Portsmouth City Council,PCC,Housing Services,Homelessness,"Housing, Neighbourhood and Building Services",Premises-Related Expenditure,Rents,24-Sep-21,6530224,"2,070.00",SOLETRADER,Classified as 'personal data' (under the Data Protection Act 2018),300000020478994
Portsmouth City Council,PCC,Housing Services,Homelessness,"Housing, Neighbourhood and Building Services",Premises-Related Expenditure,Rents,24-Sep-21,6530236,"3,361.28",SOLETRADER,Classified as 'personal data' (under the Data Protection Act 2018),300000020479092
Portsmouth City Council,PCC,Housing Services,Homelessness,"Housing, Neighbourhood and Building Services",Premises-Related Expenditure,Rents,24-Sep-21,6530222,"1,230.00",SOLETRADER,Classified as 'personal data' (under the Data Protection Act 2018),300000020483120
Portsmouth City Council,PCC,Housing Services,Homelessness,"Housing, Neighbourhood and Building Services",Premises-Related Expenditure,Rents,24-Sep-21,6530318,"2,580.00",SUPPLIER,Classified as 'personal data' (under the Data Protection Act 2018),300000020470705
Portsmouth City Council,PCC,Housing Services,Homelessness,"Housing, Neighbourhood and Building Services",Premises-Related Expenditure,Rents,15-Sep-21,6528502,"1,605.00",SUPPLIER,EDGINTON S T/A S J EDGE LTD,300000020473593
Portsmouth City Council,PCC,Housing Services,Homelessness,"Housing, Neighbourhood and Building Services",Premises-Related Expenditure,Rents,24-Sep-21,6530245,"1,213.35",SOLETRADER,Classified as 'personal data' (under the Data Protection Act 2018),300000020482123
Portsmouth City Council,PCC,Housing Services,Homelessness,"Housing, Neighbourhood and Building Services",Premises-Related Expenditure,Rents,24-Sep-21,6530221,"2,400.00",SOLETRADER,Classified as 'personal data' (under the Data Protection Act 2018),300000020477758
Portsmouth City Council,PCC,Housing Services,Homelessness,"Housing, Neighbourhood and Building Services",Premises-Related Expenditure,Rents,24-Sep-21,6530223,"2,872.07",SOLETRADER,Classified as 'personal data' (under the Data Protection Act 2018),300000020482117
Portsmouth City Council,PCC,Housing Services,Homelessness,"Housing, Neighbourhood and Building Services",Premises-Related Expenditure,Rents,24-Sep-21,6530244,"2,220.00",SOLETRADER,Classified as 'personal data' (under the Data Protection Act 2018),300000020470961
Portsmouth City Council,PCC,Housing Services,Homelessness,"Housing, Neighbourhood and Building Services",Premises-Related Expenditure,Rents,24-Sep-21,6530254,"2,040.00",SOLETRADER,Classified as 'personal data' (under the Data Protection Act 2018),300000020482831
Portsmouth City Council,PCC,Housing Services,Homelessness,"Housing, Neighbourhood and Building Services",Premises-Related Expenditure,Rents,24-Sep-21,6530317,"1,560.00",SUPPLIER,Classified as 'personal data' (under the Data Protection Act 2018),300000020468795
Portsmouth City Council,PCC,Housing Services,Homelessness,"Housing, Neighbourhood and Building Services",Premises-Related Expenditure,Rents,24-Sep-21,6530226,"1,890.00",SOLETRADER,RF & SJ GARLAND T/A RF & SJ PROPERTIES,300000020479490
Portsmouth City Council,PCC,Housing Services,Homelessness,"Housing, Neighbourhood and Building Services",Premises-Related Expenditure,Rents,24-Sep-21,6530248,146.47,SUPPLIER,Classified as 'personal data' (under the Data Protection Act 2018),300000020476892
Portsmouth City Council,PCC,Housing Services,Homelessness,"Housing, Neighbourhood and Building Services",Premises-Related Expenditure,Rents,24-Sep-21,6530248,"1,215.00",SUPPLIER,Classified as 'personal data' (under the Data Protection Act 2018),300000020476892
Portsmouth City Council,PCC,Housing Services,Homelessness,"Housing, Neighbourhood and Building Services",Premises-Related Expenditure,Rents,28-Sep-21,6530557,"1,380.00",SOLETRADER,Classified as 'personal data' (under the Data Protection Act 2018),300000020470904
Portsmouth City Council,PCC,Housing Services,Homelessness,"Housing, Neighbourhood and Building Services",Premises-Related Expenditure,Rents,24-Sep-21,6530240,"1,890.00",SOLETRADER,Classified as 'personal data' (under the Data Protection Act 2018),300000020476967
Portsmouth City Council,PCC,Housing Services,Homelessness,"Housing, Neighbourhood and Building Services",Premises-Related Expenditure,Rents,24-Sep-21,6530225,"1,650.00",SOLETRADER,Classified as 'personal data' (under the Data Protection Act 2018),300000020479484
Portsmouth City Council,PCC,Housing Services,Homelessness,"Housing, Neighbourhood and Building Services",Premises-Related Expenditure,Rents,24-Sep-21,6530235,"1,545.00",SOLETRADER,Classified as 'personal data' (under the Data Protection Act 2018),300000020457873
Portsmouth City Council,PCC,Housing Services,Homelessness,"Housing, Neighbourhood and Building Services",Premises-Related Expenditure,Rents,28-Sep-21,6530627,"1,800.00",SUPPLIER,Classified as 'personal data' (under the Data Protection Act 2018),300000020475555
Portsmouth City Council,PCC,Housing Services,Homelessness,"Housing, Neighbourhood and Building Services",Premises-Related Expenditure,Rents,24-Sep-21,6530300,"2,760.00",SUPPLIER,Classified as 'personal data' (under the Data Protection Act 2018),300000020472316
Portsmouth City Council,PCC,Housing Services,Homelessness,"Housing, Neighbourhood and Building Services",Premises-Related Expenditure,Rents,24-Sep-21,6530229,"1,312.55",SOLETRADER,Classified as 'personal data' (under the Data Protection Act 2018),300000020482749
Portsmouth City Council,PCC,Housing Services,Homelessness,"Housing, Neighbourhood and Building Services",Premises-Related Expenditure,Rents,24-Sep-21,6530223,"1,366.02",SOLETRADER,Classified as 'personal data' (under the Data Protection Act 2018),300000020482117
Portsmouth City Council,PCC,Housing Services,Homelessness,"Housing, Neighbourhood and Building Services",Premises-Related Expenditure,Rents,28-Sep-21,6530633,"3,450.00",SUPPLIER,Classified as 'personal data' (under the Data Protection Act 2018),300000020471941
Portsmouth City Council,PCC,Housing Services,Homelessness,"Housing, Neighbourhood and Building Services",Premises-Related Expenditure,Rents,24-Sep-21,6530231,"1,890.00",SOLETRADER,Classified as 'personal data' (under the Data Protection Act 2018),300000020482767
Portsmouth City Council,PCC,Housing Services,Homelessness,"Housing, Neighbourhood and Building Services",Premises-Related Expenditure,Rents,24-Sep-21,6530298,"1,950.00",SOLETRADER,Classified as 'personal data' (under the Data Protection Act 2018),300000020459249
Portsmouth City Council,PCC,Housing Revenue Account,"Rents, Rates, Taxes and Other Charges","Housing, Neighbourhood and Building Services",Premises-Related Expenditure,Rates,24-Sep-21,6530242,131,OTHER LOCAL AUTHORITY,HAVANT BOROUGH COUNCIL,300000020457057
Portsmouth City Council,PCC,Housing Revenue Account,"Rents, Rates, Taxes and Other Charges","Housing, Neighbourhood and Building Services",Premises-Related Expenditure,Rates,24-Sep-21,6530242,112,OTHER LOCAL AUTHORITY,HAVANT BOROUGH COUNCIL,300000020457057
Portsmouth City Council,PCC,Housing Revenue Account,"Rents, Rates, Taxes and Other Charges","Housing, Neighbourhood and Building Services",Premises-Related Expenditure,Rates,24-Sep-21,6530242,125,OTHER LOCAL AUTHORITY,HAVANT BOROUGH COUNCIL,300000020457057
Portsmouth City Council,PCC,Children's and Education Services,Special Schools,Children's Services and Education,Third Party Payments,Other establishments,24-Sep-21,6530329,"169,369.76",SUPPLIER,SOLENT ACADEMIES TRUST,300000020477417
Portsmouth City Council,PCC,Children's and Education Services,Special Schools,Children's Services and Education,Third Party Payments,Other establishments,24-Sep-21,6530329,"25,273.20",SUPPLIER,SOLENT ACADEMIES TRUST,300000020477417
Portsmouth City Council,PCC,Children's and Education Services,Special Schools,Children's Services and Education,Third Party Payments,Other establishments,24-Sep-21,6530329,"17,266.64",SUPPLIER,SOLENT ACADEMIES TRUST,300000020477417
Portsmouth City Council,PCC,Children's and Education Services,Special Schools,Children's Services and Education,Third Party Payments,Other establishments,24-Sep-21,6530332,"189,943.36",SUPPLIER,SOLENT ACADEMIES TRUST,300000020477417
Portsmouth City Council,PCC,Children's and Education Services,Special Schools,Children's Services and Education,Third Party Payments,Other establishments,24-Sep-21,6530332,"24,425.60",SUPPLIER,SOLENT ACADEMIES TRUST,300000020477417
Portsmouth City Council,PCC,Children's and Education Services,Special Schools,Children's Services and Education,Third Party Payments,Other establishments,24-Sep-21,6530332,"15,600.00",SUPPLIER,SOLENT ACADEMIES TRUST,300000020477417
Portsmouth City Council,PCC,Children's and Education Services,Special Schools,Children's Services and Education,Third Party Payments,Other establishments,24-Sep-21,6530331,"86,635.28",SUPPLIER,SOLENT ACADEMIES TRUST,300000020477417
Portsmouth City Council,PCC,Children's and Education Services,Special Schools,Children's Services and Education,Third Party Payments,Other establishments,24-Sep-21,6530331,"3,118.00",SUPPLIER,SOLENT ACADEMIES TRUST,300000020477417
Portsmouth City Council,PCC,Children's and Education Services,Special Schools,Children's Services and Education,Third Party Payments,Other establishments,24-Sep-21,6530331,"3,666.64",SUPPLIER,SOLENT ACADEMIES TRUST,300000020477417
Portsmouth City Council,PCC,Children's and Education Services,Special Schools,Children's Services and Education,Third Party Payments,Other establishments,24-Sep-21,6530330,"112,474.00",SUPPLIER,THE DELTA EDUCATION TRUST,300000020481637
Portsmouth City Council,PCC,Children's and Education Services,Management and Support Services,Children's Services and Education,Third Party Payments,Other establishments,24-Sep-21,6530330,"19,040.00",SUPPLIER,THE DELTA EDUCATION TRUST,300000020481637
Portsmouth City Council,PCC,Children's and Education Services,Special Schools,Children's Services and Education,Third Party Payments,Other establishments,24-Sep-21,6530330,"10,569.86",SUPPLIER,THE DELTA EDUCATION TRUST,300000020481637
Portsmouth City Council,PCC,Children's and Education Services,Special Schools,Children's Services and Education,Third Party Payments,Other establishments,24-Sep-21,6530330,"6,666.71",SUPPLIER,THE DELTA EDUCATION TRUST,300000020481637
Portsmouth City Council,PCC,Children's and Education Services,Management and Support Services,Children's Services and Education,Third Party Payments,Other establishments,24-Sep-21,6530330,"4,800.00",SUPPLIER,THE DELTA EDUCATION TRUST,300000020481637
Portsmouth City Council,PCC,Children's and Education Services,Management and Support Services,Children's Services and Education,Third Party Payments,Other establishments,24-Sep-21,6530330,"52,800.00",SUPPLIER,THE DELTA EDUCATION TRUST,300000020481637
Portsmouth City Council,PCC,Housing Revenue Account,"Rents, Rates, Taxes and Other Charges","Housing, Neighbourhood and Building Services",Premises-Related Expenditure,Rates,24-Sep-21,6530242,126,OTHER LOCAL AUTHORITY,HAVANT BOROUGH COUNCIL,300000020457057
Portsmouth City Council,PCC,Housing Revenue Account,"Rents, Rates, Taxes and Other Charges","Housing, Neighbourhood and Building Services",Premises-Related Expenditure,Rates,24-Sep-21,6530242,121,OTHER LOCAL AUTHORITY,HAVANT BOROUGH COUNCIL,300000020457057
Portsmouth City Council,PCC,Housing Revenue Account,"Rents, Rates, Taxes and Other Charges","Housing, Neighbourhood and Building Services",Premises-Related Expenditure,Rates,24-Sep-21,6530242,121,OTHER LOCAL AUTHORITY,HAVANT BOROUGH COUNCIL,300000020457057
Portsmouth City Council,PCC,Housing Revenue Account,"Rents, Rates, Taxes and Other Charges","Housing, Neighbourhood and Building Services",Premises-Related Expenditure,Rates,24-Sep-21,6530242,177,OTHER LOCAL AUTHORITY,HAVANT BOROUGH COUNCIL,300000020457057
Portsmouth City Council,PCC,Housing Revenue Account,"Rents, Rates, Taxes and Other Charges","Housing, Neighbourhood and Building Services",Premises-Related Expenditure,Rates,24-Sep-21,6530242,144,OTHER LOCAL AUTHORITY,HAVANT BOROUGH COUNCIL,300000020457057
Portsmouth City Council,PCC,Housing Services,Homelessness,"Housing, Neighbourhood and Building Services",Premises-Related Expenditure,Rents,24-Sep-21,6530321,"2,250.00",SUPPLIER,Classified as 'personal data' (under the Data Protection Act 2018),300000020480422
Portsmouth City Council,PCC,Housing Services,Homelessness,"Housing, Neighbourhood and Building Services",Premises-Related Expenditure,Rents,24-Sep-21,6530321,"3,000.00",SUPPLIER,Classified as 'personal data' (under the Data Protection Act 2018),300000020480422
Portsmouth City Council,PCC,Housing Revenue Account,"Rents, Rates, Taxes and Other Charges","Housing, Neighbourhood and Building Services",Premises-Related Expenditure,Rates,24-Sep-21,6530242,129,OTHER LOCAL AUTHORITY,HAVANT BOROUGH COUNCIL,300000020457057
Portsmouth City Council,PCC,Adult Social Care,Social Care Activities,Adult Services,Third Party Payments,Other establishments,07-Sep-21,6526763,"-3,807.76",SUPPLIER,DIRECT PAYMENTS - CARERS,300000020469761
Portsmouth City Council,PCC,Adult Social Care,Social Care Activities,Adult Services,Third Party Payments,Other establishments,07-Sep-21,6526763,"-3,807.76",SUPPLIER,DIRECT PAYMENTS - CARERS,300000020469761
Portsmouth City Council,PCC,Adult Social Care,Social Care Activities,Adult Services,Third Party Payments,Other establishments,07-Sep-21,6526763,"-1,495.91",SUPPLIER,DIRECT PAYMENTS - CARERS,300000020469761
Portsmouth City Council,PCC,Adult Social Care,Social Care Activities,Adult Services,Third Party Payments,Other establishments,07-Sep-21,6526763,"1,415.86",SUPPLIER,DIRECT PAYMENTS - CARERS,300000020469761
Portsmouth City Council,PCC,Housing Revenue Account,"Rents, Rates, Taxes and Other Charges","Housing, Neighbourhood and Building Services",Premises-Related Expenditure,Rates,24-Sep-21,6530242,122,OTHER LOCAL AUTHORITY,HAVANT BOROUGH COUNCIL,300000020457057
Portsmouth City Council,PCC,Housing Revenue Account,"Rents, Rates, Taxes and Other Charges","Housing, Neighbourhood and Building Services",Premises-Related Expenditure,Rates,24-Sep-21,6530242,136,OTHER LOCAL AUTHORITY,HAVANT BOROUGH COUNCIL,300000020457057
Portsmouth City Council,PCC,Housing Revenue Account,"Rents, Rates, Taxes and Other Charges","Housing, Neighbourhood and Building Services",Premises-Related Expenditure,Rates,24-Sep-21,6530242,123,OTHER LOCAL AUTHORITY,HAVANT BOROUGH COUNCIL,300000020457057
Portsmouth City Council,PCC,Other,Suspense and Capital Schemes,"Housing, Neighbourhood and Building Services",Supplies and Services,Services,01-Sep-21,6525866,"1,755.00",LIMITED COMPANY,LIFTECH SYSTEMS (SE) LIMITED,300000020461913
Portsmouth City Council,PCC,Housing Revenue Account,"Rents, Rates, Taxes and Other Charges","Housing, Neighbourhood and Building Services",Premises-Related Expenditure,Rates,24-Sep-21,6530242,119,OTHER LOCAL AUTHORITY,HAVANT BOROUGH COUNCIL,300000020457057
Portsmouth City Council,PCC,Adult Social Care,Social Support - Support for Carer,Adult Services,Third Party Payments,Other establishments,07-Sep-21,6526763,"-1,328.30",SUPPLIER,DIRECT PAYMENTS - CARERS,300000020469761
Portsmouth City Council,PCC,Adult Social Care,Social Support - Support for Carer,Adult Services,Third Party Payments,Other establishments,07-Sep-21,6526763,-427.84,SUPPLIER,DIRECT PAYMENTS - CARERS,300000020469761
Portsmouth City Council,PCC,Adult Social Care,Social Support - Support for Carer,Adult Services,Third Party Payments,Other establishments,07-Sep-21,6526763,106.96,SUPPLIER,DIRECT PAYMENTS - CARERS,300000020469761
Portsmouth City Council,PCC,Adult Social Care,Social Support - Support for Carer,Adult Services,Third Party Payments,Other establishments,07-Sep-21,6526763,137.52,SUPPLIER,DIRECT PAYMENTS - CARERS,300000020469761
Portsmouth City Council,PCC,Adult Social Care,Social Support - Support for Carer,Adult Services,Third Party Payments,Other establishments,07-Sep-21,6526763,152.8,SUPPLIER,DIRECT PAYMENTS - CARERS,300000020469761
Portsmouth City Council,PCC,Adult Social Care,Physical Support Adults (18 - 64),Adult Services,Third Party Payments,Other establishments,07-Sep-21,6526763,168,SUPPLIER,DIRECT PAYMENTS - CARERS,300000020469761
Portsmouth City Council,PCC,Adult Social Care,Social Support - Support for Carer,Adult Services,Third Party Payments,Other establishments,07-Sep-21,6526763,229.2,SUPPLIER,DIRECT PAYMENTS - CARERS,300000020469761
Portsmouth City Council,PCC,Adult Social Care,Social Support - Support for Carer,Adult Services,Third Party Payments,Other establishments,07-Sep-21,6526763,305.6,SUPPLIER,DIRECT PAYMENTS - CARERS,300000020469761
Portsmouth City Council,PCC,Adult Social Care,Social Support - Support for Carer,Adult Services,Third Party Payments,Other establishments,07-Sep-21,6526763,366.72,SUPPLIER,DIRECT PAYMENTS - CARERS,300000020469761
Portsmouth City Council,PCC,Adult Social Care,Social Support - Support for Carer,Adult Services,Third Party Payments,Other establishments,07-Sep-21,6526763,366.72,SUPPLIER,DIRECT PAYMENTS - CARERS,300000020469761
Portsmouth City Council,PCC,Adult Social Care,Social Support - Support for Carer,Adult Services,Third Party Payments,Other establishments,07-Sep-21,6526763,366.72,SUPPLIER,DIRECT PAYMENTS - CARERS,300000020469761
Portsmouth City Council,PCC,Adult Social Care,Social Support - Support for Carer,Adult Services,Third Party Payments,Other establishments,07-Sep-21,6526763,366.72,SUPPLIER,DIRECT PAYMENTS - CARERS,300000020469761
Portsmouth City Council,PCC,Adult Social Care,Social Support - Support for Carer,Adult Services,Third Party Payments,Other establishments,07-Sep-21,6526763,366.72,SUPPLIER,DIRECT PAYMENTS - CARERS,300000020469761
Portsmouth City Council,PCC,Adult Social Care,Social Support - Support for Carer,Adult Services,Third Party Payments,Other establishments,07-Sep-21,6526763,366.72,SUPPLIER,DIRECT PAYMENTS - CARERS,300000020469761
Portsmouth City Council,PCC,Adult Social Care,Social Support - Support for Carer,Adult Services,Third Party Payments,Other establishments,07-Sep-21,6526763,366.72,SUPPLIER,DIRECT PAYMENTS - CARERS,300000020469761
Portsmouth City Council,PCC,Adult Social Care,Social Support - Support for Carer,Adult Services,Third Party Payments,Other establishments,07-Sep-21,6526763,366.72,SUPPLIER,DIRECT PAYMENTS - CARERS,300000020469761
Portsmouth City Council,PCC,Adult Social Care,Social Support - Support for Carer,Adult Services,Third Party Payments,Other establishments,07-Sep-21,6526763,366.72,SUPPLIER,DIRECT PAYMENTS - CARERS,300000020469761
Portsmouth City Council,PCC,Adult Social Care,Social Support - Support for Carer,Adult Services,Third Party Payments,Other establishments,07-Sep-21,6526763,366.72,SUPPLIER,DIRECT PAYMENTS - CARERS,300000020469761
Portsmouth City Council,PCC,Adult Social Care,Social Support - Support for Carer,Adult Services,Third Party Payments,Other establishments,07-Sep-21,6526763,366.72,SUPPLIER,DIRECT PAYMENTS - CARERS,300000020469761
Portsmouth City Council,PCC,Adult Social Care,Social Support - Support for Carer,Adult Services,Third Party Payments,Other establishments,07-Sep-21,6526763,427.84,SUPPLIER,DIRECT PAYMENTS - CARERS,300000020469761
Portsmouth City Council,PCC,Adult Social Care,Social Support - Support for Carer,Adult Services,Third Party Payments,Other establishments,07-Sep-21,6526763,550.08,SUPPLIER,DIRECT PAYMENTS - CARERS,300000020469761
Portsmouth City Council,PCC,Adult Social Care,Physical Support Adults (18 - 64),Adult Services,Third Party Payments,Other establishments,07-Sep-21,6526763,"1,792.00",SUPPLIER,DIRECT PAYMENTS - CARERS,300000020469761
Portsmouth City Council,PCC,Children's and Education Services,Other Children and Family Services,Children's Services and Education,Third Party Payments,Other establishments,01-Sep-21,6526078,776.4,SUPPLIER,SOUTHERN DOMESTIC ABUSE SERVICE,300000020457530
Portsmouth City Council,PCC,Children's and Education Services,Safeguarding Children and Young Peoples Services,Children's Services and Education,Third Party Payments,Other establishments,01-Sep-21,6526041,278.57,SUPPLIER,LOVE146,300000020473545
Portsmouth City Council,PCC,Children's and Education Services,Safeguarding Children and Young Peoples Services,Children's Services and Education,Third Party Payments,Other establishments,01-Sep-21,6526041,"2,600.00",SUPPLIER,LOVE146,300000020473545
Portsmouth City Council,PCC,Children's and Education Services,Safeguarding Children and Young Peoples Services,Children's Services and Education,Third Party Payments,Other establishments,01-Sep-21,6526041,7.14,SUPPLIER,LOVE146,300000020473545
Portsmouth City Council,PCC,Children's and Education Services,Safeguarding Children and Young Peoples Services,Children's Services and Education,Third Party Payments,Other establishments,01-Sep-21,6526041,42.86,SUPPLIER,LOVE146,300000020473545
Portsmouth City Council,PCC,Children's and Education Services,Safeguarding Children and Young Peoples Services,Children's Services and Education,Third Party Payments,Other establishments,01-Sep-21,6526041,150,SUPPLIER,LOVE146,300000020473545
Portsmouth City Council,PCC,Children's and Education Services,Children Looked After,Children's Services and Education,Third Party Payments,Other establishments,02-Sep-21,6526368,-0.09,SUPPLIER,HORIZON CARE AND EDUCATION GROUP LTD,300000020480667
Portsmouth City Council,PCC,Children's and Education Services,Children Looked After,Children's Services and Education,Third Party Payments,Other establishments,02-Sep-21,6526368,233.74,SUPPLIER,HORIZON CARE AND EDUCATION GROUP LTD,300000020480667
Portsmouth City Council,PCC,Children's and Education Services,Children Looked After,Children's Services and Education,Third Party Payments,Other establishments,02-Sep-21,6526368,"2,181.56",SUPPLIER,HORIZON CARE AND EDUCATION GROUP LTD,300000020480667
Portsmouth City Council,PCC,Children's and Education Services,Safeguarding Children and Young Peoples Services,Children's Services and Education,Third Party Payments,Other establishments,02-Sep-21,6526368,-0.09,SUPPLIER,HORIZON CARE AND EDUCATION GROUP LTD,300000020480667
Portsmouth City Council,PCC,Children's and Education Services,Safeguarding Children and Young Peoples Services,Children's Services and Education,Third Party Payments,Other establishments,02-Sep-21,6526368,233.74,SUPPLIER,HORIZON CARE AND EDUCATION GROUP LTD,300000020480667
Portsmouth City Council,PCC,Children's and Education Services,Safeguarding Children and Young Peoples Services,Children's Services and Education,Third Party Payments,Other establishments,02-Sep-21,6526368,"2,181.56",SUPPLIER,HORIZON CARE AND EDUCATION GROUP LTD,300000020480667
Portsmouth City Council,PCC,Children's and Education Services,Safeguarding Children and Young Peoples Services,Children's Services and Education,Third Party Payments,Other establishments,02-Sep-21,6526368,0.04,SUPPLIER,HORIZON CARE AND EDUCATION GROUP LTD,300000020480667
Portsmouth City Council,PCC,Children's and Education Services,Safeguarding Children and Young Peoples Services,Children's Services and Education,Third Party Payments,Other establishments,02-Sep-21,6526368,298.29,SUPPLIER,HORIZON CARE AND EDUCATION GROUP LTD,300000020480667
Portsmouth City Council,PCC,Children's and Education Services,Safeguarding Children and Young Peoples Services,Children's Services and Education,Third Party Payments,Other establishments,02-Sep-21,6526368,"2,784.00",SUPPLIER,HORIZON CARE AND EDUCATION GROUP LTD,300000020480667
Portsmouth City Council,PCC,Children's and Education Services,Children Looked After,Children's Services and Education,Third Party Payments,Other establishments,02-Sep-21,6526349,331.83,SUPPLIER,THE CHILDRENS FAMILY TRUST,300000020479545
Portsmouth City Council,PCC,Children's and Education Services,Children Looked After,Children's Services and Education,Third Party Payments,Other establishments,02-Sep-21,6526349,"3,097.08",SUPPLIER,THE CHILDRENS FAMILY TRUST,300000020479545
Portsmouth City Council,PCC,Children's and Education Services,Children Looked After,Children's Services and Education,Third Party Payments,Other establishments,02-Sep-21,6526349,-0.04,SUPPLIER,THE CHILDRENS FAMILY TRUST,300000020479545
Portsmouth City Council,PCC,Children's and Education Services,Children Looked After,Children's Services and Education,Third Party Payments,Other establishments,02-Sep-21,6526349,323.43,SUPPLIER,THE CHILDRENS FAMILY TRUST,300000020479545
Portsmouth City Council,PCC,Children's and Education Services,Children Looked After,Children's Services and Education,Third Party Payments,Other establishments,02-Sep-21,6526349,"3,018.72",SUPPLIER,THE CHILDRENS FAMILY TRUST,300000020479545
Portsmouth City Council,PCC,Children's and Education Services,Children Looked After,Children's Services and Education,Third Party Payments,Other establishments,02-Sep-21,6526349,-0.04,SUPPLIER,THE CHILDRENS FAMILY TRUST,300000020479545
Portsmouth City Council,PCC,Children's and Education Services,Children Looked After,Children's Services and Education,Third Party Payments,Other establishments,02-Sep-21,6526349,331.83,SUPPLIER,THE CHILDRENS FAMILY TRUST,300000020479545
Portsmouth City Council,PCC,Children's and Education Services,Children Looked After,Children's Services and Education,Third Party Payments,Other establishments,02-Sep-21,6526349,"3,097.12",SUPPLIER,THE CHILDRENS FAMILY TRUST,300000020479545
Portsmouth City Council,PCC,Children's and Education Services,Children Looked After,Children's Services and Education,Third Party Payments,Other establishments,02-Sep-21,6526349,-34.68,SUPPLIER,THE CHILDRENS FAMILY TRUST,300000020479545
Portsmouth City Council,PCC,Children's and Education Services,Children Looked After,Children's Services and Education,Third Party Payments,Other establishments,02-Sep-21,6526349,335.19,SUPPLIER,THE CHILDRENS FAMILY TRUST,300000020479545
Portsmouth City Council,PCC,Children's and Education Services,Children Looked After,Children's Services and Education,Third Party Payments,Other establishments,02-Sep-21,6526349,"3,128.40",SUPPLIER,THE CHILDRENS FAMILY TRUST,300000020479545
Portsmouth City Council,PCC,Children's and Education Services,Children Looked After,Children's Services and Education,Third Party Payments,Other establishments,02-Sep-21,6526349,328.5,SUPPLIER,THE CHILDRENS FAMILY TRUST,300000020479545
Portsmouth City Council,PCC,Children's and Education Services,Children Looked After,Children's Services and Education,Third Party Payments,Other establishments,02-Sep-21,6526349,"3,066.00",SUPPLIER,THE CHILDRENS FAMILY TRUST,300000020479545
Portsmouth City Council,PCC,Housing Revenue Account,"Rents, Rates, Taxes and Other Charges","Housing, Neighbourhood and Building Services",Premises-Related Expenditure,Rates,24-Sep-21,6530242,141,OTHER LOCAL AUTHORITY,HAVANT BOROUGH COUNCIL,300000020457057
Portsmouth City Council,PCC,Housing Revenue Account,Special Services,"Housing, Neighbourhood and Building Services",Premises-Related Expenditure,Energy costs,03-Sep-21,6526478,27.77,LIMITED COMPANY,CONTRACT NATURAL GAS LTD,300000020484079
Portsmouth City Council,PCC,Housing Revenue Account,Special Services,"Housing, Neighbourhood and Building Services",Premises-Related Expenditure,Energy costs,03-Sep-21,6526478,2.48,LIMITED COMPANY,CONTRACT NATURAL GAS LTD,300000020484079
Portsmouth City Council,PCC,Housing Revenue Account,Special Services,"Housing, Neighbourhood and Building Services",Premises-Related Expenditure,Energy costs,03-Sep-21,6526478,65.32,LIMITED COMPANY,CONTRACT NATURAL GAS LTD,300000020484079
Portsmouth City Council,PCC,Housing Revenue Account,Special Services,"Housing, Neighbourhood and Building Services",Premises-Related Expenditure,Energy costs,03-Sep-21,6526478,53.89,LIMITED COMPANY,CONTRACT NATURAL GAS LTD,300000020484079
Portsmouth City Council,PCC,Children's and Education Services,Primary Schools,Children's Services and Education,Premises-Related Expenditure,Energy costs,03-Sep-21,6526478,13.33,LIMITED COMPANY,CONTRACT NATURAL GAS LTD,300000020484079
Portsmouth City Council,PCC,Children's and Education Services,Primary Schools,Children's Services and Education,Premises-Related Expenditure,Energy costs,03-Sep-21,6526478,248.92,LIMITED COMPANY,CONTRACT NATURAL GAS LTD,300000020484079
Portsmouth City Council,PCC,Housing Revenue Account,Special Services,"Housing, Neighbourhood and Building Services",Premises-Related Expenditure,Energy costs,03-Sep-21,6526478,103.24,LIMITED COMPANY,CONTRACT NATURAL GAS LTD,300000020484079
Portsmouth City Council,PCC,Housing Services,Homelessness,"Housing, Neighbourhood and Building Services",Premises-Related Expenditure,Energy costs,03-Sep-21,6526478,31.03,LIMITED COMPANY,CONTRACT NATURAL GAS LTD,300000020484079
Portsmouth City Council,PCC,Housing Services,Homelessness,"Housing, Neighbourhood and Building Services",Premises-Related Expenditure,Energy costs,03-Sep-21,6526478,40.55,LIMITED COMPANY,CONTRACT NATURAL GAS LTD,300000020484079
Portsmouth City Council,PCC,Housing Revenue Account,Special Services,"Housing, Neighbourhood and Building Services",Premises-Related Expenditure,Energy costs,03-Sep-21,6526478,29.4,LIMITED COMPANY,CONTRACT NATURAL GAS LTD,300000020484079
Portsmouth City Council,PCC,Housing Revenue Account,Special Services,"Housing, Neighbourhood and Building Services",Premises-Related Expenditure,Energy costs,03-Sep-21,6526478,266.03,LIMITED COMPANY,CONTRACT NATURAL GAS LTD,300000020484079
Portsmouth City Council,PCC,Housing Revenue Account,Special Services,"Housing, Neighbourhood and Building Services",Premises-Related Expenditure,Energy costs,03-Sep-21,6526478,148.26,LIMITED COMPANY,CONTRACT NATURAL GAS LTD,300000020484079
Portsmouth City Council,PCC,Housing Revenue Account,Special Services,"Housing, Neighbourhood and Building Services",Premises-Related Expenditure,Energy costs,03-Sep-21,6526478,36.96,LIMITED COMPANY,CONTRACT NATURAL GAS LTD,300000020484079
Portsmouth City Council,PCC,Children's and Education Services,Primary Schools,Children's Services and Education,Premises-Related Expenditure,Energy costs,03-Sep-21,6526478,17.17,LIMITED COMPANY,CONTRACT NATURAL GAS LTD,300000020484079
Portsmouth City Council,PCC,Other,Suspense and Capital Schemes,"Housing, Neighbourhood and Building Services",Premises-Related Expenditure,Energy costs,03-Sep-21,6526478,10.42,LIMITED COMPANY,CONTRACT NATURAL GAS LTD,300000020484079
Portsmouth City Council,PCC,Other,Suspense and Capital Schemes,"Housing, Neighbourhood and Building Services",Premises-Related Expenditure,Energy costs,03-Sep-21,6526478,"1,388.62",LIMITED COMPANY,CONTRACT NATURAL GAS LTD,300000020484079
Portsmouth City Council,PCC,Housing Revenue Account,Special Services,"Housing, Neighbourhood and Building Services",Premises-Related Expenditure,Energy costs,03-Sep-21,6526478,29.3,LIMITED COMPANY,CONTRACT NATURAL GAS LTD,300000020484079
Portsmouth City Council,PCC,Housing Services,Homelessness,"Housing, Neighbourhood and Building Services",Premises-Related Expenditure,Energy costs,03-Sep-21,6526478,19.68,LIMITED COMPANY,CONTRACT NATURAL GAS LTD,300000020484079
Portsmouth City Council,PCC,Children's and Education Services,Children Looked After,Children's Services and Education,Premises-Related Expenditure,Energy costs,03-Sep-21,6526478,9.61,LIMITED COMPANY,CONTRACT NATURAL GAS LTD,300000020484079
Portsmouth City Council,PCC,Housing Revenue Account,Special Services,"Housing, Neighbourhood and Building Services",Premises-Related Expenditure,Energy costs,03-Sep-21,6526478,410.93,LIMITED COMPANY,CONTRACT NATURAL GAS LTD,300000020484079
Portsmouth City Council,PCC,Children's and Education Services,Other Education and Community Budget,Regeneration,Premises-Related Expenditure,Energy costs,03-Sep-21,6526478,73.24,LIMITED COMPANY,CONTRACT NATURAL GAS LTD,300000020484079
Portsmouth City Council,PCC,Housing Revenue Account,Special Services,"Housing, Neighbourhood and Building Services",Premises-Related Expenditure,Energy costs,03-Sep-21,6526478,291.62,LIMITED COMPANY,CONTRACT NATURAL GAS LTD,300000020484079
Portsmouth City Council,PCC,Housing Revenue Account,Special Services,"Housing, Neighbourhood and Building Services",Premises-Related Expenditure,Energy costs,03-Sep-21,6526478,58.35,LIMITED COMPANY,CONTRACT NATURAL GAS LTD,300000020484079
Portsmouth City Council,PCC,Costs below Net Cost of Services,Trading,Regeneration,Premises-Related Expenditure,Energy costs,03-Sep-21,6526478,"6,360.63",LIMITED COMPANY,CONTRACT NATURAL GAS LTD,300000020484079
Portsmouth City Council,PCC,Housing Revenue Account,Special Services,"Housing, Neighbourhood and Building Services",Premises-Related Expenditure,Energy costs,03-Sep-21,6526478,96.74,LIMITED COMPANY,CONTRACT NATURAL GAS LTD,300000020484079
Portsmouth City Council,PCC,Housing Revenue Account,Special Services,"Housing, Neighbourhood and Building Services",Premises-Related Expenditure,Energy costs,03-Sep-21,6526478,17.43,LIMITED COMPANY,CONTRACT NATURAL GAS LTD,300000020484079
Portsmouth City Council,PCC,Housing Revenue Account,Special Services,"Housing, Neighbourhood and Building Services",Premises-Related Expenditure,Energy costs,03-Sep-21,6526478,47.06,LIMITED COMPANY,CONTRACT NATURAL GAS LTD,300000020484079
Portsmouth City Council,PCC,Housing Revenue Account,Special Services,"Housing, Neighbourhood and Building Services",Premises-Related Expenditure,Energy costs,03-Sep-21,6526478,25.23,LIMITED COMPANY,CONTRACT NATURAL GAS LTD,300000020484079
Portsmouth City Council,PCC,Housing Revenue Account,Special Services,"Housing, Neighbourhood and Building Services",Premises-Related Expenditure,Energy costs,03-Sep-21,6526478,52.54,LIMITED COMPANY,CONTRACT NATURAL GAS LTD,300000020484079
Portsmouth City Council,PCC,Housing Revenue Account,Special Services,"Housing, Neighbourhood and Building Services",Premises-Related Expenditure,Energy costs,03-Sep-21,6526478,39.66,LIMITED COMPANY,CONTRACT NATURAL GAS LTD,300000020484079
Portsmouth City Council,PCC,Housing Revenue Account,Special Services,"Housing, Neighbourhood and Building Services",Premises-Related Expenditure,Energy costs,03-Sep-21,6526478,35.33,LIMITED COMPANY,CONTRACT NATURAL GAS LTD,300000020484079
Portsmouth City Council,PCC,Housing Revenue Account,Special Services,"Housing, Neighbourhood and Building Services",Premises-Related Expenditure,Energy costs,03-Sep-21,6526478,9.34,LIMITED COMPANY,CONTRACT NATURAL GAS LTD,300000020484079
Portsmouth City Council,PCC,Highways and Transport Services,"Airports, Harbours and Toll Facilities",Portsmouth International Port,Premises-Related Expenditure,Energy costs,03-Sep-21,6526478,8.69,LIMITED COMPANY,CONTRACT NATURAL GAS LTD,300000020484079
Portsmouth City Council,PCC,Cultural and Related Services,Recreation and Sport,"Culture, Leisure & Regulatory Services",Premises-Related Expenditure,Energy costs,03-Sep-21,6526478,"4,253.10",LIMITED COMPANY,CONTRACT NATURAL GAS LTD,300000020484079
Portsmouth City Council,PCC,Other,Suspense and Capital Schemes,Portsmouth International Port,Premises-Related Expenditure,Energy costs,03-Sep-21,6526478,63.32,LIMITED COMPANY,CONTRACT NATURAL GAS LTD,300000020484079
Portsmouth City Council,PCC,Housing Revenue Account,Special Services,"Housing, Neighbourhood and Building Services",Premises-Related Expenditure,Energy costs,03-Sep-21,6526478,24.93,LIMITED COMPANY,CONTRACT NATURAL GAS LTD,300000020484079
Portsmouth City Council,PCC,Housing Revenue Account,Special Services,"Housing, Neighbourhood and Building Services",Premises-Related Expenditure,Energy costs,03-Sep-21,6526478,33.11,LIMITED COMPANY,CONTRACT NATURAL GAS LTD,300000020484079
Portsmouth City Council,PCC,Housing Revenue Account,Special Services,"Housing, Neighbourhood and Building Services",Premises-Related Expenditure,Energy costs,03-Sep-21,6526478,35.57,LIMITED COMPANY,CONTRACT NATURAL GAS LTD,300000020484079
Portsmouth City Council,PCC,Housing Revenue Account,Special Services,"Housing, Neighbourhood and Building Services",Premises-Related Expenditure,Energy costs,03-Sep-21,6526478,2.48,LIMITED COMPANY,CONTRACT NATURAL GAS LTD,300000020484079
Portsmouth City Council,PCC,Housing Revenue Account,Supervision and Management,"Housing, Neighbourhood and Building Services",Premises-Related Expenditure,Energy costs,03-Sep-21,6526478,38.94,LIMITED COMPANY,CONTRACT NATURAL GAS LTD,300000020484079
Portsmouth City Council,PCC,Housing Revenue Account,Special Services,"Housing, Neighbourhood and Building Services",Premises-Related Expenditure,Energy costs,03-Sep-21,6526478,5.96,LIMITED COMPANY,CONTRACT NATURAL GAS LTD,300000020484079
Portsmouth City Council,PCC,Children's and Education Services,Primary Schools,Children's Services and Education,Premises-Related Expenditure,Energy costs,03-Sep-21,6526478,10.1,LIMITED COMPANY,CONTRACT NATURAL GAS LTD,300000020484079
Portsmouth City Council,PCC,Children's and Education Services,Children Looked After,Children's Services and Education,Premises-Related Expenditure,Energy costs,03-Sep-21,6526478,41.22,LIMITED COMPANY,CONTRACT NATURAL GAS LTD,300000020484079
Portsmouth City Council,PCC,Children's and Education Services,Children Looked After,Children's Services and Education,Premises-Related Expenditure,Energy costs,03-Sep-21,6526478,41.76,LIMITED COMPANY,CONTRACT NATURAL GAS LTD,300000020484079
Portsmouth City Council,PCC,Children's and Education Services,Other Children and Family Services,Children's Services and Education,Premises-Related Expenditure,Energy costs,03-Sep-21,6526478,28.15,LIMITED COMPANY,CONTRACT NATURAL GAS LTD,300000020484079
Portsmouth City Council,PCC,Housing Revenue Account,Special Services,"Housing, Neighbourhood and Building Services",Premises-Related Expenditure,Energy costs,03-Sep-21,6526478,43.73,LIMITED COMPANY,CONTRACT NATURAL GAS LTD,300000020484079
Portsmouth City Council,PCC,Housing Services,Homelessness,"Housing, Neighbourhood and Building Services",Premises-Related Expenditure,Energy costs,03-Sep-21,6526478,27.81,LIMITED COMPANY,CONTRACT NATURAL GAS LTD,300000020484079
Portsmouth City Council,PCC,Housing Revenue Account,Special Services,"Housing, Neighbourhood and Building Services",Premises-Related Expenditure,Energy costs,03-Sep-21,6526478,453.45,LIMITED COMPANY,CONTRACT NATURAL GAS LTD,300000020484079
Portsmouth City Council,PCC,Children's and Education Services,Children Looked After,Children's Services and Education,Premises-Related Expenditure,Energy costs,03-Sep-21,6526478,494.33,LIMITED COMPANY,CONTRACT NATURAL GAS LTD,300000020484079
Portsmouth City Council,PCC,Housing Revenue Account,Supervision and Management,"Housing, Neighbourhood and Building Services",Premises-Related Expenditure,Energy costs,03-Sep-21,6526478,28.64,LIMITED COMPANY,CONTRACT NATURAL GAS LTD,300000020484079
Portsmouth City Council,PCC,Cultural and Related Services,Library Service,"Culture, Leisure & Regulatory Services",Premises-Related Expenditure,Energy costs,03-Sep-21,6526478,141.67,LIMITED COMPANY,CONTRACT NATURAL GAS LTD,300000020484079
Portsmouth City Council,PCC,Adult Social Care,Support with Memory and Cognition Older People (65 - 74),Adult Services,Premises-Related Expenditure,Energy costs,03-Sep-21,6526478,160.13,LIMITED COMPANY,CONTRACT NATURAL GAS LTD,300000020484079
Portsmouth City Council,PCC,Housing Revenue Account,"Rents, Rates, Taxes and Other Charges","Housing, Neighbourhood and Building Services",Premises-Related Expenditure,Energy costs,03-Sep-21,6526478,14.5,LIMITED COMPANY,CONTRACT NATURAL GAS LTD,300000020484079
Portsmouth City Council,PCC,Housing Revenue Account,"Rents, Rates, Taxes and Other Charges","Housing, Neighbourhood and Building Services",Premises-Related Expenditure,Energy costs,03-Sep-21,6526478,21.31,LIMITED COMPANY,CONTRACT NATURAL GAS LTD,300000020484079
Portsmouth City Council,PCC,Housing Revenue Account,"Rents, Rates, Taxes and Other Charges","Housing, Neighbourhood and Building Services",Premises-Related Expenditure,Energy costs,03-Sep-21,6526478,7.01,LIMITED COMPANY,CONTRACT NATURAL GAS LTD,300000020484079
Portsmouth City Council,PCC,Housing Revenue Account,Special Services,"Housing, Neighbourhood and Building Services",Premises-Related Expenditure,CRC Allowances,03-Sep-21,6526478,69.34,LIMITED COMPANY,CONTRACT NATURAL GAS LTD,300000020484079
Portsmouth City Council,PCC,Housing Revenue Account,Special Services,"Housing, Neighbourhood and Building Services",Premises-Related Expenditure,CRC Allowances,03-Sep-21,6526478,25.85,LIMITED COMPANY,CONTRACT NATURAL GAS LTD,300000020484079
Portsmouth City Council,PCC,Housing Revenue Account,Special Services,"Housing, Neighbourhood and Building Services",Premises-Related Expenditure,Energy costs,03-Sep-21,6526478,25.49,LIMITED COMPANY,CONTRACT NATURAL GAS LTD,300000020484079
Portsmouth City Council,PCC,Housing Revenue Account,Special Services,"Housing, Neighbourhood and Building Services",Premises-Related Expenditure,CRC Allowances,03-Sep-21,6526478,24.42,LIMITED COMPANY,CONTRACT NATURAL GAS LTD,300000020484079
Portsmouth City Council,PCC,Housing Revenue Account,Special Services,"Housing, Neighbourhood and Building Services",Premises-Related Expenditure,Energy costs,03-Sep-21,6526478,"9,974.81",LIMITED COMPANY,CONTRACT NATURAL GAS LTD,300000020484079
Portsmouth City Council,PCC,Planning Services,Business support,Regeneration,Premises-Related Expenditure,Energy costs,03-Sep-21,6526478,247.25,LIMITED COMPANY,CONTRACT NATURAL GAS LTD,300000020484079
Portsmouth City Council,PCC,Housing Revenue Account,Special Services,"Housing, Neighbourhood and Building Services",Premises-Related Expenditure,Energy costs,03-Sep-21,6526478,138.58,LIMITED COMPANY,CONTRACT NATURAL GAS LTD,300000020484079
Portsmouth City Council,PCC,Housing Revenue Account,Special Services,"Housing, Neighbourhood and Building Services",Premises-Related Expenditure,Energy costs,03-Sep-21,6526478,744,LIMITED COMPANY,CONTRACT NATURAL GAS LTD,300000020484079
Portsmouth City Council,PCC,Housing Revenue Account,Special Services,"Housing, Neighbourhood and Building Services",Premises-Related Expenditure,Energy costs,03-Sep-21,6526478,807.07,LIMITED COMPANY,CONTRACT NATURAL GAS LTD,300000020484079
Portsmouth City Council,PCC,Cultural and Related Services,Culture and Heritage,"Culture, Leisure & Regulatory Services",Premises-Related Expenditure,Energy costs,03-Sep-21,6526478,183.21,LIMITED COMPANY,CONTRACT NATURAL GAS LTD,300000020484079
Portsmouth City Council,PCC,Cultural and Related Services,Culture and Heritage,"Culture, Leisure & Regulatory Services",Premises-Related Expenditure,Energy costs,03-Sep-21,6526478,89.21,LIMITED COMPANY,CONTRACT NATURAL GAS LTD,300000020484079
Portsmouth City Council,PCC,Housing Revenue Account,Special Services,"Housing, Neighbourhood and Building Services",Premises-Related Expenditure,Energy costs,03-Sep-21,6526478,229.2,LIMITED COMPANY,CONTRACT NATURAL GAS LTD,300000020484079
Portsmouth City Council,PCC,Housing Revenue Account,Special Services,"Housing, Neighbourhood and Building Services",Premises-Related Expenditure,Energy costs,03-Sep-21,6526478,92.14,LIMITED COMPANY,CONTRACT NATURAL GAS LTD,300000020484079
Portsmouth City Council,PCC,Cultural and Related Services,Recreation and Sport,"Culture, Leisure & Regulatory Services",Premises-Related Expenditure,Energy costs,03-Sep-21,6526478,126.1,LIMITED COMPANY,CONTRACT NATURAL GAS LTD,300000020484079
Portsmouth City Council,PCC,Housing Revenue Account,Supervision and Management,"Housing, Neighbourhood and Building Services",Premises-Related Expenditure,Energy costs,03-Sep-21,6526478,30.22,LIMITED COMPANY,CONTRACT NATURAL GAS LTD,300000020484079
Portsmouth City Council,PCC,Highways and Transport Services,"Airports, Harbours and Toll Facilities",Portsmouth International Port,Premises-Related Expenditure,Energy costs,03-Sep-21,6526478,56.13,LIMITED COMPANY,CONTRACT NATURAL GAS LTD,300000020484079
Portsmouth City Council,PCC,Cultural and Related Services,Open Spaces,"Culture, Leisure & Regulatory Services",Premises-Related Expenditure,Energy costs,03-Sep-21,6526478,131.4,LIMITED COMPANY,CONTRACT NATURAL GAS LTD,300000020484079
Portsmouth City Council,PCC,Housing Revenue Account,Special Services,"Housing, Neighbourhood and Building Services",Premises-Related Expenditure,Energy costs,03-Sep-21,6526478,12.89,LIMITED COMPANY,CONTRACT NATURAL GAS LTD,300000020484079
Portsmouth City Council,PCC,Housing Revenue Account,Special Services,"Housing, Neighbourhood and Building Services",Premises-Related Expenditure,Energy costs,03-Sep-21,6526478,90.23,LIMITED COMPANY,CONTRACT NATURAL GAS LTD,300000020484079
Portsmouth City Council,PCC,Children's and Education Services,Children Looked After,Children's Services and Education,Premises-Related Expenditure,Energy costs,03-Sep-21,6526478,116.21,LIMITED COMPANY,CONTRACT NATURAL GAS LTD,300000020484079
Portsmouth City Council,PCC,Housing Revenue Account,Special Services,"Housing, Neighbourhood and Building Services",Premises-Related Expenditure,Energy costs,03-Sep-21,6526478,6.45,LIMITED COMPANY,CONTRACT NATURAL GAS LTD,300000020484079
Portsmouth City Council,PCC,Housing Revenue Account,Supervision and Management,"Housing, Neighbourhood and Building Services",Premises-Related Expenditure,Energy costs,03-Sep-21,6526478,2.48,LIMITED COMPANY,CONTRACT NATURAL GAS LTD,300000020484079
Portsmouth City Council,PCC,Highways and Transport Services,"Airports, Harbours and Toll Facilities",Portsmouth International Port,Premises-Related Expenditure,Energy costs,03-Sep-21,6526478,2.48,LIMITED COMPANY,CONTRACT NATURAL GAS LTD,300000020484079
Portsmouth City Council,PCC,Adult Social Care,Learning Disability Support Adults (18 - 64),Adult Services,Premises-Related Expenditure,Energy costs,03-Sep-21,6526478,125.39,LIMITED COMPANY,CONTRACT NATURAL GAS LTD,300000020484079
Portsmouth City Council,PCC,Adult Social Care,Learning Disability Support Adults (18 - 64),Adult Services,Premises-Related Expenditure,Energy costs,03-Sep-21,6526478,123.84,LIMITED COMPANY,CONTRACT NATURAL GAS LTD,300000020484079
Portsmouth City Council,PCC,Adult Social Care,Learning Disability Support Adults (18 - 64),Adult Services,Premises-Related Expenditure,Energy costs,03-Sep-21,6526478,188.58,LIMITED COMPANY,CONTRACT NATURAL GAS LTD,300000020484079
Portsmouth City Council,PCC,Housing Revenue Account,Supervision and Management,"Housing, Neighbourhood and Building Services",Premises-Related Expenditure,Energy costs,03-Sep-21,6526478,123.64,LIMITED COMPANY,CONTRACT NATURAL GAS LTD,300000020484079
Portsmouth City Council,PCC,Children's and Education Services,Primary Schools,Children's Services and Education,Premises-Related Expenditure,Energy costs,03-Sep-21,6526478,43.4,LIMITED COMPANY,CONTRACT NATURAL GAS LTD,300000020484079
Portsmouth City Council,PCC,Children's and Education Services,Primary Schools,Children's Services and Education,Premises-Related Expenditure,Energy costs,03-Sep-21,6526478,51.21,LIMITED COMPANY,CONTRACT NATURAL GAS LTD,300000020484079
Portsmouth City Council,PCC,Housing Revenue Account,Special Services,"Housing, Neighbourhood and Building Services",Premises-Related Expenditure,Energy costs,03-Sep-21,6526478,155.27,LIMITED COMPANY,CONTRACT NATURAL GAS LTD,300000020484079
Portsmouth City Council,PCC,Adult Social Care,Physical Support Older People (65-74),Adult Services,Premises-Related Expenditure,Energy costs,03-Sep-21,6526478,18.91,LIMITED COMPANY,CONTRACT NATURAL GAS LTD,300000020484079
Portsmouth City Council,PCC,Housing Revenue Account,Special Services,"Housing, Neighbourhood and Building Services",Premises-Related Expenditure,Energy costs,03-Sep-21,6526478,64.08,LIMITED COMPANY,CONTRACT NATURAL GAS LTD,300000020484079
Portsmouth City Council,PCC,Housing Revenue Account,Special Services,"Housing, Neighbourhood and Building Services",Premises-Related Expenditure,Energy costs,03-Sep-21,6526478,26.04,LIMITED COMPANY,CONTRACT NATURAL GAS LTD,300000020484079
Portsmouth City Council,PCC,Housing Revenue Account,Special Services,"Housing, Neighbourhood and Building Services",Premises-Related Expenditure,Energy costs,03-Sep-21,6526478,2.79,LIMITED COMPANY,CONTRACT NATURAL GAS LTD,300000020484079
Portsmouth City Council,PCC,Adult Social Care,Support with Memory and Cognition Older People (65 - 74),Adult Services,Premises-Related Expenditure,Energy costs,03-Sep-21,6526478,687.8,LIMITED COMPANY,CONTRACT NATURAL GAS LTD,300000020484079
Portsmouth City Council,PCC,Other,Suspense and Capital Schemes,Portsmouth International Port,Premises-Related Expenditure,Energy costs,03-Sep-21,6526478,249.57,LIMITED COMPANY,CONTRACT NATURAL GAS LTD,300000020484079
Portsmouth City Council,PCC,Housing Revenue Account,Special Services,"Housing, Neighbourhood and Building Services",Premises-Related Expenditure,Energy costs,03-Sep-21,6526478,63.18,LIMITED COMPANY,CONTRACT NATURAL GAS LTD,300000020484079
Portsmouth City Council,PCC,Housing Revenue Account,Special Services,"Housing, Neighbourhood and Building Services",Premises-Related Expenditure,Energy costs,03-Sep-21,6526478,41.88,LIMITED COMPANY,CONTRACT NATURAL GAS LTD,300000020484079
Portsmouth City Council,PCC,Children's and Education Services,Primary Schools,Children's Services and Education,Premises-Related Expenditure,Energy costs,03-Sep-21,6526478,78.12,LIMITED COMPANY,CONTRACT NATURAL GAS LTD,300000020484079
Portsmouth City Council,PCC,Housing Revenue Account,Special Services,"Housing, Neighbourhood and Building Services",Premises-Related Expenditure,Energy costs,03-Sep-21,6526478,399.1,LIMITED COMPANY,CONTRACT NATURAL GAS LTD,300000020484079
Portsmouth City Council,PCC,Children's and Education Services,Primary Schools,Children's Services and Education,Premises-Related Expenditure,Energy costs,03-Sep-21,6526478,72.74,LIMITED COMPANY,CONTRACT NATURAL GAS LTD,300000020484079
Portsmouth City Council,PCC,Housing Revenue Account,Special Services,"Housing, Neighbourhood and Building Services",Premises-Related Expenditure,Energy costs,03-Sep-21,6526478,19.58,LIMITED COMPANY,CONTRACT NATURAL GAS LTD,300000020484079
Portsmouth City Council,PCC,Housing Revenue Account,Special Services,"Housing, Neighbourhood and Building Services",Premises-Related Expenditure,Energy costs,03-Sep-21,6526478,557.09,LIMITED COMPANY,CONTRACT NATURAL GAS LTD,300000020484079
Portsmouth City Council,PCC,Housing Revenue Account,Special Services,"Housing, Neighbourhood and Building Services",Premises-Related Expenditure,Energy costs,03-Sep-21,6526478,2.48,LIMITED COMPANY,CONTRACT NATURAL GAS LTD,300000020484079
Portsmouth City Council,PCC,Housing Revenue Account,Special Services,"Housing, Neighbourhood and Building Services",Premises-Related Expenditure,Energy costs,03-Sep-21,6526478,100.49,LIMITED COMPANY,CONTRACT NATURAL GAS LTD,300000020484079
Portsmouth City Council,PCC,Children's and Education Services,Primary Schools,Children's Services and Education,Premises-Related Expenditure,Energy costs,03-Sep-21,6526478,67.93,LIMITED COMPANY,CONTRACT NATURAL GAS LTD,300000020484079
Portsmouth City Council,PCC,Housing Revenue Account,Special Services,"Housing, Neighbourhood and Building Services",Premises-Related Expenditure,Energy costs,03-Sep-21,6526478,12.73,LIMITED COMPANY,CONTRACT NATURAL GAS LTD,300000020484079
Portsmouth City Council,PCC,Housing Revenue Account,"Rents, Rates, Taxes and Other Charges","Housing, Neighbourhood and Building Services",Premises-Related Expenditure,Energy costs,03-Sep-21,6526478,5.25,LIMITED COMPANY,CONTRACT NATURAL GAS LTD,300000020484079
Portsmouth City Council,PCC,Housing Revenue Account,Supervision and Management,"Housing, Neighbourhood and Building Services",Premises-Related Expenditure,Energy costs,03-Sep-21,6526478,43.68,LIMITED COMPANY,CONTRACT NATURAL GAS LTD,300000020484079
Portsmouth City Council,PCC,Children's and Education Services,Primary Schools,Children's Services and Education,Premises-Related Expenditure,Energy costs,03-Sep-21,6526478,229.75,LIMITED COMPANY,CONTRACT NATURAL GAS LTD,300000020484079
Portsmouth City Council,PCC,Adult Social Care,Physical Support Older People (65-74),Adult Services,Premises-Related Expenditure,Energy costs,03-Sep-21,6526478,33.45,LIMITED COMPANY,CONTRACT NATURAL GAS LTD,300000020484079
Portsmouth City Council,PCC,Housing Revenue Account,Special Services,"Housing, Neighbourhood and Building Services",Premises-Related Expenditure,Energy costs,03-Sep-21,6526478,12.27,LIMITED COMPANY,CONTRACT NATURAL GAS LTD,300000020484079
Portsmouth City Council,PCC,Housing Revenue Account,Special Services,"Housing, Neighbourhood and Building Services",Premises-Related Expenditure,Energy costs,03-Sep-21,6526478,19.21,LIMITED COMPANY,CONTRACT NATURAL GAS LTD,300000020484079
Portsmouth City Council,PCC,Housing Revenue Account,Special Services,"Housing, Neighbourhood and Building Services",Premises-Related Expenditure,Energy costs,03-Sep-21,6526478,2.64,LIMITED COMPANY,CONTRACT NATURAL GAS LTD,300000020484079
Portsmouth City Council,PCC,Children's and Education Services,Children Looked After,Children's Services and Education,Premises-Related Expenditure,Energy costs,03-Sep-21,6526478,151.63,LIMITED COMPANY,CONTRACT NATURAL GAS LTD,300000020484079
Portsmouth City Council,PCC,Housing Revenue Account,Special Services,"Housing, Neighbourhood and Building Services",Premises-Related Expenditure,Energy costs,03-Sep-21,6526478,4.34,LIMITED COMPANY,CONTRACT NATURAL GAS LTD,300000020484079
Portsmouth City Council,PCC,Support Service / Transparency Costs Unallocated,AMS,"Housing, Neighbourhood and Building Services",Premises-Related Expenditure,Energy costs,03-Sep-21,6526478,"4,497.20",LIMITED COMPANY,CONTRACT NATURAL GAS LTD,300000020484079
Portsmouth City Council,PCC,Children's and Education Services,Primary Schools,Children's Services and Education,Premises-Related Expenditure,Energy costs,03-Sep-21,6526478,363.51,LIMITED COMPANY,CONTRACT NATURAL GAS LTD,300000020484079
Portsmouth City Council,PCC,Children's and Education Services,Primary Schools,Children's Services and Education,Premises-Related Expenditure,Energy costs,03-Sep-21,6526478,156.01,LIMITED COMPANY,CONTRACT NATURAL GAS LTD,300000020484079
Portsmouth City Council,PCC,Housing Revenue Account,Special Services,"Housing, Neighbourhood and Building Services",Premises-Related Expenditure,Energy costs,03-Sep-21,6526478,20.98,LIMITED COMPANY,CONTRACT NATURAL GAS LTD,300000020484079
Portsmouth City Council,PCC,Children's and Education Services,Primary Schools,Children's Services and Education,Premises-Related Expenditure,Energy costs,03-Sep-21,6526478,163.14,LIMITED COMPANY,CONTRACT NATURAL GAS LTD,300000020484079
Portsmouth City Council,PCC,Housing Revenue Account,Supervision and Management,"Housing, Neighbourhood and Building Services",Premises-Related Expenditure,Energy costs,03-Sep-21,6526478,108.14,LIMITED COMPANY,CONTRACT NATURAL GAS LTD,300000020484079
Portsmouth City Council,PCC,Housing Revenue Account,Supervision and Management,"Housing, Neighbourhood and Building Services",Premises-Related Expenditure,Energy costs,03-Sep-21,6526478,133.9,LIMITED COMPANY,CONTRACT NATURAL GAS LTD,300000020484079
Portsmouth City Council,PCC,Housing Revenue Account,Special Services,"Housing, Neighbourhood and Building Services",Premises-Related Expenditure,Energy costs,03-Sep-21,6526478,32.24,LIMITED COMPANY,CONTRACT NATURAL GAS LTD,300000020484079
Portsmouth City Council,PCC,Housing Revenue Account,Special Services,"Housing, Neighbourhood and Building Services",Premises-Related Expenditure,Energy costs,03-Sep-21,6526478,47.98,LIMITED COMPANY,CONTRACT NATURAL GAS LTD,300000020484079
Portsmouth City Council,PCC,Housing Services,Homelessness,"Housing, Neighbourhood and Building Services",Premises-Related Expenditure,Energy costs,03-Sep-21,6526478,30.74,LIMITED COMPANY,CONTRACT NATURAL GAS LTD,300000020484079
Portsmouth City Council,PCC,Other,Suspense and Capital Schemes,"Housing, Neighbourhood and Building Services",Premises-Related Expenditure,Energy costs,03-Sep-21,6526478,11.79,LIMITED COMPANY,CONTRACT NATURAL GAS LTD,300000020484079
Portsmouth City Council,PCC,Other,Suspense and Capital Schemes,"Housing, Neighbourhood and Building Services",Premises-Related Expenditure,Energy costs,03-Sep-21,6526478,344.42,LIMITED COMPANY,CONTRACT NATURAL GAS LTD,300000020484079
Portsmouth City Council,PCC,Housing Revenue Account,Special Services,"Housing, Neighbourhood and Building Services",Premises-Related Expenditure,Energy costs,03-Sep-21,6526478,28.42,LIMITED COMPANY,CONTRACT NATURAL GAS LTD,300000020484079
Portsmouth City Council,PCC,Housing Revenue Account,Special Services,"Housing, Neighbourhood and Building Services",Premises-Related Expenditure,Energy costs,03-Sep-21,6526478,49.42,LIMITED COMPANY,CONTRACT NATURAL GAS LTD,300000020484079
Portsmouth City Council,PCC,Children's and Education Services,Primary Schools,Children's Services and Education,Premises-Related Expenditure,Energy costs,03-Sep-21,6526478,177.1,LIMITED COMPANY,CONTRACT NATURAL GAS LTD,300000020484079
Portsmouth City Council,PCC,Housing Revenue Account,Special Services,"Housing, Neighbourhood and Building Services",Premises-Related Expenditure,Energy costs,03-Sep-21,6526478,117.03,LIMITED COMPANY,CONTRACT NATURAL GAS LTD,300000020484079
Portsmouth City Council,PCC,Housing Revenue Account,Special Services,"Housing, Neighbourhood and Building Services",Premises-Related Expenditure,Energy costs,03-Sep-21,6526478,42.83,LIMITED COMPANY,CONTRACT NATURAL GAS LTD,300000020484079
Portsmouth City Council,PCC,Housing Revenue Account,Special Services,"Housing, Neighbourhood and Building Services",Premises-Related Expenditure,Energy costs,03-Sep-21,6526478,96.57,LIMITED COMPANY,CONTRACT NATURAL GAS LTD,300000020484079
Portsmouth City Council,PCC,Cultural and Related Services,Recreation and Sport,"Culture, Leisure & Regulatory Services",Premises-Related Expenditure,Energy costs,03-Sep-21,6526478,43.09,LIMITED COMPANY,CONTRACT NATURAL GAS LTD,300000020484079
Portsmouth City Council,PCC,Children's and Education Services,Primary Schools,Children's Services and Education,Premises-Related Expenditure,Energy costs,03-Sep-21,6526478,120.72,LIMITED COMPANY,CONTRACT NATURAL GAS LTD,300000020484079
Portsmouth City Council,PCC,Children's and Education Services,Primary Schools,Children's Services and Education,Premises-Related Expenditure,Energy costs,03-Sep-21,6526478,117.8,LIMITED COMPANY,CONTRACT NATURAL GAS LTD,300000020484079
Portsmouth City Council,PCC,Children's and Education Services,Secondary Schools,Children's Services and Education,Premises-Related Expenditure,Energy costs,03-Sep-21,6526478,54.85,LIMITED COMPANY,CONTRACT NATURAL GAS LTD,300000020484079
Portsmouth City Council,PCC,Children's and Education Services,Secondary Schools,Children's Services and Education,Premises-Related Expenditure,Energy costs,03-Sep-21,6526478,57.64,LIMITED COMPANY,CONTRACT NATURAL GAS LTD,300000020484079
Portsmouth City Council,PCC,Planning Services,Business support,Regeneration,Premises-Related Expenditure,Energy costs,03-Sep-21,6526478,16.43,LIMITED COMPANY,CONTRACT NATURAL GAS LTD,300000020484079
Portsmouth City Council,PCC,Planning Services,Business support,Regeneration,Premises-Related Expenditure,Energy costs,03-Sep-21,6526478,358.03,LIMITED COMPANY,CONTRACT NATURAL GAS LTD,300000020484079
Portsmouth City Council,PCC,Planning Services,Business support,Regeneration,Premises-Related Expenditure,Energy costs,03-Sep-21,6526478,126.17,LIMITED COMPANY,CONTRACT NATURAL GAS LTD,300000020484079
Portsmouth City Council,PCC,Children's and Education Services,Primary Schools,Children's Services and Education,Premises-Related Expenditure,Energy costs,03-Sep-21,6526478,36.82,LIMITED COMPANY,CONTRACT NATURAL GAS LTD,300000020484079
Portsmouth City Council,PCC,Children's and Education Services,Primary Schools,Children's Services and Education,Premises-Related Expenditure,Energy costs,03-Sep-21,6526478,168.43,LIMITED COMPANY,CONTRACT NATURAL GAS LTD,300000020484079
Portsmouth City Council,PCC,Children's and Education Services,Primary Schools,Children's Services and Education,Premises-Related Expenditure,Energy costs,03-Sep-21,6526478,149.63,LIMITED COMPANY,CONTRACT NATURAL GAS LTD,300000020484079
Portsmouth City Council,PCC,Cultural and Related Services,Library Service,"Culture, Leisure & Regulatory Services",Premises-Related Expenditure,Energy costs,03-Sep-21,6526478,106.04,LIMITED COMPANY,CONTRACT NATURAL GAS LTD,300000020484079
Portsmouth City Council,PCC,Children's and Education Services,Family Support Services,Children's Services and Education,Premises-Related Expenditure,Energy costs,03-Sep-21,6526478,128.09,LIMITED COMPANY,CONTRACT NATURAL GAS LTD,300000020484079
Portsmouth City Council,PCC,Housing Revenue Account,Special Services,"Housing, Neighbourhood and Building Services",Premises-Related Expenditure,Energy costs,03-Sep-21,6526478,338.08,LIMITED COMPANY,CONTRACT NATURAL GAS LTD,300000020484079
Portsmouth City Council,PCC,Housing Revenue Account,Special Services,"Housing, Neighbourhood and Building Services",Premises-Related Expenditure,Energy costs,03-Sep-21,6526478,78.92,LIMITED COMPANY,CONTRACT NATURAL GAS LTD,300000020484079
Portsmouth City Council,PCC,Adult Social Care,Learning Disability Support Adults (18 - 64),Adult Services,Premises-Related Expenditure,Energy costs,03-Sep-21,6526478,100.36,LIMITED COMPANY,CONTRACT NATURAL GAS LTD,300000020484079
Portsmouth City Council,PCC,Cultural and Related Services,Culture and Heritage,"Culture, Leisure & Regulatory Services",Premises-Related Expenditure,Energy costs,03-Sep-21,6526478,2.48,LIMITED COMPANY,CONTRACT NATURAL GAS LTD,300000020484079
Portsmouth City Council,PCC,Central Services,"Registration of Births, Deaths and Marriages","Culture, Leisure & Regulatory Services",Premises-Related Expenditure,Energy costs,03-Sep-21,6526478,54.56,LIMITED COMPANY,CONTRACT NATURAL GAS LTD,300000020484079
Portsmouth City Council,PCC,Children's and Education Services,Primary Schools,Children's Services and Education,Premises-Related Expenditure,Energy costs,03-Sep-21,6526478,245.24,LIMITED COMPANY,CONTRACT NATURAL GAS LTD,300000020484079
Portsmouth City Council,PCC,Other,Suspense and Capital Schemes,Capital - Housing General Fund,Capital Charges,Capital Expenditure (WIP),03-Sep-21,6526478,31.93,LIMITED COMPANY,CONTRACT NATURAL GAS LTD,300000020484079
Portsmouth City Council,PCC,Housing Revenue Account,Special Services,"Housing, Neighbourhood and Building Services",Premises-Related Expenditure,Energy costs,03-Sep-21,6526478,67.46,LIMITED COMPANY,CONTRACT NATURAL GAS LTD,300000020484079
Portsmouth City Council,PCC,Children's and Education Services,Primary Schools,Children's Services and Education,Premises-Related Expenditure,Energy costs,03-Sep-21,6526478,107.19,LIMITED COMPANY,CONTRACT NATURAL GAS LTD,300000020484079
Portsmouth City Council,PCC,Costs below Net Cost of Services,Trading,Regeneration,Premises-Related Expenditure,Energy costs,03-Sep-21,6526478,41.17,LIMITED COMPANY,CONTRACT NATURAL GAS LTD,300000020484079
Portsmouth City Council,PCC,Housing Revenue Account,Special Services,"Housing, Neighbourhood and Building Services",Premises-Related Expenditure,Energy costs,03-Sep-21,6526478,196.09,LIMITED COMPANY,CONTRACT NATURAL GAS LTD,300000020484079
Portsmouth City Council,PCC,Children's and Education Services,Family Support Services,Children's Services and Education,Premises-Related Expenditure,Energy costs,03-Sep-21,6526478,178.05,LIMITED COMPANY,CONTRACT NATURAL GAS LTD,300000020484079
Portsmouth City Council,PCC,Children's and Education Services,Primary Schools,Children's Services and Education,Premises-Related Expenditure,Energy costs,03-Sep-21,6526478,84.32,LIMITED COMPANY,CONTRACT NATURAL GAS LTD,300000020484079
Portsmouth City Council,PCC,Children's and Education Services,Primary Schools,Children's Services and Education,Premises-Related Expenditure,Energy costs,03-Sep-21,6526478,22.96,LIMITED COMPANY,CONTRACT NATURAL GAS LTD,300000020484079
Portsmouth City Council,PCC,Children's and Education Services,Primary Schools,Children's Services and Education,Premises-Related Expenditure,Energy costs,03-Sep-21,6526478,107.41,LIMITED COMPANY,CONTRACT NATURAL GAS LTD,300000020484079
Portsmouth City Council,PCC,Children's and Education Services,Primary Schools,Children's Services and Education,Premises-Related Expenditure,Energy costs,03-Sep-21,6526478,9.3,LIMITED COMPANY,CONTRACT NATURAL GAS LTD,300000020484079
Portsmouth City Council,PCC,Children's and Education Services,Primary Schools,Children's Services and Education,Premises-Related Expenditure,Energy costs,03-Sep-21,6526478,21.75,LIMITED COMPANY,CONTRACT NATURAL GAS LTD,300000020484079
Portsmouth City Council,PCC,Children's and Education Services,Secondary Schools,Children's Services and Education,Premises-Related Expenditure,Energy costs,03-Sep-21,6526478,18.51,LIMITED COMPANY,CONTRACT NATURAL GAS LTD,300000020484079
Portsmouth City Council,PCC,Children's and Education Services,Secondary Schools,Children's Services and Education,Premises-Related Expenditure,Energy costs,03-Sep-21,6526478,292.18,LIMITED COMPANY,CONTRACT NATURAL GAS LTD,300000020484079
Portsmouth City Council,PCC,Planning Services,Business support,Regeneration,Premises-Related Expenditure,Energy costs,03-Sep-21,6526478,"3,086.28",LIMITED COMPANY,CONTRACT NATURAL GAS LTD,300000020484079
Portsmouth City Council,PCC,Housing Revenue Account,Special Services,"Housing, Neighbourhood and Building Services",Premises-Related Expenditure,Energy costs,03-Sep-21,6526478,9.68,LIMITED COMPANY,CONTRACT NATURAL GAS LTD,300000020484079
Portsmouth City Council,PCC,Children's and Education Services,Primary Schools,Children's Services and Education,Premises-Related Expenditure,Energy costs,03-Sep-21,6526478,14.9,LIMITED COMPANY,CONTRACT NATURAL GAS LTD,300000020484079
Portsmouth City Council,PCC,Housing Revenue Account,Special Services,"Housing, Neighbourhood and Building Services",Premises-Related Expenditure,Energy costs,03-Sep-21,6526478,56.85,LIMITED COMPANY,CONTRACT NATURAL GAS LTD,300000020484079
Portsmouth City Council,PCC,Highways and Transport Services,"Airports, Harbours and Toll Facilities",Portsmouth International Port,Premises-Related Expenditure,Energy costs,03-Sep-21,6526478,2.48,LIMITED COMPANY,CONTRACT NATURAL GAS LTD,300000020484079
Portsmouth City Council,PCC,Children's and Education Services,Primary Schools,Children's Services and Education,Premises-Related Expenditure,Energy costs,03-Sep-21,6526478,159.03,LIMITED COMPANY,CONTRACT NATURAL GAS LTD,300000020484079
Portsmouth City Council,PCC,Children's and Education Services,Primary Schools,Children's Services and Education,Premises-Related Expenditure,Energy costs,03-Sep-21,6526478,16.14,LIMITED COMPANY,CONTRACT NATURAL GAS LTD,300000020484079
Portsmouth City Council,PCC,Housing Revenue Account,Special Services,"Housing, Neighbourhood and Building Services",Premises-Related Expenditure,Energy costs,03-Sep-21,6526478,37.44,LIMITED COMPANY,CONTRACT NATURAL GAS LTD,300000020484079
Portsmouth City Council,PCC,Housing Services,Homelessness,"Housing, Neighbourhood and Building Services",Premises-Related Expenditure,Energy costs,03-Sep-21,6526478,34,LIMITED COMPANY,CONTRACT NATURAL GAS LTD,300000020484079
Portsmouth City Council,PCC,Adult Social Care,Information and Early Intervention,Adult Services,Premises-Related Expenditure,Energy costs,03-Sep-21,6526478,31.93,LIMITED COMPANY,CONTRACT NATURAL GAS LTD,300000020484079
Portsmouth City Council,PCC,Housing Revenue Account,Special Services,"Housing, Neighbourhood and Building Services",Premises-Related Expenditure,Energy costs,03-Sep-21,6526478,-223.05,LIMITED COMPANY,CONTRACT NATURAL GAS LTD,300000020484079
Portsmouth City Council,PCC,Children's and Education Services,Primary Schools,Children's Services and Education,Premises-Related Expenditure,Energy costs,03-Sep-21,6526478,149.67,LIMITED COMPANY,CONTRACT NATURAL GAS LTD,300000020484079
Portsmouth City Council,PCC,Adult Social Care,Social Care Activities,Adult Services,Premises-Related Expenditure,Energy costs,03-Sep-21,6526478,427.87,LIMITED COMPANY,CONTRACT NATURAL GAS LTD,300000020484079
Portsmouth City Council,PCC,Children's and Education Services,Children Looked After,Children's Services and Education,Premises-Related Expenditure,Energy costs,03-Sep-21,6526478,49.48,LIMITED COMPANY,CONTRACT NATURAL GAS LTD,300000020484079
Portsmouth City Council,PCC,Housing Revenue Account,Special Services,"Housing, Neighbourhood and Building Services",Premises-Related Expenditure,Energy costs,03-Sep-21,6526478,73.63,LIMITED COMPANY,CONTRACT NATURAL GAS LTD,300000020484079
Portsmouth City Council,PCC,Environmental and Regulatory Services,"Cemetery, Cremation and Mortuary Services","Culture, Leisure & Regulatory Services",Premises-Related Expenditure,Energy costs,03-Sep-21,6526478,49.02,LIMITED COMPANY,CONTRACT NATURAL GAS LTD,300000020484079
Portsmouth City Council,PCC,Cultural and Related Services,Library Service,"Culture, Leisure & Regulatory Services",Premises-Related Expenditure,Energy costs,03-Sep-21,6526478,30.25,LIMITED COMPANY,CONTRACT NATURAL GAS LTD,300000020484079
Portsmouth City Council,PCC,Cultural and Related Services,Library Service,"Culture, Leisure & Regulatory Services",Premises-Related Expenditure,Energy costs,03-Sep-21,6526478,2.48,LIMITED COMPANY,CONTRACT NATURAL GAS LTD,300000020484079
Portsmouth City Council,PCC,Costs below Net Cost of Services,Trading,Regeneration,Premises-Related Expenditure,Energy costs,03-Sep-21,6526478,2.48,LIMITED COMPANY,CONTRACT NATURAL GAS LTD,300000020484079
Portsmouth City Council,PCC,Cultural and Related Services,Library Service,"Culture, Leisure & Regulatory Services",Premises-Related Expenditure,Energy costs,03-Sep-21,6526478,68.31,LIMITED COMPANY,CONTRACT NATURAL GAS LTD,300000020484079
Portsmouth City Council,PCC,Support Service / Transparency Costs Unallocated,Financial Services,Finance & Resources,Supplies and Services,Services,20-Sep-21,6529098,644.17,PRIVATE PROVIDER,CLIENT RBS PAYMENT,300000164540316
Portsmouth City Council,PCC,Housing Revenue Account,"Rents, Rates, Taxes and Other Charges","Housing, Neighbourhood and Building Services",Premises-Related Expenditure,Rates,24-Sep-21,6530242,134,OTHER LOCAL AUTHORITY,HAVANT BOROUGH COUNCIL,300000020457057
Portsmouth City Council,PCC,Children's and Education Services,Children Looked After,Children's Services and Education,Third Party Payments,Other establishments,02-Sep-21,6526370,825,SUPPLIER,PARTNERSHIP PROJECTS (UK) LTD,300000020482465
Portsmouth City Council,PCC,Children's and Education Services,Children Looked After,Children's Services and Education,Third Party Payments,Other establishments,07-Sep-21,6526713,-120.58,SUPPLIER,FAIRWAYS CARE (UK) LTD,300000020459125
Portsmouth City Council,PCC,Children's and Education Services,Children Looked After,Children's Services and Education,Third Party Payments,Other establishments,07-Sep-21,6526713,"2,992.86",SUPPLIER,FAIRWAYS CARE (UK) LTD,300000020459125
Portsmouth City Council,PCC,Children's and Education Services,Children Looked After,Children's Services and Education,Third Party Payments,Other establishments,07-Sep-21,6526713,"3,591.43",SUPPLIER,FAIRWAYS CARE (UK) LTD,300000020459125
Portsmouth City Council,PCC,Children's and Education Services,Safeguarding Children and Young Peoples Services,Children's Services and Education,Third Party Payments,Other establishments,07-Sep-21,6526782,53.57,SUPPLIER,LILIAN DAVIS GROUP LTD,300000020467263
Portsmouth City Council,PCC,Children's and Education Services,Safeguarding Children and Young Peoples Services,Children's Services and Education,Third Party Payments,Other establishments,07-Sep-21,6526782,500,SUPPLIER,LILIAN DAVIS GROUP LTD,300000020467263
Portsmouth City Council,PCC,Children's and Education Services,Safeguarding Children and Young Peoples Services,Children's Services and Education,Third Party Payments,Other establishments,07-Sep-21,6526782,186.43,SUPPLIER,LILIAN DAVIS GROUP LTD,300000020467263
Portsmouth City Council,PCC,Children's and Education Services,Safeguarding Children and Young Peoples Services,Children's Services and Education,Third Party Payments,Other establishments,07-Sep-21,6526782,"1,740.00",SUPPLIER,LILIAN DAVIS GROUP LTD,300000020467263
Portsmouth City Council,PCC,Adult Social Care,Physical Support Older People (85+),Adult Services,Third Party Payments,Other establishments,03-Sep-21,6526486,-354.78,SUPPLIER,FOUR DOZEN LIMITED T/A BLUEBIRD CARE,300000020476760
Portsmouth City Council,PCC,Adult Social Care,Physical Support Older People (85+),Adult Services,Third Party Payments,Other establishments,03-Sep-21,6526486,-262.48,SUPPLIER,FOUR DOZEN LIMITED T/A BLUEBIRD CARE,300000020476760
Portsmouth City Council,PCC,Children's and Education Services,Children Looked After,Children's Services and Education,Third Party Payments,Other establishments,09-Sep-21,6527470,"-8,680.00",SUPPLIER,AMBERLEIGH CARE LIMITED,300000020471653
Portsmouth City Council,PCC,Children's and Education Services,Children Looked After,Children's Services and Education,Third Party Payments,Other establishments,09-Sep-21,6527470,"2,967.00",SUPPLIER,AMBERLEIGH CARE LIMITED,300000020471653
Portsmouth City Council,PCC,Children's and Education Services,Children Looked After,Children's Services and Education,Third Party Payments,Other establishments,09-Sep-21,6527470,"27,692.00",SUPPLIER,AMBERLEIGH CARE LIMITED,300000020471653
Portsmouth City Council,PCC,Children's and Education Services,Children Looked After,Children's Services and Education,Third Party Payments,Other establishments,09-Sep-21,6527416,314.56,SUPPLIER,FAIRWAYS CARE (UK) LTD,300000020459125
Portsmouth City Council,PCC,Children's and Education Services,Children Looked After,Children's Services and Education,Third Party Payments,Other establishments,09-Sep-21,6527416,"1,887.35",SUPPLIER,FAIRWAYS CARE (UK) LTD,300000020459125
Portsmouth City Council,PCC,Children's and Education Services,Children Looked After,Children's Services and Education,Third Party Payments,Other establishments,09-Sep-21,6527416,"2,201.91",SUPPLIER,FAIRWAYS CARE (UK) LTD,300000020459125
Portsmouth City Council,PCC,Children's and Education Services,Children Looked After,Children's Services and Education,Third Party Payments,Other establishments,01-Sep-21,6526037,105,SUPPLIER,SAKURA CARE LIMITED,300000020469343
Portsmouth City Council,PCC,Children's and Education Services,Children Looked After,Children's Services and Education,Third Party Payments,Other establishments,02-Sep-21,6526348,"2,796.40",SUPPLIER,SERENITY WELFARE LIMITED,300000020478451
Portsmouth City Council,PCC,Children's and Education Services,Children Looked After,Children's Services and Education,Third Party Payments,Other establishments,09-Sep-21,6527418,-36.89,SUPPLIER,CORE ASSETS GROUP,300000020461175
Portsmouth City Council,PCC,Children's and Education Services,Children Looked After,Children's Services and Education,Third Party Payments,Other establishments,09-Sep-21,6527418,357,SUPPLIER,CORE ASSETS GROUP,300000020461175
Portsmouth City Council,PCC,Children's and Education Services,Children Looked After,Children's Services and Education,Third Party Payments,Other establishments,09-Sep-21,6527418,"3,332.00",SUPPLIER,CORE ASSETS GROUP,300000020461175
Portsmouth City Council,PCC,Children's and Education Services,Children Looked After,Children's Services and Education,Third Party Payments,Other establishments,09-Sep-21,6527418,616.89,SUPPLIER,CORE ASSETS GROUP,300000020461175
Portsmouth City Council,PCC,Children's and Education Services,Children Looked After,Children's Services and Education,Third Party Payments,Other establishments,09-Sep-21,6527418,"5,757.64",SUPPLIER,CORE ASSETS GROUP,300000020461175
Portsmouth City Council,PCC,Housing Revenue Account,Supervision and Management,"Housing, Neighbourhood and Building Services",Premises-Related Expenditure,Energy costs,10-Sep-21,6527533,516.73,PUBLIC LIMITED COMPANY,EDF ENERGY CUSTOMERS PLC,300000020460069
Portsmouth City Council,PCC,Cultural and Related Services,Library Service,"Culture, Leisure & Regulatory Services",Premises-Related Expenditure,Energy costs,10-Sep-21,6527533,"1,767.64",PUBLIC LIMITED COMPANY,EDF ENERGY CUSTOMERS PLC,300000020460069
Portsmouth City Council,PCC,Cultural and Related Services,Recreation and Sport,"Culture, Leisure & Regulatory Services",Premises-Related Expenditure,Energy costs,10-Sep-21,6527533,"6,479.99",PUBLIC LIMITED COMPANY,EDF ENERGY CUSTOMERS PLC,300000020460069
Portsmouth City Council,PCC,Planning Services,Business support,Regeneration,Premises-Related Expenditure,Energy costs,10-Sep-21,6527533,223.69,PUBLIC LIMITED COMPANY,EDF ENERGY CUSTOMERS PLC,300000020460069
Portsmouth City Council,PCC,Cultural and Related Services,Recreation and Sport,"Culture, Leisure & Regulatory Services",Premises-Related Expenditure,Energy costs,10-Sep-21,6527533,"-6,464.45",PUBLIC LIMITED COMPANY,EDF ENERGY CUSTOMERS PLC,300000020460069
Portsmouth City Council,PCC,Children's and Education Services,Secondary Schools,Children's Services and Education,Premises-Related Expenditure,Energy costs,10-Sep-21,6527533,"-4,523.40",PUBLIC LIMITED COMPANY,EDF ENERGY CUSTOMERS PLC,300000020460069
Portsmouth City Council,PCC,Other,Suspense and Capital Schemes,Capital - Housing General Fund,Capital Charges,Capital Expenditure (WIP),10-Sep-21,6527533,259.75,PUBLIC LIMITED COMPANY,EDF ENERGY CUSTOMERS PLC,300000020460069
Portsmouth City Council,PCC,Housing Revenue Account,Supervision and Management,"Housing, Neighbourhood and Building Services",Premises-Related Expenditure,Energy costs,10-Sep-21,6527533,"-5,679.15",PUBLIC LIMITED COMPANY,EDF ENERGY CUSTOMERS PLC,300000020460069
Portsmouth City Council,PCC,Housing Revenue Account,Supervision and Management,"Housing, Neighbourhood and Building Services",Premises-Related Expenditure,Energy costs,10-Sep-21,6527533,533.57,PUBLIC LIMITED COMPANY,EDF ENERGY CUSTOMERS PLC,300000020460069
Portsmouth City Council,PCC,Highways and Transport Services,Parking Services,Regeneration,Premises-Related Expenditure,Energy costs,10-Sep-21,6527533,966.48,PUBLIC LIMITED COMPANY,EDF ENERGY CUSTOMERS PLC,300000020460069
Portsmouth City Council,PCC,Housing Revenue Account,Special Services,"Housing, Neighbourhood and Building Services",Premises-Related Expenditure,Energy costs,10-Sep-21,6527533,"1,146.66",PUBLIC LIMITED COMPANY,EDF ENERGY CUSTOMERS PLC,300000020460069
Portsmouth City Council,PCC,Housing Revenue Account,Special Services,"Housing, Neighbourhood and Building Services",Premises-Related Expenditure,Energy costs,10-Sep-21,6527533,"1,193.04",PUBLIC LIMITED COMPANY,EDF ENERGY CUSTOMERS PLC,300000020460069
Portsmouth City Council,PCC,Cultural and Related Services,Recreation and Sport,"Culture, Leisure & Regulatory Services",Premises-Related Expenditure,Energy costs,10-Sep-21,6527533,"-11,029.57",PUBLIC LIMITED COMPANY,EDF ENERGY CUSTOMERS PLC,300000020460069
Portsmouth City Council,PCC,Cultural and Related Services,Recreation and Sport,"Culture, Leisure & Regulatory Services",Premises-Related Expenditure,Energy costs,10-Sep-21,6527533,"11,029.58",PUBLIC LIMITED COMPANY,EDF ENERGY CUSTOMERS PLC,300000020460069
Portsmouth City Council,PCC,Cultural and Related Services,Recreation and Sport,"Culture, Leisure & Regulatory Services",Premises-Related Expenditure,Energy costs,10-Sep-21,6527533,"18,531.25",PUBLIC LIMITED COMPANY,EDF ENERGY CUSTOMERS PLC,300000020460069
Portsmouth City Council,PCC,Housing Revenue Account,Supervision and Management,"Housing, Neighbourhood and Building Services",Premises-Related Expenditure,Energy costs,10-Sep-21,6527533,"5,677.77",PUBLIC LIMITED COMPANY,EDF ENERGY CUSTOMERS PLC,300000020460069
Portsmouth City Council,PCC,Children's and Education Services,Secondary Schools,Children's Services and Education,Premises-Related Expenditure,Energy costs,10-Sep-21,6527533,"3,802.81",PUBLIC LIMITED COMPANY,EDF ENERGY CUSTOMERS PLC,300000020460069
Portsmouth City Council,PCC,Costs below Net Cost of Services,Trading,Regeneration,Premises-Related Expenditure,Energy costs,10-Sep-21,6527533,13.31,PUBLIC LIMITED COMPANY,EDF ENERGY CUSTOMERS PLC,300000020460069
Portsmouth City Council,PCC,Planning Services,Business support,Regeneration,Premises-Related Expenditure,Energy costs,10-Sep-21,6527533,-259.76,PUBLIC LIMITED COMPANY,EDF ENERGY CUSTOMERS PLC,300000020460069
Portsmouth City Council,PCC,Planning Services,Business support,Regeneration,Premises-Related Expenditure,Energy costs,10-Sep-21,6527533,259.77,PUBLIC LIMITED COMPANY,EDF ENERGY CUSTOMERS PLC,300000020460069
Portsmouth City Council,PCC,Housing Revenue Account,Special Services,"Housing, Neighbourhood and Building Services",Premises-Related Expenditure,Energy costs,10-Sep-21,6527533,101.75,PUBLIC LIMITED COMPANY,EDF ENERGY CUSTOMERS PLC,300000020460069
Portsmouth City Council,PCC,Children's and Education Services,Children Looked After,Children's Services and Education,Premises-Related Expenditure,Energy costs,10-Sep-21,6527533,267.66,PUBLIC LIMITED COMPANY,EDF ENERGY CUSTOMERS PLC,300000020460069
Portsmouth City Council,PCC,Adult Social Care,Support with Memory and Cognition Older People (65 - 74),Adult Services,Premises-Related Expenditure,Energy costs,10-Sep-21,6527533,"-3,972.17",PUBLIC LIMITED COMPANY,EDF ENERGY CUSTOMERS PLC,300000020460069
Portsmouth City Council,PCC,Housing Revenue Account,Special Services,"Housing, Neighbourhood and Building Services",Premises-Related Expenditure,Energy costs,10-Sep-21,6527533,562.25,PUBLIC LIMITED COMPANY,EDF ENERGY CUSTOMERS PLC,300000020460069
Portsmouth City Council,PCC,Housing Revenue Account,Special Services,"Housing, Neighbourhood and Building Services",Premises-Related Expenditure,Energy costs,10-Sep-21,6527533,530.04,PUBLIC LIMITED COMPANY,EDF ENERGY CUSTOMERS PLC,300000020460069
Portsmouth City Council,PCC,Housing Revenue Account,Special Services,"Housing, Neighbourhood and Building Services",Premises-Related Expenditure,Energy costs,10-Sep-21,6527533,697.58,PUBLIC LIMITED COMPANY,EDF ENERGY CUSTOMERS PLC,300000020460069
Portsmouth City Council,PCC,Highways and Transport Services,Parking Services,Regeneration,Premises-Related Expenditure,Energy costs,10-Sep-21,6527533,-447.6,PUBLIC LIMITED COMPANY,EDF ENERGY CUSTOMERS PLC,300000020460069
Portsmouth City Council,PCC,Highways and Transport Services,Parking Services,Regeneration,Premises-Related Expenditure,Energy costs,10-Sep-21,6527533,447.64,PUBLIC LIMITED COMPANY,EDF ENERGY CUSTOMERS PLC,300000020460069
Portsmouth City Council,PCC,Highways and Transport Services,Parking Services,Regeneration,Premises-Related Expenditure,Energy costs,10-Sep-21,6527533,461.67,PUBLIC LIMITED COMPANY,EDF ENERGY CUSTOMERS PLC,300000020460069
Portsmouth City Council,PCC,Housing Revenue Account,Supervision and Management,"Housing, Neighbourhood and Building Services",Premises-Related Expenditure,Energy costs,10-Sep-21,6527533,9.95,PUBLIC LIMITED COMPANY,EDF ENERGY CUSTOMERS PLC,300000020460069
Portsmouth City Council,PCC,Highways and Transport Services,Parking Services,Regeneration,Premises-Related Expenditure,Energy costs,10-Sep-21,6527533,686.81,PUBLIC LIMITED COMPANY,EDF ENERGY CUSTOMERS PLC,300000020460069
Portsmouth City Council,PCC,Adult Social Care,Social Care Activities,Adult Services,Premises-Related Expenditure,Energy costs,10-Sep-21,6527533,-378,PUBLIC LIMITED COMPANY,EDF ENERGY CUSTOMERS PLC,300000020460069
Portsmouth City Council,PCC,Adult Social Care,Social Care Activities,Adult Services,Premises-Related Expenditure,Energy costs,10-Sep-21,6527533,378.06,PUBLIC LIMITED COMPANY,EDF ENERGY CUSTOMERS PLC,300000020460069
Portsmouth City Council,PCC,Adult Social Care,Social Care Activities,Adult Services,Premises-Related Expenditure,Energy costs,10-Sep-21,6527533,382.17,PUBLIC LIMITED COMPANY,EDF ENERGY CUSTOMERS PLC,300000020460069
Portsmouth City Council,PCC,Adult Social Care,Support with Memory and Cognition Older People (65 - 74),Adult Services,Premises-Related Expenditure,Energy costs,10-Sep-21,6527533,"-2,194.63",PUBLIC LIMITED COMPANY,EDF ENERGY CUSTOMERS PLC,300000020460069
Portsmouth City Council,PCC,Adult Social Care,Support with Memory and Cognition Older People (65 - 74),Adult Services,Premises-Related Expenditure,Energy costs,10-Sep-21,6527533,"2,194.64",PUBLIC LIMITED COMPANY,EDF ENERGY CUSTOMERS PLC,300000020460069
Portsmouth City Council,PCC,Adult Social Care,Support with Memory and Cognition Older People (65 - 74),Adult Services,Premises-Related Expenditure,Energy costs,10-Sep-21,6527533,"2,303.72",PUBLIC LIMITED COMPANY,EDF ENERGY CUSTOMERS PLC,300000020460069
Portsmouth City Council,PCC,Children's and Education Services,Primary Schools,Children's Services and Education,Premises-Related Expenditure,Energy costs,10-Sep-21,6527533,"-1,412.55",PUBLIC LIMITED COMPANY,EDF ENERGY CUSTOMERS PLC,300000020460069
Portsmouth City Council,PCC,Children's and Education Services,Primary Schools,Children's Services and Education,Premises-Related Expenditure,Energy costs,10-Sep-21,6527533,"1,412.58",PUBLIC LIMITED COMPANY,EDF ENERGY CUSTOMERS PLC,300000020460069
Portsmouth City Council,PCC,Children's and Education Services,Primary Schools,Children's Services and Education,Premises-Related Expenditure,Energy costs,10-Sep-21,6527533,"1,283.94",PUBLIC LIMITED COMPANY,EDF ENERGY CUSTOMERS PLC,300000020460069
Portsmouth City Council,PCC,Housing Revenue Account,Special Services,"Housing, Neighbourhood and Building Services",Premises-Related Expenditure,Energy costs,10-Sep-21,6527533,98.89,PUBLIC LIMITED COMPANY,EDF ENERGY CUSTOMERS PLC,300000020460069
Portsmouth City Council,PCC,Housing Revenue Account,Supervision and Management,"Housing, Neighbourhood and Building Services",Premises-Related Expenditure,Energy costs,10-Sep-21,6527533,848.16,PUBLIC LIMITED COMPANY,EDF ENERGY CUSTOMERS PLC,300000020460069
Portsmouth City Council,PCC,Housing Revenue Account,Supervision and Management,"Housing, Neighbourhood and Building Services",Premises-Related Expenditure,Energy costs,10-Sep-21,6527533,-516.7,PUBLIC LIMITED COMPANY,EDF ENERGY CUSTOMERS PLC,300000020460069
Portsmouth City Council,PCC,Housing Revenue Account,Special Services,"Housing, Neighbourhood and Building Services",Premises-Related Expenditure,Energy costs,10-Sep-21,6527533,815.89,PUBLIC LIMITED COMPANY,EDF ENERGY CUSTOMERS PLC,300000020460069
Portsmouth City Council,PCC,Housing Revenue Account,"Rents, Rates, Taxes and Other Charges","Housing, Neighbourhood and Building Services",Premises-Related Expenditure,Energy costs,10-Sep-21,6527533,"-1,113.53",PUBLIC LIMITED COMPANY,EDF ENERGY CUSTOMERS PLC,300000020460069
Portsmouth City Council,PCC,Cultural and Related Services,Library Service,"Culture, Leisure & Regulatory Services",Premises-Related Expenditure,Energy costs,10-Sep-21,6527533,"5,979.65",PUBLIC LIMITED COMPANY,EDF ENERGY CUSTOMERS PLC,300000020460069
Portsmouth City Council,PCC,Adult Social Care,Learning Disability Support Adults (18 - 64),Adult Services,Premises-Related Expenditure,Energy costs,10-Sep-21,6527533,541.01,PUBLIC LIMITED COMPANY,EDF ENERGY CUSTOMERS PLC,300000020460069
Portsmouth City Council,PCC,Adult Social Care,Learning Disability Support Adults (18 - 64),Adult Services,Premises-Related Expenditure,Energy costs,10-Sep-21,6527533,524.56,PUBLIC LIMITED COMPANY,EDF ENERGY CUSTOMERS PLC,300000020460069
Portsmouth City Council,PCC,Highways and Transport Services,"Environment, Safety and Routine Maintenance",Regeneration,Premises-Related Expenditure,Energy costs,10-Sep-21,6527533,18.74,PUBLIC LIMITED COMPANY,EDF ENERGY CUSTOMERS PLC,300000020460069
Portsmouth City Council,PCC,Housing Revenue Account,Special Services,"Housing, Neighbourhood and Building Services",Premises-Related Expenditure,Energy costs,10-Sep-21,6527533,151.64,PUBLIC LIMITED COMPANY,EDF ENERGY CUSTOMERS PLC,300000020460069
Portsmouth City Council,PCC,Planning Services,Business support,Regeneration,Premises-Related Expenditure,Energy costs,10-Sep-21,6527533,"-2,886.44",PUBLIC LIMITED COMPANY,EDF ENERGY CUSTOMERS PLC,300000020460069
Portsmouth City Council,PCC,Highways and Transport Services,Parking Services,Regeneration,Premises-Related Expenditure,Energy costs,10-Sep-21,6527533,989.82,PUBLIC LIMITED COMPANY,EDF ENERGY CUSTOMERS PLC,300000020460069
Portsmouth City Council,PCC,Adult Social Care,Learning Disability Support Adults (18 - 64),Adult Services,Premises-Related Expenditure,Energy costs,10-Sep-21,6527533,-541.03,PUBLIC LIMITED COMPANY,EDF ENERGY CUSTOMERS PLC,300000020460069
Portsmouth City Council,PCC,Housing Revenue Account,Supervision and Management,"Housing, Neighbourhood and Building Services",Premises-Related Expenditure,Energy costs,10-Sep-21,6527533,"-5,330.80",PUBLIC LIMITED COMPANY,EDF ENERGY CUSTOMERS PLC,300000020460069
Portsmouth City Council,PCC,Planning Services,Business support,Regeneration,Premises-Related Expenditure,Energy costs,10-Sep-21,6527533,"2,557.49",PUBLIC LIMITED COMPANY,EDF ENERGY CUSTOMERS PLC,300000020460069
Portsmouth City Council,PCC,Other,Suspense and Capital Schemes,Portsmouth International Port,Premises-Related Expenditure,Energy costs,10-Sep-21,6527533,"17,926.39",PUBLIC LIMITED COMPANY,EDF ENERGY CUSTOMERS PLC,300000020460069
Portsmouth City Council,PCC,Housing Revenue Account,"Rents, Rates, Taxes and Other Charges","Housing, Neighbourhood and Building Services",Premises-Related Expenditure,Energy costs,10-Sep-21,6527533,-483.33,PUBLIC LIMITED COMPANY,EDF ENERGY CUSTOMERS PLC,300000020460069
Portsmouth City Council,PCC,Planning Services,Business support,Regeneration,Premises-Related Expenditure,Energy costs,10-Sep-21,6527533,"2,886.46",PUBLIC LIMITED COMPANY,EDF ENERGY CUSTOMERS PLC,300000020460069
Portsmouth City Council,PCC,Cultural and Related Services,Library Service,"Culture, Leisure & Regulatory Services",Premises-Related Expenditure,Energy costs,10-Sep-21,6527533,"-4,891.64",PUBLIC LIMITED COMPANY,EDF ENERGY CUSTOMERS PLC,300000020460069
Portsmouth City Council,PCC,Housing Revenue Account,"Rents, Rates, Taxes and Other Charges","Housing, Neighbourhood and Building Services",Premises-Related Expenditure,Energy costs,10-Sep-21,6527533,"1,113.55",PUBLIC LIMITED COMPANY,EDF ENERGY CUSTOMERS PLC,300000020460069
Portsmouth City Council,PCC,Housing Revenue Account,"Rents, Rates, Taxes and Other Charges","Housing, Neighbourhood and Building Services",Premises-Related Expenditure,Energy costs,10-Sep-21,6527533,483.36,PUBLIC LIMITED COMPANY,EDF ENERGY CUSTOMERS PLC,300000020460069
Portsmouth City Council,PCC,Housing Revenue Account,"Rents, Rates, Taxes and Other Charges","Housing, Neighbourhood and Building Services",Premises-Related Expenditure,Energy costs,10-Sep-21,6527533,534.81,PUBLIC LIMITED COMPANY,EDF ENERGY CUSTOMERS PLC,300000020460069
Portsmouth City Council,PCC,Support Service / Transparency Costs Unallocated,AMS,"Housing, Neighbourhood and Building Services",Premises-Related Expenditure,Energy costs,10-Sep-21,6527533,"-34,436.01",PUBLIC LIMITED COMPANY,EDF ENERGY CUSTOMERS PLC,300000020460069
Portsmouth City Council,PCC,Support Service / Transparency Costs Unallocated,AMS,"Housing, Neighbourhood and Building Services",Premises-Related Expenditure,Energy costs,10-Sep-21,6527533,"34,436.02",PUBLIC LIMITED COMPANY,EDF ENERGY CUSTOMERS PLC,300000020460069
Portsmouth City Council,PCC,Support Service / Transparency Costs Unallocated,AMS,"Housing, Neighbourhood and Building Services",Premises-Related Expenditure,Energy costs,10-Sep-21,6527533,"40,758.34",PUBLIC LIMITED COMPANY,EDF ENERGY CUSTOMERS PLC,300000020460069
Portsmouth City Council,PCC,Planning Services,Business support,Regeneration,Premises-Related Expenditure,Energy costs,10-Sep-21,6527533,-132.31,PUBLIC LIMITED COMPANY,EDF ENERGY CUSTOMERS PLC,300000020460069
Portsmouth City Council,PCC,Housing Revenue Account,"Rents, Rates, Taxes and Other Charges","Housing, Neighbourhood and Building Services",Premises-Related Expenditure,Energy costs,10-Sep-21,6527533,"1,104.77",PUBLIC LIMITED COMPANY,EDF ENERGY CUSTOMERS PLC,300000020460069
Portsmouth City Council,PCC,Housing Revenue Account,Special Services,"Housing, Neighbourhood and Building Services",Premises-Related Expenditure,Energy costs,10-Sep-21,6527533,339.91,PUBLIC LIMITED COMPANY,EDF ENERGY CUSTOMERS PLC,300000020460069
Portsmouth City Council,PCC,Adult Social Care,Learning Disability Support Adults (18 - 64),Adult Services,Premises-Related Expenditure,Energy costs,10-Sep-21,6527533,-457.08,PUBLIC LIMITED COMPANY,EDF ENERGY CUSTOMERS PLC,300000020460069
Portsmouth City Council,PCC,Adult Social Care,Support with Memory and Cognition Older People (65 - 74),Adult Services,Premises-Related Expenditure,Energy costs,10-Sep-21,6527533,"3,972.20",PUBLIC LIMITED COMPANY,EDF ENERGY CUSTOMERS PLC,300000020460069
Portsmouth City Council,PCC,Adult Social Care,Support with Memory and Cognition Older People (65 - 74),Adult Services,Premises-Related Expenditure,Energy costs,10-Sep-21,6527533,"4,384.24",PUBLIC LIMITED COMPANY,EDF ENERGY CUSTOMERS PLC,300000020460069
Portsmouth City Council,PCC,Housing Revenue Account,Special Services,"Housing, Neighbourhood and Building Services",Premises-Related Expenditure,Energy costs,10-Sep-21,6527533,"-1,183.35",PUBLIC LIMITED COMPANY,EDF ENERGY CUSTOMERS PLC,300000020460069
Portsmouth City Council,PCC,Housing Revenue Account,Special Services,"Housing, Neighbourhood and Building Services",Premises-Related Expenditure,Energy costs,10-Sep-21,6527533,"1,183.38",PUBLIC LIMITED COMPANY,EDF ENERGY CUSTOMERS PLC,300000020460069
Portsmouth City Council,PCC,Housing Revenue Account,Special Services,"Housing, Neighbourhood and Building Services",Premises-Related Expenditure,Energy costs,10-Sep-21,6527533,"1,205.73",PUBLIC LIMITED COMPANY,EDF ENERGY CUSTOMERS PLC,300000020460069
Portsmouth City Council,PCC,Housing Revenue Account,Special Services,"Housing, Neighbourhood and Building Services",Premises-Related Expenditure,Energy costs,10-Sep-21,6527533,-374.72,PUBLIC LIMITED COMPANY,EDF ENERGY CUSTOMERS PLC,300000020460069
Portsmouth City Council,PCC,Housing Revenue Account,Special Services,"Housing, Neighbourhood and Building Services",Premises-Related Expenditure,Energy costs,10-Sep-21,6527533,374.71,PUBLIC LIMITED COMPANY,EDF ENERGY CUSTOMERS PLC,300000020460069
Portsmouth City Council,PCC,Housing Revenue Account,Special Services,"Housing, Neighbourhood and Building Services",Premises-Related Expenditure,Energy costs,10-Sep-21,6527533,430.09,PUBLIC LIMITED COMPANY,EDF ENERGY CUSTOMERS PLC,300000020460069
Portsmouth City Council,PCC,Costs below Net Cost of Services,Trading,Regeneration,Premises-Related Expenditure,Energy costs,10-Sep-21,6527533,-858.09,PUBLIC LIMITED COMPANY,EDF ENERGY CUSTOMERS PLC,300000020460069
Portsmouth City Council,PCC,Costs below Net Cost of Services,Trading,Regeneration,Premises-Related Expenditure,Energy costs,10-Sep-21,6527533,858.08,PUBLIC LIMITED COMPANY,EDF ENERGY CUSTOMERS PLC,300000020460069
Portsmouth City Council,PCC,Costs below Net Cost of Services,Trading,Regeneration,Premises-Related Expenditure,Energy costs,10-Sep-21,6527533,974.24,PUBLIC LIMITED COMPANY,EDF ENERGY CUSTOMERS PLC,300000020460069
Portsmouth City Council,PCC,Environmental and Regulatory Services,Community Safety (CCTV),"Housing, Neighbourhood and Building Services",Premises-Related Expenditure,Energy costs,10-Sep-21,6527533,"1,520.61",PUBLIC LIMITED COMPANY,EDF ENERGY CUSTOMERS PLC,300000020460069
Portsmouth City Council,PCC,Adult Social Care,Physical Support Older People (65-74),Adult Services,Premises-Related Expenditure,Energy costs,10-Sep-21,6527533,769.5,PUBLIC LIMITED COMPANY,EDF ENERGY CUSTOMERS PLC,300000020460069
Portsmouth City Council,PCC,Costs below Net Cost of Services,Trading,Regeneration,Premises-Related Expenditure,Energy costs,10-Sep-21,6527533,"-1,132.79",PUBLIC LIMITED COMPANY,EDF ENERGY CUSTOMERS PLC,300000020460069
Portsmouth City Council,PCC,Costs below Net Cost of Services,Trading,Regeneration,Premises-Related Expenditure,Energy costs,10-Sep-21,6527533,"1,132.78",PUBLIC LIMITED COMPANY,EDF ENERGY CUSTOMERS PLC,300000020460069
Portsmouth City Council,PCC,Costs below Net Cost of Services,Trading,Regeneration,Premises-Related Expenditure,Energy costs,10-Sep-21,6527533,"1,223.58",PUBLIC LIMITED COMPANY,EDF ENERGY CUSTOMERS PLC,300000020460069
Portsmouth City Council,PCC,Housing Revenue Account,Special Services,"Housing, Neighbourhood and Building Services",Premises-Related Expenditure,Energy costs,10-Sep-21,6527533,95.88,PUBLIC LIMITED COMPANY,EDF ENERGY CUSTOMERS PLC,300000020460069
Portsmouth City Council,PCC,Children's and Education Services,Primary Schools,Children's Services and Education,Premises-Related Expenditure,Energy costs,10-Sep-21,6527533,909.05,PUBLIC LIMITED COMPANY,EDF ENERGY CUSTOMERS PLC,300000020460069
Portsmouth City Council,PCC,Children's and Education Services,Secondary Schools,Children's Services and Education,Premises-Related Expenditure,Energy costs,10-Sep-21,6527533,"4,523.39",PUBLIC LIMITED COMPANY,EDF ENERGY CUSTOMERS PLC,300000020460069
Portsmouth City Council,PCC,Housing Revenue Account,Special Services,"Housing, Neighbourhood and Building Services",Premises-Related Expenditure,Energy costs,10-Sep-21,6527533,"1,272.28",PUBLIC LIMITED COMPANY,EDF ENERGY CUSTOMERS PLC,300000020460069
Portsmouth City Council,PCC,Cultural and Related Services,Culture and Heritage,"Culture, Leisure & Regulatory Services",Premises-Related Expenditure,Energy costs,10-Sep-21,6527533,"-1,647.75",PUBLIC LIMITED COMPANY,EDF ENERGY CUSTOMERS PLC,300000020460069
Portsmouth City Council,PCC,Cultural and Related Services,Culture and Heritage,"Culture, Leisure & Regulatory Services",Premises-Related Expenditure,Energy costs,10-Sep-21,6527533,"1,632.52",PUBLIC LIMITED COMPANY,EDF ENERGY CUSTOMERS PLC,300000020460069
Portsmouth City Council,PCC,Cultural and Related Services,Culture and Heritage,"Culture, Leisure & Regulatory Services",Premises-Related Expenditure,Energy costs,10-Sep-21,6527533,-767.9,PUBLIC LIMITED COMPANY,EDF ENERGY CUSTOMERS PLC,300000020460069
Portsmouth City Council,PCC,Cultural and Related Services,Culture and Heritage,"Culture, Leisure & Regulatory Services",Premises-Related Expenditure,Energy costs,10-Sep-21,6527533,764.71,PUBLIC LIMITED COMPANY,EDF ENERGY CUSTOMERS PLC,300000020460069
Portsmouth City Council,PCC,Cultural and Related Services,Culture and Heritage,"Culture, Leisure & Regulatory Services",Premises-Related Expenditure,Energy costs,10-Sep-21,6527533,-764.71,PUBLIC LIMITED COMPANY,EDF ENERGY CUSTOMERS PLC,300000020460069
Portsmouth City Council,PCC,Cultural and Related Services,Culture and Heritage,"Culture, Leisure & Regulatory Services",Premises-Related Expenditure,Energy costs,10-Sep-21,6527533,765.24,PUBLIC LIMITED COMPANY,EDF ENERGY CUSTOMERS PLC,300000020460069
Portsmouth City Council,PCC,Cultural and Related Services,Culture and Heritage,"Culture, Leisure & Regulatory Services",Premises-Related Expenditure,Energy costs,10-Sep-21,6527533,881.8,PUBLIC LIMITED COMPANY,EDF ENERGY CUSTOMERS PLC,300000020460069
Portsmouth City Council,PCC,Housing Revenue Account,Special Services,"Housing, Neighbourhood and Building Services",Premises-Related Expenditure,Energy costs,10-Sep-21,6527533,"1,935.35",PUBLIC LIMITED COMPANY,EDF ENERGY CUSTOMERS PLC,300000020460069
Portsmouth City Council,PCC,Housing Revenue Account,Special Services,"Housing, Neighbourhood and Building Services",Premises-Related Expenditure,Energy costs,10-Sep-21,6527533,"6,733.83",PUBLIC LIMITED COMPANY,EDF ENERGY CUSTOMERS PLC,300000020460069
Portsmouth City Council,PCC,Costs below Net Cost of Services,Trading,Regeneration,Premises-Related Expenditure,Energy costs,10-Sep-21,6527533,"-94,370.14",PUBLIC LIMITED COMPANY,EDF ENERGY CUSTOMERS PLC,300000020460069
Portsmouth City Council,PCC,Costs below Net Cost of Services,Trading,Regeneration,Premises-Related Expenditure,Energy costs,10-Sep-21,6527533,"94,370.17",PUBLIC LIMITED COMPANY,EDF ENERGY CUSTOMERS PLC,300000020460069
Portsmouth City Council,PCC,Costs below Net Cost of Services,Trading,Regeneration,Premises-Related Expenditure,Energy costs,10-Sep-21,6527533,"102,499.00",PUBLIC LIMITED COMPANY,EDF ENERGY CUSTOMERS PLC,300000020460069
Portsmouth City Council,PCC,Housing Revenue Account,Special Services,"Housing, Neighbourhood and Building Services",Premises-Related Expenditure,Energy costs,10-Sep-21,6527533,952.42,PUBLIC LIMITED COMPANY,EDF ENERGY CUSTOMERS PLC,300000020460069
Portsmouth City Council,PCC,Housing Revenue Account,Special Services,"Housing, Neighbourhood and Building Services",Premises-Related Expenditure,Energy costs,10-Sep-21,6527533,186.28,PUBLIC LIMITED COMPANY,EDF ENERGY CUSTOMERS PLC,300000020460069
Portsmouth City Council,PCC,Housing Revenue Account,Special Services,"Housing, Neighbourhood and Building Services",Premises-Related Expenditure,Energy costs,10-Sep-21,6527533,-608,PUBLIC LIMITED COMPANY,EDF ENERGY CUSTOMERS PLC,300000020460069
Portsmouth City Council,PCC,Housing Revenue Account,Special Services,"Housing, Neighbourhood and Building Services",Premises-Related Expenditure,Energy costs,10-Sep-21,6527533,608.03,PUBLIC LIMITED COMPANY,EDF ENERGY CUSTOMERS PLC,300000020460069
Portsmouth City Council,PCC,Housing Revenue Account,Special Services,"Housing, Neighbourhood and Building Services",Premises-Related Expenditure,Energy costs,10-Sep-21,6527533,682.1,PUBLIC LIMITED COMPANY,EDF ENERGY CUSTOMERS PLC,300000020460069
Portsmouth City Council,PCC,Housing Revenue Account,Special Services,"Housing, Neighbourhood and Building Services",Premises-Related Expenditure,Energy costs,10-Sep-21,6527533,33.31,PUBLIC LIMITED COMPANY,EDF ENERGY CUSTOMERS PLC,300000020460069
Portsmouth City Council,PCC,Costs below Net Cost of Services,Trading,Regeneration,Premises-Related Expenditure,Energy costs,10-Sep-21,6527533,"-1,411.33",PUBLIC LIMITED COMPANY,EDF ENERGY CUSTOMERS PLC,300000020460069
Portsmouth City Council,PCC,Costs below Net Cost of Services,Trading,Regeneration,Premises-Related Expenditure,Energy costs,10-Sep-21,6527533,"1,411.36",PUBLIC LIMITED COMPANY,EDF ENERGY CUSTOMERS PLC,300000020460069
Portsmouth City Council,PCC,Costs below Net Cost of Services,Trading,Regeneration,Premises-Related Expenditure,Energy costs,10-Sep-21,6527533,"1,255.15",PUBLIC LIMITED COMPANY,EDF ENERGY CUSTOMERS PLC,300000020460069
Portsmouth City Council,PCC,Housing Revenue Account,Special Services,"Housing, Neighbourhood and Building Services",Premises-Related Expenditure,Energy costs,10-Sep-21,6527533,-115.87,PUBLIC LIMITED COMPANY,EDF ENERGY CUSTOMERS PLC,300000020460069
Portsmouth City Council,PCC,Housing Revenue Account,Special Services,"Housing, Neighbourhood and Building Services",Premises-Related Expenditure,Energy costs,10-Sep-21,6527533,108.41,PUBLIC LIMITED COMPANY,EDF ENERGY CUSTOMERS PLC,300000020460069
Portsmouth City Council,PCC,Housing Revenue Account,Special Services,"Housing, Neighbourhood and Building Services",Premises-Related Expenditure,Energy costs,10-Sep-21,6527533,241.56,PUBLIC LIMITED COMPANY,EDF ENERGY CUSTOMERS PLC,300000020460069
Portsmouth City Council,PCC,Children's and Education Services,Primary Schools,Children's Services and Education,Premises-Related Expenditure,Energy costs,10-Sep-21,6527533,"-1,251.64",PUBLIC LIMITED COMPANY,EDF ENERGY CUSTOMERS PLC,300000020460069
Portsmouth City Council,PCC,Children's and Education Services,Primary Schools,Children's Services and Education,Premises-Related Expenditure,Energy costs,10-Sep-21,6527533,"1,251.67",PUBLIC LIMITED COMPANY,EDF ENERGY CUSTOMERS PLC,300000020460069
Portsmouth City Council,PCC,Children's and Education Services,Primary Schools,Children's Services and Education,Premises-Related Expenditure,Energy costs,10-Sep-21,6527533,"1,087.98",PUBLIC LIMITED COMPANY,EDF ENERGY CUSTOMERS PLC,300000020460069
Portsmouth City Council,PCC,Other,Suspense and Capital Schemes,"Housing, Neighbourhood and Building Services",Premises-Related Expenditure,Energy costs,10-Sep-21,6527533,11.2,PUBLIC LIMITED COMPANY,EDF ENERGY CUSTOMERS PLC,300000020460069
Portsmouth City Council,PCC,Children's and Education Services,Primary Schools,Children's Services and Education,Premises-Related Expenditure,Energy costs,10-Sep-21,6527533,"-1,276.72",PUBLIC LIMITED COMPANY,EDF ENERGY CUSTOMERS PLC,300000020460069
Portsmouth City Council,PCC,Children's and Education Services,Primary Schools,Children's Services and Education,Premises-Related Expenditure,Energy costs,10-Sep-21,6527533,"1,276.71",PUBLIC LIMITED COMPANY,EDF ENERGY CUSTOMERS PLC,300000020460069
Portsmouth City Council,PCC,Children's and Education Services,Primary Schools,Children's Services and Education,Premises-Related Expenditure,Energy costs,10-Sep-21,6527533,"1,312.78",PUBLIC LIMITED COMPANY,EDF ENERGY CUSTOMERS PLC,300000020460069
Portsmouth City Council,PCC,Housing Revenue Account,Special Services,"Housing, Neighbourhood and Building Services",Premises-Related Expenditure,Energy costs,10-Sep-21,6527533,-562.26,PUBLIC LIMITED COMPANY,EDF ENERGY CUSTOMERS PLC,300000020460069
Portsmouth City Council,PCC,Other,Suspense and Capital Schemes,Portsmouth International Port,Premises-Related Expenditure,Energy costs,10-Sep-21,6527533,-305.48,PUBLIC LIMITED COMPANY,EDF ENERGY CUSTOMERS PLC,300000020460069
Portsmouth City Council,PCC,Planning Services,Business support,Regeneration,Premises-Related Expenditure,Energy costs,10-Sep-21,6527533,"2,902.07",PUBLIC LIMITED COMPANY,EDF ENERGY CUSTOMERS PLC,300000020460069
Portsmouth City Council,PCC,Cultural and Related Services,Culture and Heritage,"Culture, Leisure & Regulatory Services",Premises-Related Expenditure,Energy costs,10-Sep-21,6527533,"1,451.86",PUBLIC LIMITED COMPANY,EDF ENERGY CUSTOMERS PLC,300000020460069
Portsmouth City Council,PCC,Highways and Transport Services,Parking Services,Regeneration,Premises-Related Expenditure,Energy costs,10-Sep-21,6527533,-966.45,PUBLIC LIMITED COMPANY,EDF ENERGY CUSTOMERS PLC,300000020460069
Portsmouth City Council,PCC,Cultural and Related Services,Library Service,"Culture, Leisure & Regulatory Services",Premises-Related Expenditure,Energy costs,10-Sep-21,6527533,"4,891.65",PUBLIC LIMITED COMPANY,EDF ENERGY CUSTOMERS PLC,300000020460069
Portsmouth City Council,PCC,Housing Revenue Account,Special Services,"Housing, Neighbourhood and Building Services",Premises-Related Expenditure,Energy costs,10-Sep-21,6527533,754.29,PUBLIC LIMITED COMPANY,EDF ENERGY CUSTOMERS PLC,300000020460069
Portsmouth City Council,PCC,Other,Suspense and Capital Schemes,Portsmouth International Port,Premises-Related Expenditure,Energy costs,10-Sep-21,6527533,305.45,PUBLIC LIMITED COMPANY,EDF ENERGY CUSTOMERS PLC,300000020460069
Portsmouth City Council,PCC,Other,Suspense and Capital Schemes,Portsmouth International Port,Premises-Related Expenditure,Energy costs,10-Sep-21,6527533,296.43,PUBLIC LIMITED COMPANY,EDF ENERGY CUSTOMERS PLC,300000020460069
Portsmouth City Council,PCC,Housing Revenue Account,Special Services,"Housing, Neighbourhood and Building Services",Premises-Related Expenditure,Energy costs,10-Sep-21,6527533,"-1,146.61",PUBLIC LIMITED COMPANY,EDF ENERGY CUSTOMERS PLC,300000020460069
Portsmouth City Council,PCC,Highways and Transport Services,Street Lighting (including energy costs),Regeneration,Premises-Related Expenditure,Energy costs,10-Sep-21,6527533,"-24,762.51",PUBLIC LIMITED COMPANY,EDF ENERGY CUSTOMERS PLC,300000020460069
Portsmouth City Council,PCC,Highways and Transport Services,Street Lighting (including energy costs),Regeneration,Premises-Related Expenditure,Energy costs,10-Sep-21,6527533,"23,740.97",PUBLIC LIMITED COMPANY,EDF ENERGY CUSTOMERS PLC,300000020460069
Portsmouth City Council,PCC,Highways and Transport Services,Street Lighting (including energy costs),Regeneration,Premises-Related Expenditure,Energy costs,10-Sep-21,6527533,"26,576.42",PUBLIC LIMITED COMPANY,EDF ENERGY CUSTOMERS PLC,300000020460069
Portsmouth City Council,PCC,Cultural and Related Services,Culture and Heritage,"Culture, Leisure & Regulatory Services",Premises-Related Expenditure,Energy costs,10-Sep-21,6527533,914.3,PUBLIC LIMITED COMPANY,EDF ENERGY CUSTOMERS PLC,300000020460069
Portsmouth City Council,PCC,Children's and Education Services,Primary Schools,Children's Services and Education,Premises-Related Expenditure,Energy costs,10-Sep-21,6527533,"-1,064.84",PUBLIC LIMITED COMPANY,EDF ENERGY CUSTOMERS PLC,300000020460069
Portsmouth City Council,PCC,Cultural and Related Services,Recreation and Sport,"Culture, Leisure & Regulatory Services",Premises-Related Expenditure,Energy costs,10-Sep-21,6527533,"8,878.40",PUBLIC LIMITED COMPANY,EDF ENERGY CUSTOMERS PLC,300000020460069
Portsmouth City Council,PCC,Housing Revenue Account,Supervision and Management,"Housing, Neighbourhood and Building Services",Premises-Related Expenditure,Energy costs,10-Sep-21,6527533,"5,380.53",PUBLIC LIMITED COMPANY,EDF ENERGY CUSTOMERS PLC,300000020460069
Portsmouth City Council,PCC,Children's and Education Services,Primary Schools,Children's Services and Education,Premises-Related Expenditure,Energy costs,10-Sep-21,6527533,"1,064.83",PUBLIC LIMITED COMPANY,EDF ENERGY CUSTOMERS PLC,300000020460069
Portsmouth City Council,PCC,Children's and Education Services,Primary Schools,Children's Services and Education,Premises-Related Expenditure,Energy costs,10-Sep-21,6527533,"1,004.91",PUBLIC LIMITED COMPANY,EDF ENERGY CUSTOMERS PLC,300000020460069
Portsmouth City Council,PCC,Cultural and Related Services,Culture and Heritage,"Culture, Leisure & Regulatory Services",Premises-Related Expenditure,Energy costs,10-Sep-21,6527533,"-1,440.84",PUBLIC LIMITED COMPANY,EDF ENERGY CUSTOMERS PLC,300000020460069
Portsmouth City Council,PCC,Cultural and Related Services,Culture and Heritage,"Culture, Leisure & Regulatory Services",Premises-Related Expenditure,Energy costs,10-Sep-21,6527533,"1,440.40",PUBLIC LIMITED COMPANY,EDF ENERGY CUSTOMERS PLC,300000020460069
Portsmouth City Council,PCC,Cultural and Related Services,Culture and Heritage,"Culture, Leisure & Regulatory Services",Premises-Related Expenditure,Energy costs,10-Sep-21,6527533,-285.53,PUBLIC LIMITED COMPANY,EDF ENERGY CUSTOMERS PLC,300000020460069
Portsmouth City Council,PCC,Cultural and Related Services,Culture and Heritage,"Culture, Leisure & Regulatory Services",Premises-Related Expenditure,Energy costs,10-Sep-21,6527533,285.56,PUBLIC LIMITED COMPANY,EDF ENERGY CUSTOMERS PLC,300000020460069
Portsmouth City Council,PCC,Cultural and Related Services,Culture and Heritage,"Culture, Leisure & Regulatory Services",Premises-Related Expenditure,Energy costs,10-Sep-21,6527533,252.61,PUBLIC LIMITED COMPANY,EDF ENERGY CUSTOMERS PLC,300000020460069
Portsmouth City Council,PCC,Children's and Education Services,Primary Schools,Children's Services and Education,Premises-Related Expenditure,Energy costs,10-Sep-21,6527533,"-1,910.05",PUBLIC LIMITED COMPANY,EDF ENERGY CUSTOMERS PLC,300000020460069
Portsmouth City Council,PCC,Children's and Education Services,Primary Schools,Children's Services and Education,Premises-Related Expenditure,Energy costs,10-Sep-21,6527533,"1,910.02",PUBLIC LIMITED COMPANY,EDF ENERGY CUSTOMERS PLC,300000020460069
Portsmouth City Council,PCC,Children's and Education Services,Primary Schools,Children's Services and Education,Premises-Related Expenditure,Energy costs,10-Sep-21,6527533,"1,823.68",PUBLIC LIMITED COMPANY,EDF ENERGY CUSTOMERS PLC,300000020460069
Portsmouth City Council,PCC,Housing Revenue Account,Special Services,"Housing, Neighbourhood and Building Services",Premises-Related Expenditure,Energy costs,10-Sep-21,6527533,598.15,PUBLIC LIMITED COMPANY,EDF ENERGY CUSTOMERS PLC,300000020460069
Portsmouth City Council,PCC,Housing Revenue Account,Supervision and Management,"Housing, Neighbourhood and Building Services",Premises-Related Expenditure,Energy costs,10-Sep-21,6527533,-783.41,PUBLIC LIMITED COMPANY,EDF ENERGY CUSTOMERS PLC,300000020460069
Portsmouth City Council,PCC,Housing Revenue Account,Supervision and Management,"Housing, Neighbourhood and Building Services",Premises-Related Expenditure,Energy costs,10-Sep-21,6527533,783.45,PUBLIC LIMITED COMPANY,EDF ENERGY CUSTOMERS PLC,300000020460069
Portsmouth City Council,PCC,Adult Social Care,Learning Disability Support Adults (18 - 64),Adult Services,Premises-Related Expenditure,Energy costs,10-Sep-21,6527533,457.04,PUBLIC LIMITED COMPANY,EDF ENERGY CUSTOMERS PLC,300000020460069
Portsmouth City Council,PCC,Adult Social Care,Learning Disability Support Adults (18 - 64),Adult Services,Premises-Related Expenditure,Energy costs,10-Sep-21,6527533,479.43,PUBLIC LIMITED COMPANY,EDF ENERGY CUSTOMERS PLC,300000020460069
Portsmouth City Council,PCC,Planning Services,Business support,Regeneration,Premises-Related Expenditure,Energy costs,10-Sep-21,6527533,"-2,525.36",PUBLIC LIMITED COMPANY,EDF ENERGY CUSTOMERS PLC,300000020460069
Portsmouth City Council,PCC,Planning Services,Business support,Regeneration,Premises-Related Expenditure,Energy costs,10-Sep-21,6527533,"2,525.38",PUBLIC LIMITED COMPANY,EDF ENERGY CUSTOMERS PLC,300000020460069
Portsmouth City Council,PCC,Planning Services,Business support,Regeneration,Premises-Related Expenditure,Energy costs,10-Sep-21,6527533,132.27,PUBLIC LIMITED COMPANY,EDF ENERGY CUSTOMERS PLC,300000020460069
Portsmouth City Council,PCC,Adult Social Care,Learning Disability Support Adults (18 - 64),Adult Services,Premises-Related Expenditure,Energy costs,10-Sep-21,6527533,"1,461.99",PUBLIC LIMITED COMPANY,EDF ENERGY CUSTOMERS PLC,300000020460069
Portsmouth City Council,PCC,Housing Revenue Account,Supervision and Management,"Housing, Neighbourhood and Building Services",Premises-Related Expenditure,Energy costs,10-Sep-21,6527533,"5,346.72",PUBLIC LIMITED COMPANY,EDF ENERGY CUSTOMERS PLC,300000020460069
Portsmouth City Council,PCC,Planning Services,Business support,Regeneration,Premises-Related Expenditure,Energy costs,10-Sep-21,6527533,130.9,PUBLIC LIMITED COMPANY,EDF ENERGY CUSTOMERS PLC,300000020460069
Portsmouth City Council,PCC,Adult Social Care,Social Care Activities,Adult Services,Third Party Payments,Other establishments,01-Sep-21,6526036,"5,000.00",SUPPLIER,AGINCARE UK,300000020481869
Portsmouth City Council,PCC,Adult Social Care,Physical Support Older People (85+),Adult Services,Third Party Payments,Other establishments,01-Sep-21,6526036,"3,982.12",SUPPLIER,AGINCARE UK,300000020481869
Portsmouth City Council,PCC,Adult Social Care,Physical Support Older People (85+),Adult Services,Third Party Payments,Other establishments,01-Sep-21,6526059,"1,118.88",SUPPLIER,AGINCARE UK,300000020481869
Portsmouth City Council,PCC,Adult Social Care,Social Support - Support for Carer,Adult Services,Third Party Payments,Other establishments,01-Sep-21,6526059,122.24,SUPPLIER,AGINCARE UK,300000020481869
Portsmouth City Council,PCC,Adult Social Care,Physical Support Older People (85+),Adult Services,Third Party Payments,Other establishments,01-Sep-21,6526059,799.2,SUPPLIER,AGINCARE UK,300000020481869
Portsmouth City Council,PCC,Adult Social Care,Physical Support Older People (85+),Adult Services,Third Party Payments,Other establishments,01-Sep-21,6526059,799.2,SUPPLIER,AGINCARE UK,300000020481869
Portsmouth City Council,PCC,Adult Social Care,Social Care Activities,Adult Services,Third Party Payments,Other establishments,01-Sep-21,6526059,266.4,SUPPLIER,AGINCARE UK,300000020481869
Portsmouth City Council,PCC,Adult Social Care,Physical Support Older People (85+),Adult Services,Third Party Payments,Other establishments,01-Sep-21,6526059,22.2,SUPPLIER,AGINCARE UK,300000020481869
Portsmouth City Council,PCC,Adult Social Care,Physical Support Older People (85+),Adult Services,Third Party Payments,Other establishments,01-Sep-21,6526059,88.8,SUPPLIER,AGINCARE UK,300000020481869
Portsmouth City Council,PCC,Adult Social Care,Social Support - Support for Carer,Adult Services,Third Party Payments,Other establishments,01-Sep-21,6526059,76.4,SUPPLIER,AGINCARE UK,300000020481869
Portsmouth City Council,PCC,Adult Social Care,Social Care Activities,Adult Services,Third Party Payments,Other establishments,01-Sep-21,6526059,266.4,SUPPLIER,AGINCARE UK,300000020481869
Portsmouth City Council,PCC,Adult Social Care,Social Care Activities,Adult Services,Third Party Payments,Other establishments,01-Sep-21,6526059,159.84,SUPPLIER,AGINCARE UK,300000020481869
Portsmouth City Council,PCC,Adult Social Care,Social Care Activities,Adult Services,Third Party Payments,Other establishments,01-Sep-21,6526059,159.84,SUPPLIER,AGINCARE UK,300000020481869
Portsmouth City Council,PCC,Adult Social Care,Social Care Activities,Adult Services,Third Party Payments,Other establishments,01-Sep-21,6526059,439.56,SUPPLIER,AGINCARE UK,300000020481869
Portsmouth City Council,PCC,Adult Social Care,Social Care Activities,Adult Services,Third Party Payments,Other establishments,01-Sep-21,6526059,439.56,SUPPLIER,AGINCARE UK,300000020481869
Portsmouth City Council,PCC,Adult Social Care,Physical Support Older People (85+),Adult Services,Third Party Payments,Other establishments,01-Sep-21,6526059,359.64,SUPPLIER,AGINCARE UK,300000020481869
Portsmouth City Council,PCC,Adult Social Care,Physical Support Older People (85+),Adult Services,Third Party Payments,Other establishments,01-Sep-21,6526059,497.28,SUPPLIER,AGINCARE UK,300000020481869
Portsmouth City Council,PCC,Adult Social Care,Physical Support Older People (85+),Adult Services,Third Party Payments,Other establishments,01-Sep-21,6526059,248.64,SUPPLIER,AGINCARE UK,300000020481869
Portsmouth City Council,PCC,Adult Social Care,Social Support - Support for Carer,Adult Services,Third Party Payments,Other establishments,01-Sep-21,6526059,366.72,SUPPLIER,AGINCARE UK,300000020481869
Portsmouth City Council,PCC,Adult Social Care,Physical Support Older People (85+),Adult Services,Third Party Payments,Other establishments,01-Sep-21,6526059,497.28,SUPPLIER,AGINCARE UK,300000020481869
Portsmouth City Council,PCC,Adult Social Care,Physical Support Older People (85+),Adult Services,Third Party Payments,Other establishments,01-Sep-21,6526059,745.92,SUPPLIER,AGINCARE UK,300000020481869
Portsmouth City Council,PCC,Adult Social Care,Physical Support Older People (85+),Adult Services,Third Party Payments,Other establishments,01-Sep-21,6526059,39.96,SUPPLIER,AGINCARE UK,300000020481869
Portsmouth City Council,PCC,Adult Social Care,Physical Support Older People (85+),Adult Services,Third Party Payments,Other establishments,01-Sep-21,6526059,954.6,SUPPLIER,AGINCARE UK,300000020481869
Portsmouth City Council,PCC,Adult Social Care,Physical Support Older People (85+),Adult Services,Third Party Payments,Other establishments,01-Sep-21,6526059,954.6,SUPPLIER,AGINCARE UK,300000020481869
Portsmouth City Council,PCC,Adult Social Care,Physical Support Adults (18 - 64),Adult Services,Third Party Payments,Other establishments,01-Sep-21,6526059,914.64,SUPPLIER,AGINCARE UK,300000020481869
Portsmouth City Council,PCC,Adult Social Care,Physical Support Adults (18 - 64),Adult Services,Third Party Payments,Other establishments,01-Sep-21,6526059,914.64,SUPPLIER,AGINCARE UK,300000020481869
Portsmouth City Council,PCC,Adult Social Care,Social Care Activities,Adult Services,Third Party Payments,Other establishments,01-Sep-21,6526059,466.2,SUPPLIER,AGINCARE UK,300000020481869
Portsmouth City Council,PCC,Adult Social Care,Social Care Activities,Adult Services,Third Party Payments,Other establishments,01-Sep-21,6526059,"1,864.80",SUPPLIER,AGINCARE UK,300000020481869
Portsmouth City Council,PCC,Adult Social Care,Social Care Activities,Adult Services,Third Party Payments,Other establishments,01-Sep-21,6526059,"1,873.68",SUPPLIER,AGINCARE UK,300000020481869
Portsmouth City Council,PCC,Adult Social Care,Physical Support Older People (85+),Adult Services,Third Party Payments,Other establishments,01-Sep-21,6526059,"1,243.20",SUPPLIER,AGINCARE UK,300000020481869
Portsmouth City Council,PCC,Adult Social Care,Physical Support Older People (85+),Adult Services,Third Party Payments,Other establishments,01-Sep-21,6526059,"1,243.20",SUPPLIER,AGINCARE UK,300000020481869
Portsmouth City Council,PCC,Adult Social Care,Physical Support Older People (85+),Adult Services,Third Party Payments,Other establishments,01-Sep-21,6526059,"1,118.88",SUPPLIER,AGINCARE UK,300000020481869
Portsmouth City Council,PCC,Adult Social Care,Social Care Activities,Adult Services,Third Party Payments,Other establishments,01-Sep-21,6526059,843.6,SUPPLIER,AGINCARE UK,300000020481869
Portsmouth City Council,PCC,Adult Social Care,Physical Support Older People (85+),Adult Services,Third Party Payments,Other establishments,01-Sep-21,6526059,497.28,SUPPLIER,AGINCARE UK,300000020481869
Portsmouth City Council,PCC,Adult Social Care,Physical Support Older People (85+),Adult Services,Third Party Payments,Other establishments,01-Sep-21,6526059,497.28,SUPPLIER,AGINCARE UK,300000020481869
Portsmouth City Council,PCC,Adult Social Care,Physical Support Older People (85+),Adult Services,Third Party Payments,Other establishments,01-Sep-21,6526059,452.88,SUPPLIER,AGINCARE UK,300000020481869
Portsmouth City Council,PCC,Adult Social Care,Physical Support Older People (85+),Adult Services,Third Party Payments,Other establishments,01-Sep-21,6526059,284.16,SUPPLIER,AGINCARE UK,300000020481869
Portsmouth City Council,PCC,Adult Social Care,Social Care Activities,Adult Services,Third Party Payments,Other establishments,01-Sep-21,6526059,182.04,SUPPLIER,AGINCARE UK,300000020481869
Portsmouth City Council,PCC,Adult Social Care,Social Care Activities,Adult Services,Third Party Payments,Other establishments,01-Sep-21,6526059,266.4,SUPPLIER,AGINCARE UK,300000020481869
Portsmouth City Council,PCC,Adult Social Care,Social Care Activities,Adult Services,Third Party Payments,Other establishments,01-Sep-21,6526059,306.36,SUPPLIER,AGINCARE UK,300000020481869
Portsmouth City Council,PCC,Adult Social Care,Social Support - Support for Carer,Adult Services,Third Party Payments,Other establishments,01-Sep-21,6526059,53.48,SUPPLIER,AGINCARE UK,300000020481869
Portsmouth City Council,PCC,Housing Revenue Account,"Rents, Rates, Taxes and Other Charges","Housing, Neighbourhood and Building Services",Premises-Related Expenditure,Rates,24-Sep-21,6530242,143,OTHER LOCAL AUTHORITY,HAVANT BOROUGH COUNCIL,300000020457057
Portsmouth City Council,PCC,Housing Revenue Account,"Rents, Rates, Taxes and Other Charges","Housing, Neighbourhood and Building Services",Premises-Related Expenditure,Rates,24-Sep-21,6530242,133,OTHER LOCAL AUTHORITY,HAVANT BOROUGH COUNCIL,300000020457057
Portsmouth City Council,PCC,Adult Social Care,Mental Health Support Adults (18 - 64),Adult Services,Third Party Payments,Other establishments,15-Sep-21,6528505,929.07,SUPPLIER,TWO SAINTS LTD,300000020462955
Portsmouth City Council,PCC,Adult Social Care,Mental Health Support Adults (18 - 64),Adult Services,Third Party Payments,Other establishments,15-Sep-21,6528505,"1,870.76",SUPPLIER,TWO SAINTS LTD,300000020462955
Portsmouth City Council,PCC,Adult Social Care,Mental Health Support Adults (18 - 64),Adult Services,Third Party Payments,Other establishments,15-Sep-21,6528505,"1,870.76",SUPPLIER,TWO SAINTS LTD,300000020462955
Portsmouth City Council,PCC,Adult Social Care,Mental Health Support Adults (18 - 64),Adult Services,Third Party Payments,Other establishments,15-Sep-21,6528505,"1,870.76",SUPPLIER,TWO SAINTS LTD,300000020462955
Portsmouth City Council,PCC,Adult Social Care,Mental Health Support Adults (18 - 64),Adult Services,Third Party Payments,Other establishments,15-Sep-21,6528505,"1,870.76",SUPPLIER,TWO SAINTS LTD,300000020462955
Portsmouth City Council,PCC,Adult Social Care,Mental Health Support Adults (18 - 64),Adult Services,Third Party Payments,Other establishments,15-Sep-21,6528505,"1,870.76",SUPPLIER,TWO SAINTS LTD,300000020462955
Portsmouth City Council,PCC,Adult Social Care,Mental Health Support Adults (18 - 64),Adult Services,Third Party Payments,Other establishments,15-Sep-21,6528505,"1,870.76",SUPPLIER,TWO SAINTS LTD,300000020462955
Portsmouth City Council,PCC,Adult Social Care,Mental Health Support Adults (18 - 64),Adult Services,Third Party Payments,Other establishments,15-Sep-21,6528505,-200.04,SUPPLIER,TWO SAINTS LTD,300000020462955
Portsmouth City Council,PCC,Adult Social Care,Social Care Activities,Adult Services,Third Party Payments,Other establishments,15-Sep-21,6528505,200.04,SUPPLIER,TWO SAINTS LTD,300000020462955
Portsmouth City Council,PCC,Adult Social Care,Mental Health Support Adults (18 - 64),Adult Services,Third Party Payments,Other establishments,15-Sep-21,6528505,"1,033.54",SUPPLIER,TWO SAINTS LTD,300000020462955
Portsmouth City Council,PCC,Adult Social Care,Mental Health Support Adults (18 - 64),Adult Services,Third Party Payments,Other establishments,15-Sep-21,6528505,"1,033.54",SUPPLIER,TWO SAINTS LTD,300000020462955
Portsmouth City Council,PCC,Adult Social Care,Mental Health Support Adults (18 - 64),Adult Services,Third Party Payments,Other establishments,15-Sep-21,6528505,"1,033.54",SUPPLIER,TWO SAINTS LTD,300000020462955
Portsmouth City Council,PCC,Adult Social Care,Mental Health Support Adults (18 - 64),Adult Services,Third Party Payments,Other establishments,15-Sep-21,6528505,"1,033.54",SUPPLIER,TWO SAINTS LTD,300000020462955
Portsmouth City Council,PCC,Adult Social Care,Mental Health Support Adults (18 - 64),Adult Services,Third Party Payments,Other establishments,15-Sep-21,6528505,"1,033.54",SUPPLIER,TWO SAINTS LTD,300000020462955
Portsmouth City Council,PCC,Adult Social Care,Mental Health Support Adults (18 - 64),Adult Services,Third Party Payments,Other establishments,15-Sep-21,6528505,"1,033.54",SUPPLIER,TWO SAINTS LTD,300000020462955
Portsmouth City Council,PCC,Adult Social Care,Mental Health Support Adults (18 - 64),Adult Services,Third Party Payments,Other establishments,15-Sep-21,6528505,"1,033.54",SUPPLIER,TWO SAINTS LTD,300000020462955
Portsmouth City Council,PCC,Adult Social Care,Mental Health Support Adults (18 - 64),Adult Services,Third Party Payments,Other establishments,15-Sep-21,6528505,"1,033.54",SUPPLIER,TWO SAINTS LTD,300000020462955
Portsmouth City Council,PCC,Adult Social Care,Mental Health Support Adults (18 - 64),Adult Services,Third Party Payments,Other establishments,15-Sep-21,6528505,"1,033.54",SUPPLIER,TWO SAINTS LTD,300000020462955
Portsmouth City Council,PCC,Adult Social Care,Social Care Activities,Adult Services,Third Party Payments,Other establishments,15-Sep-21,6528505,"4,134.16",SUPPLIER,TWO SAINTS LTD,300000020462955
Portsmouth City Council,PCC,Adult Social Care,Mental Health Support Adults (18 - 64),Adult Services,Third Party Payments,Other establishments,15-Sep-21,6528505,"6,381.04",SUPPLIER,TWO SAINTS LTD,300000020462955
Portsmouth City Council,PCC,Adult Social Care,Mental Health Support Adults (18 - 64),Adult Services,Third Party Payments,Other establishments,15-Sep-21,6528505,"6,381.04",SUPPLIER,TWO SAINTS LTD,300000020462955
Portsmouth City Council,PCC,Adult Social Care,Mental Health Support Adults (18 - 64),Adult Services,Third Party Payments,Other establishments,15-Sep-21,6528505,"6,381.04",SUPPLIER,TWO SAINTS LTD,300000020462955
Portsmouth City Council,PCC,Adult Social Care,Social Care Activities,Adult Services,Third Party Payments,Other establishments,15-Sep-21,6528505,"19,143.12",SUPPLIER,TWO SAINTS LTD,300000020462955
Portsmouth City Council,PCC,Children's and Education Services,Children Looked After,Children's Services and Education,Third Party Payments,Other establishments,13-Sep-21,6527776,-8.57,SUPPLIER,CEDAR HOPE CARE SERVICES LIMITED,300000020476114
Portsmouth City Council,PCC,Children's and Education Services,Children Looked After,Children's Services and Education,Third Party Payments,Other establishments,13-Sep-21,6527776,-1.43,SUPPLIER,CEDAR HOPE CARE SERVICES LIMITED,300000020476114
Portsmouth City Council,PCC,Children's and Education Services,Children Looked After,Children's Services and Education,Third Party Payments,Other establishments,13-Sep-21,6527776,8.27,SUPPLIER,CEDAR HOPE CARE SERVICES LIMITED,300000020476114
Portsmouth City Council,PCC,Children's and Education Services,Children Looked After,Children's Services and Education,Third Party Payments,Other establishments,13-Sep-21,6527776,49.63,SUPPLIER,CEDAR HOPE CARE SERVICES LIMITED,300000020476114
Portsmouth City Council,PCC,Children's and Education Services,Children Looked After,Children's Services and Education,Third Party Payments,Other establishments,13-Sep-21,6527776,57.14,SUPPLIER,CEDAR HOPE CARE SERVICES LIMITED,300000020476114
Portsmouth City Council,PCC,Children's and Education Services,Children Looked After,Children's Services and Education,Third Party Payments,Other establishments,13-Sep-21,6527776,342.86,SUPPLIER,CEDAR HOPE CARE SERVICES LIMITED,300000020476114
Portsmouth City Council,PCC,Children's and Education Services,Children Looked After,Children's Services and Education,Third Party Payments,Other establishments,13-Sep-21,6527776,552,SUPPLIER,CEDAR HOPE CARE SERVICES LIMITED,300000020476114
Portsmouth City Council,PCC,Children's and Education Services,Children Looked After,Children's Services and Education,Third Party Payments,Other establishments,13-Sep-21,6527776,"3,312.00",SUPPLIER,CEDAR HOPE CARE SERVICES LIMITED,300000020476114
Portsmouth City Council,PCC,Children's and Education Services,Children Looked After,Children's Services and Education,Third Party Payments,Other establishments,13-Sep-21,6527776,-8.57,SUPPLIER,CEDAR HOPE CARE SERVICES LIMITED,300000020476114
Portsmouth City Council,PCC,Children's and Education Services,Children Looked After,Children's Services and Education,Third Party Payments,Other establishments,13-Sep-21,6527776,-1.43,SUPPLIER,CEDAR HOPE CARE SERVICES LIMITED,300000020476114
Portsmouth City Council,PCC,Children's and Education Services,Children Looked After,Children's Services and Education,Third Party Payments,Other establishments,13-Sep-21,6527776,8.27,SUPPLIER,CEDAR HOPE CARE SERVICES LIMITED,300000020476114
Portsmouth City Council,PCC,Children's and Education Services,Children Looked After,Children's Services and Education,Third Party Payments,Other establishments,13-Sep-21,6527776,49.63,SUPPLIER,CEDAR HOPE CARE SERVICES LIMITED,300000020476114
Portsmouth City Council,PCC,Children's and Education Services,Children Looked After,Children's Services and Education,Third Party Payments,Other establishments,13-Sep-21,6527776,57.14,SUPPLIER,CEDAR HOPE CARE SERVICES LIMITED,300000020476114
Portsmouth City Council,PCC,Children's and Education Services,Children Looked After,Children's Services and Education,Third Party Payments,Other establishments,13-Sep-21,6527776,342.86,SUPPLIER,CEDAR HOPE CARE SERVICES LIMITED,300000020476114
Portsmouth City Council,PCC,Children's and Education Services,Children Looked After,Children's Services and Education,Third Party Payments,Other establishments,13-Sep-21,6527776,552,SUPPLIER,CEDAR HOPE CARE SERVICES LIMITED,300000020476114
Portsmouth City Council,PCC,Children's and Education Services,Children Looked After,Children's Services and Education,Third Party Payments,Other establishments,13-Sep-21,6527776,"3,312.00",SUPPLIER,CEDAR HOPE CARE SERVICES LIMITED,300000020476114
Portsmouth City Council,PCC,Children's and Education Services,Safeguarding Children and Young Peoples Services,Children's Services and Education,Third Party Payments,Other establishments,07-Sep-21,6526782,-40,SUPPLIER,LILIAN DAVIS GROUP LTD,300000020467263
Portsmouth City Council,PCC,Children's and Education Services,Safeguarding Children and Young Peoples Services,Children's Services and Education,Third Party Payments,Other establishments,07-Sep-21,6526782,-4.29,SUPPLIER,LILIAN DAVIS GROUP LTD,300000020467263
Portsmouth City Council,PCC,Children's and Education Services,Safeguarding Children and Young Peoples Services,Children's Services and Education,Third Party Payments,Other establishments,07-Sep-21,6526782,0.01,SUPPLIER,LILIAN DAVIS GROUP LTD,300000020467263
Portsmouth City Council,PCC,Children's and Education Services,Safeguarding Children and Young Peoples Services,Children's Services and Education,Third Party Payments,Other establishments,07-Sep-21,6526782,32.14,SUPPLIER,LILIAN DAVIS GROUP LTD,300000020467263
Portsmouth City Council,PCC,Children's and Education Services,Safeguarding Children and Young Peoples Services,Children's Services and Education,Third Party Payments,Other establishments,07-Sep-21,6526782,300,SUPPLIER,LILIAN DAVIS GROUP LTD,300000020467263
Portsmouth City Council,PCC,Children's and Education Services,Safeguarding Children and Young Peoples Services,Children's Services and Education,Third Party Payments,Other establishments,07-Sep-21,6526782,182.14,SUPPLIER,LILIAN DAVIS GROUP LTD,300000020467263
Portsmouth City Council,PCC,Children's and Education Services,Safeguarding Children and Young Peoples Services,Children's Services and Education,Third Party Payments,Other establishments,07-Sep-21,6526782,"1,700.00",SUPPLIER,LILIAN DAVIS GROUP LTD,300000020467263
Portsmouth City Council,PCC,Children's and Education Services,Children Looked After,Children's Services and Education,Third Party Payments,Other establishments,13-Sep-21,6527786,598.57,SUPPLIER,FAIRWAYS CARE (UK) LTD,300000020459125
Portsmouth City Council,PCC,Children's and Education Services,Children Looked After,Children's Services and Education,Third Party Payments,Other establishments,13-Sep-21,6527786,"2,992.86",SUPPLIER,FAIRWAYS CARE (UK) LTD,300000020459125
Portsmouth City Council,PCC,Children's and Education Services,Children Looked After,Children's Services and Education,Third Party Payments,Other establishments,13-Sep-21,6527786,"8,380.00",SUPPLIER,FAIRWAYS CARE (UK) LTD,300000020459125
Portsmouth City Council,PCC,Children's and Education Services,Other Children and Family Services,Children's Services and Education,Third Party Payments,Other establishments,06-Sep-21,6526606,-790.5,SUPPLIER,ENABLE ABILITY,300000020465080
Portsmouth City Council,PCC,Children's and Education Services,Other Children and Family Services,Children's Services and Education,Third Party Payments,Other establishments,06-Sep-21,6526606,272,SUPPLIER,ENABLE ABILITY,300000020465080
Portsmouth City Council,PCC,Children's and Education Services,Other Children and Family Services,Children's Services and Education,Third Party Payments,Other establishments,06-Sep-21,6526606,816,SUPPLIER,ENABLE ABILITY,300000020465080
Portsmouth City Council,PCC,Children's and Education Services,Other Children and Family Services,Children's Services and Education,Third Party Payments,Other establishments,06-Sep-21,6526606,-204,SUPPLIER,ENABLE ABILITY,300000020465080
Portsmouth City Council,PCC,Children's and Education Services,Other Children and Family Services,Children's Services and Education,Third Party Payments,Other establishments,06-Sep-21,6526606,408,SUPPLIER,ENABLE ABILITY,300000020465080
Portsmouth City Council,PCC,Children's and Education Services,Children Looked After,Children's Services and Education,Third Party Payments,Other establishments,14-Sep-21,6527974,0.06,SUPPLIER,FOSTERING SOLUTIONS,300000009793967
Portsmouth City Council,PCC,Children's and Education Services,Children Looked After,Children's Services and Education,Third Party Payments,Other establishments,14-Sep-21,6527974,322.02,SUPPLIER,FOSTERING SOLUTIONS,300000009793967
Portsmouth City Council,PCC,Children's and Education Services,Children Looked After,Children's Services and Education,Third Party Payments,Other establishments,14-Sep-21,6527974,"3,005.48",SUPPLIER,FOSTERING SOLUTIONS,300000009793967
Portsmouth City Council,PCC,Children's and Education Services,Safeguarding Children and Young Peoples Services,Children's Services and Education,Third Party Payments,Other establishments,14-Sep-21,6527974,-1.2,SUPPLIER,FOSTERING SOLUTIONS,300000009793967
Portsmouth City Council,PCC,Children's and Education Services,Safeguarding Children and Young Peoples Services,Children's Services and Education,Third Party Payments,Other establishments,14-Sep-21,6527974,193.95,SUPPLIER,FOSTERING SOLUTIONS,300000009793967
Portsmouth City Council,PCC,Children's and Education Services,Safeguarding Children and Young Peoples Services,Children's Services and Education,Third Party Payments,Other establishments,14-Sep-21,6527974,"1,810.16",SUPPLIER,FOSTERING SOLUTIONS,300000009793967
Portsmouth City Council,PCC,Children's and Education Services,Safeguarding Children and Young Peoples Services,Children's Services and Education,Third Party Payments,Other establishments,14-Sep-21,6527974,-0.04,SUPPLIER,FOSTERING SOLUTIONS,300000009793967
Portsmouth City Council,PCC,Children's and Education Services,Safeguarding Children and Young Peoples Services,Children's Services and Education,Third Party Payments,Other establishments,14-Sep-21,6527974,190.71,SUPPLIER,FOSTERING SOLUTIONS,300000009793967
Portsmouth City Council,PCC,Children's and Education Services,Safeguarding Children and Young Peoples Services,Children's Services and Education,Third Party Payments,Other establishments,14-Sep-21,6527974,"1,780.00",SUPPLIER,FOSTERING SOLUTIONS,300000009793967
Portsmouth City Council,PCC,Children's and Education Services,Children Looked After,Children's Services and Education,Third Party Payments,Other establishments,14-Sep-21,6527974,0.77,SUPPLIER,FOSTERING SOLUTIONS,300000009793967
Portsmouth City Council,PCC,Children's and Education Services,Children Looked After,Children's Services and Education,Third Party Payments,Other establishments,14-Sep-21,6527974,305.85,SUPPLIER,FOSTERING SOLUTIONS,300000009793967
Portsmouth City Council,PCC,Children's and Education Services,Children Looked After,Children's Services and Education,Third Party Payments,Other establishments,14-Sep-21,6527974,"2,854.56",SUPPLIER,FOSTERING SOLUTIONS,300000009793967
Portsmouth City Council,PCC,Children's and Education Services,Children Looked After,Children's Services and Education,Third Party Payments,Other establishments,14-Sep-21,6527974,0.02,SUPPLIER,FOSTERING SOLUTIONS,300000009793967
Portsmouth City Council,PCC,Children's and Education Services,Children Looked After,Children's Services and Education,Third Party Payments,Other establishments,14-Sep-21,6527974,305.92,SUPPLIER,FOSTERING SOLUTIONS,300000009793967
Portsmouth City Council,PCC,Children's and Education Services,Children Looked After,Children's Services and Education,Third Party Payments,Other establishments,14-Sep-21,6527974,"2,855.24",SUPPLIER,FOSTERING SOLUTIONS,300000009793967
Portsmouth City Council,PCC,Children's and Education Services,Children Looked After,Children's Services and Education,Third Party Payments,Other establishments,14-Sep-21,6527974,0.06,SUPPLIER,FOSTERING SOLUTIONS,300000009793967
Portsmouth City Council,PCC,Children's and Education Services,Children Looked After,Children's Services and Education,Third Party Payments,Other establishments,14-Sep-21,6527974,322.02,SUPPLIER,FOSTERING SOLUTIONS,300000009793967
Portsmouth City Council,PCC,Children's and Education Services,Children Looked After,Children's Services and Education,Third Party Payments,Other establishments,14-Sep-21,6527974,"3,005.48",SUPPLIER,FOSTERING SOLUTIONS,300000009793967
Portsmouth City Council,PCC,Children's and Education Services,Children Looked After,Children's Services and Education,Third Party Payments,Other establishments,02-Sep-21,6526368,-0.04,SUPPLIER,HORIZON CARE AND EDUCATION GROUP LTD,300000020480667
Portsmouth City Council,PCC,Children's and Education Services,Children Looked After,Children's Services and Education,Third Party Payments,Other establishments,02-Sep-21,6526368,0.04,SUPPLIER,HORIZON CARE AND EDUCATION GROUP LTD,300000020480667
Portsmouth City Council,PCC,Children's and Education Services,Children Looked After,Children's Services and Education,Third Party Payments,Other establishments,02-Sep-21,6526368,0.04,SUPPLIER,HORIZON CARE AND EDUCATION GROUP LTD,300000020480667
Portsmouth City Council,PCC,Children's and Education Services,Children Looked After,Children's Services and Education,Third Party Payments,Other establishments,02-Sep-21,6526368,239.61,SUPPLIER,HORIZON CARE AND EDUCATION GROUP LTD,300000020480667
Portsmouth City Council,PCC,Children's and Education Services,Children Looked After,Children's Services and Education,Third Party Payments,Other establishments,02-Sep-21,6526368,"2,236.32",SUPPLIER,HORIZON CARE AND EDUCATION GROUP LTD,300000020480667
Portsmouth City Council,PCC,Children's and Education Services,Children Looked After,Children's Services and Education,Third Party Payments,Other establishments,02-Sep-21,6526368,0.04,SUPPLIER,HORIZON CARE AND EDUCATION GROUP LTD,300000020480667
Portsmouth City Council,PCC,Children's and Education Services,Children Looked After,Children's Services and Education,Third Party Payments,Other establishments,02-Sep-21,6526368,298.29,SUPPLIER,HORIZON CARE AND EDUCATION GROUP LTD,300000020480667
Portsmouth City Council,PCC,Children's and Education Services,Children Looked After,Children's Services and Education,Third Party Payments,Other establishments,02-Sep-21,6526368,"2,784.00",SUPPLIER,HORIZON CARE AND EDUCATION GROUP LTD,300000020480667
Portsmouth City Council,PCC,Children's and Education Services,Children Looked After,Children's Services and Education,Third Party Payments,Other establishments,02-Sep-21,6526368,0.04,SUPPLIER,HORIZON CARE AND EDUCATION GROUP LTD,300000020480667
Portsmouth City Council,PCC,Children's and Education Services,Children Looked After,Children's Services and Education,Third Party Payments,Other establishments,02-Sep-21,6526368,298.29,SUPPLIER,HORIZON CARE AND EDUCATION GROUP LTD,300000020480667
Portsmouth City Council,PCC,Children's and Education Services,Children Looked After,Children's Services and Education,Third Party Payments,Other establishments,02-Sep-21,6526368,"2,784.00",SUPPLIER,HORIZON CARE AND EDUCATION GROUP LTD,300000020480667
Portsmouth City Council,PCC,Children's and Education Services,Children Looked After,Children's Services and Education,Third Party Payments,Other establishments,02-Sep-21,6526368,2.45,SUPPLIER,HORIZON CARE AND EDUCATION GROUP LTD,300000020480667
Portsmouth City Council,PCC,Children's and Education Services,Children Looked After,Children's Services and Education,Third Party Payments,Other establishments,02-Sep-21,6526368,297.86,SUPPLIER,HORIZON CARE AND EDUCATION GROUP LTD,300000020480667
Portsmouth City Council,PCC,Children's and Education Services,Children Looked After,Children's Services and Education,Third Party Payments,Other establishments,02-Sep-21,6526368,"1,390.00",SUPPLIER,HORIZON CARE AND EDUCATION GROUP LTD,300000020480667
Portsmouth City Council,PCC,Children's and Education Services,Safeguarding Children and Young Peoples Services,Children's Services and Education,Third Party Payments,Other establishments,02-Sep-21,6526368,0.04,SUPPLIER,HORIZON CARE AND EDUCATION GROUP LTD,300000020480667
Portsmouth City Council,PCC,Children's and Education Services,Safeguarding Children and Young Peoples Services,Children's Services and Education,Third Party Payments,Other establishments,02-Sep-21,6526368,240.6,SUPPLIER,HORIZON CARE AND EDUCATION GROUP LTD,300000020480667
Portsmouth City Council,PCC,Children's and Education Services,Safeguarding Children and Young Peoples Services,Children's Services and Education,Third Party Payments,Other establishments,02-Sep-21,6526368,"2,245.56",SUPPLIER,HORIZON CARE AND EDUCATION GROUP LTD,300000020480667
Portsmouth City Council,PCC,Children's and Education Services,Safeguarding Children and Young Peoples Services,Children's Services and Education,Third Party Payments,Other establishments,02-Sep-21,6526368,0.04,SUPPLIER,HORIZON CARE AND EDUCATION GROUP LTD,300000020480667
Portsmouth City Council,PCC,Children's and Education Services,Safeguarding Children and Young Peoples Services,Children's Services and Education,Third Party Payments,Other establishments,02-Sep-21,6526368,240.6,SUPPLIER,HORIZON CARE AND EDUCATION GROUP LTD,300000020480667
Portsmouth City Council,PCC,Children's and Education Services,Safeguarding Children and Young Peoples Services,Children's Services and Education,Third Party Payments,Other establishments,02-Sep-21,6526368,"2,245.56",SUPPLIER,HORIZON CARE AND EDUCATION GROUP LTD,300000020480667
Portsmouth City Council,PCC,Children's and Education Services,Children Looked After,Children's Services and Education,Third Party Payments,Other establishments,02-Sep-21,6526368,0.04,SUPPLIER,HORIZON CARE AND EDUCATION GROUP LTD,300000020480667
Portsmouth City Council,PCC,Children's and Education Services,Children Looked After,Children's Services and Education,Third Party Payments,Other establishments,02-Sep-21,6526368,298.29,SUPPLIER,HORIZON CARE AND EDUCATION GROUP LTD,300000020480667
Portsmouth City Council,PCC,Children's and Education Services,Children Looked After,Children's Services and Education,Third Party Payments,Other establishments,02-Sep-21,6526368,"2,784.00",SUPPLIER,HORIZON CARE AND EDUCATION GROUP LTD,300000020480667
Portsmouth City Council,PCC,Housing Services,Private Sector Housing Renewal,"Housing, Neighbourhood and Building Services",Income,Other grants reimbursements and contributions,01-Sep-21,6525866,"-1,164.50",LIMITED COMPANY,LIFTECH SYSTEMS (SE) LIMITED,300000020461913
Portsmouth City Council,PCC,Other,Suspense and Capital Schemes,Capital - Housing General Fund,Capital Charges,REFCUS,01-Sep-21,6525866,"1,397.40",LIMITED COMPANY,LIFTECH SYSTEMS (SE) LIMITED,300000020461913
Portsmouth City Council,PCC,Other,Suspense and Capital Schemes,Capital - Housing General Fund,Capital Charges,REFCUS,01-Sep-21,6525866,"11,645.00",LIMITED COMPANY,LIFTECH SYSTEMS (SE) LIMITED,300000020461913
Portsmouth City Council,PCC,Adult Social Care,Physical Support Adults (18 - 64),Adult Services,Third Party Payments,Other establishments,07-Sep-21,6526744,"-6,182.40",SUPPLIER,DAVID HOWARD LIMITED,300000020479591
Portsmouth City Council,PCC,Adult Social Care,Physical Support Adults (18 - 64),Adult Services,Third Party Payments,Other establishments,07-Sep-21,6526744,"-2,204.91",SUPPLIER,DAVID HOWARD LIMITED,300000020479591
Portsmouth City Council,PCC,Adult Social Care,Physical Support Adults (18 - 64),Adult Services,Third Party Payments,Other establishments,07-Sep-21,6526744,"-1,878.04",SUPPLIER,DAVID HOWARD LIMITED,300000020479591
Portsmouth City Council,PCC,Adult Social Care,Physical Support Adults (18 - 64),Adult Services,Third Party Payments,Other establishments,07-Sep-21,6526744,"-1,015.76",SUPPLIER,DAVID HOWARD LIMITED,300000020479591
Portsmouth City Council,PCC,Adult Social Care,Physical Support Adults (18 - 64),Adult Services,Third Party Payments,Other establishments,07-Sep-21,6526744,"-1,006.09",SUPPLIER,DAVID HOWARD LIMITED,300000020479591
Portsmouth City Council,PCC,Adult Social Care,Physical Support Adults (18 - 64),Adult Services,Third Party Payments,Other establishments,07-Sep-21,6526744,-224,SUPPLIER,DAVID HOWARD LIMITED,300000020479591
Portsmouth City Council,PCC,Adult Social Care,Physical Support Adults (18 - 64),Adult Services,Third Party Payments,Other establishments,07-Sep-21,6526744,-48,SUPPLIER,DAVID HOWARD LIMITED,300000020479591
Portsmouth City Council,PCC,Adult Social Care,Physical Support Adults (18 - 64),Adult Services,Third Party Payments,Other establishments,07-Sep-21,6526744,36,SUPPLIER,DAVID HOWARD LIMITED,300000020479591
Portsmouth City Council,PCC,Adult Social Care,Physical Support Adults (18 - 64),Adult Services,Third Party Payments,Other establishments,07-Sep-21,6526744,104,SUPPLIER,DAVID HOWARD LIMITED,300000020479591
Portsmouth City Council,PCC,Adult Social Care,Physical Support Adults (18 - 64),Adult Services,Third Party Payments,Other establishments,07-Sep-21,6526744,224,SUPPLIER,DAVID HOWARD LIMITED,300000020479591
Portsmouth City Council,PCC,Adult Social Care,Physical Support Adults (18 - 64),Adult Services,Third Party Payments,Other establishments,07-Sep-21,6526744,224,SUPPLIER,DAVID HOWARD LIMITED,300000020479591
Portsmouth City Council,PCC,Adult Social Care,Physical Support Adults (18 - 64),Adult Services,Third Party Payments,Other establishments,07-Sep-21,6526744,224,SUPPLIER,DAVID HOWARD LIMITED,300000020479591
Portsmouth City Council,PCC,Adult Social Care,Physical Support Adults (18 - 64),Adult Services,Third Party Payments,Other establishments,07-Sep-21,6526744,"1,102.56",SUPPLIER,DAVID HOWARD LIMITED,300000020479591
Portsmouth City Council,PCC,Adult Social Care,Physical Support Adults (18 - 64),Adult Services,Third Party Payments,Other establishments,07-Sep-21,6526744,"2,058.12",SUPPLIER,DAVID HOWARD LIMITED,300000020479591
Portsmouth City Council,PCC,Adult Social Care,Social Care Activities,Adult Services,Third Party Payments,Other establishments,07-Sep-21,6526762,"-4,012.77",SUPPLIER,DIRECT PAYMENTS - CHC,300000020469755
Portsmouth City Council,PCC,Adult Social Care,Social Support - Support for Carer,Adult Services,Third Party Payments,Other establishments,07-Sep-21,6526763,-366.72,SUPPLIER,DIRECT PAYMENTS - CARERS,300000020469761
Portsmouth City Council,PCC,Adult Social Care,Social Support - Support for Carer,Adult Services,Third Party Payments,Other establishments,07-Sep-21,6526763,-196.46,SUPPLIER,DIRECT PAYMENTS - CARERS,300000020469761
Portsmouth City Council,PCC,Adult Social Care,Social Support - Support for Carer,Adult Services,Third Party Payments,Other establishments,07-Sep-21,6526763,235.75,SUPPLIER,DIRECT PAYMENTS - CARERS,300000020469761
Portsmouth City Council,PCC,Adult Social Care,Social Support - Support for Carer,Adult Services,Third Party Payments,Other establishments,07-Sep-21,6526763,366.72,SUPPLIER,DIRECT PAYMENTS - CARERS,300000020469761
Portsmouth City Council,PCC,Adult Social Care,Social Support - Support for Carer,Adult Services,Third Party Payments,Other establishments,07-Sep-21,6526763,366.72,SUPPLIER,DIRECT PAYMENTS - CARERS,300000020469761
Portsmouth City Council,PCC,Housing Services,Housing Strategy,"Housing, Neighbourhood and Building Services",Income,Other grants reimbursements and contributions,02-Sep-21,6526379,-248.06,SUPPLIER,FINEST GROUP (FARLINGTON) LIMITED,300000020475165
Portsmouth City Council,PCC,Housing Services,Private Sector Housing Renewal,"Housing, Neighbourhood and Building Services",Income,Other grants reimbursements and contributions,02-Sep-21,6526379,-120,SUPPLIER,FINEST GROUP (FARLINGTON) LIMITED,300000020475165
Portsmouth City Council,PCC,Other,Suspense and Capital Schemes,Capital - Housing General Fund,Capital Charges,REFCUS,02-Sep-21,6526379,144,SUPPLIER,FINEST GROUP (FARLINGTON) LIMITED,300000020475165
Portsmouth City Council,PCC,Other,Suspense and Capital Schemes,Capital - Housing General Fund,Capital Charges,REFCUS,02-Sep-21,6526379,297.67,SUPPLIER,FINEST GROUP (FARLINGTON) LIMITED,300000020475165
Portsmouth City Council,PCC,Other,Suspense and Capital Schemes,Capital - Housing General Fund,Capital Charges,REFCUS,02-Sep-21,6526379,"2,976.77",SUPPLIER,FINEST GROUP (FARLINGTON) LIMITED,300000020475165
Portsmouth City Council,PCC,Adult Social Care,Physical Support Older People (85+),Adult Services,Third Party Payments,Other establishments,01-Sep-21,6526040,42,SUPPLIER,COMMUNITY INTEGRATED CARE (CIC),300000020462064
Portsmouth City Council,PCC,Adult Social Care,Learning Disability Support Adults (18 - 64),Adult Services,Third Party Payments,Other establishments,01-Sep-21,6526040,"1,020.00",SUPPLIER,COMMUNITY INTEGRATED CARE (CIC),300000020462064
Portsmouth City Council,PCC,Adult Social Care,Social Care Activities,Adult Services,Third Party Payments,Other establishments,02-Sep-21,6526327,713.26,SUPPLIER,APPLETREE SUPPORT LTD,300000020480869
Portsmouth City Council,PCC,Adult Social Care,Social Care Activities,Adult Services,Third Party Payments,Other establishments,02-Sep-21,6526327,"4,504.80",SUPPLIER,APPLETREE SUPPORT LTD,300000020480869
Portsmouth City Council,PCC,Adult Social Care,Social Care Activities,Adult Services,Third Party Payments,Other establishments,02-Sep-21,6526327,"5,588.06",SUPPLIER,APPLETREE SUPPORT LTD,300000020480869
Portsmouth City Council,PCC,Adult Social Care,Physical Support Older People (85+),Adult Services,Third Party Payments,Other establishments,01-Sep-21,6526028,17.76,SUPPLIER,KARE PLUS HOMECARE LTD T/A KARE PLUS PORTSMOUTH,300000020475578
Portsmouth City Council,PCC,Adult Social Care,Physical Support Older People (85+),Adult Services,Third Party Payments,Other establishments,01-Sep-21,6526028,35.52,SUPPLIER,KARE PLUS HOMECARE LTD T/A KARE PLUS PORTSMOUTH,300000020475578
Portsmouth City Council,PCC,Adult Social Care,Physical Support Adults (18 - 64),Adult Services,Third Party Payments,Other establishments,01-Sep-21,6526028,48.84,SUPPLIER,KARE PLUS HOMECARE LTD T/A KARE PLUS PORTSMOUTH,300000020475578
Portsmouth City Council,PCC,Adult Social Care,Physical Support Adults (18 - 64),Adult Services,Third Party Payments,Other establishments,01-Sep-21,6526028,48.84,SUPPLIER,KARE PLUS HOMECARE LTD T/A KARE PLUS PORTSMOUTH,300000020475578
Portsmouth City Council,PCC,Adult Social Care,Social Care Activities,Adult Services,Third Party Payments,Other establishments,01-Sep-21,6526028,61.12,SUPPLIER,KARE PLUS HOMECARE LTD T/A KARE PLUS PORTSMOUTH,300000020475578
Portsmouth City Council,PCC,Adult Social Care,Physical Support Adults (18 - 64),Adult Services,Third Party Payments,Other establishments,01-Sep-21,6526028,71.04,SUPPLIER,KARE PLUS HOMECARE LTD T/A KARE PLUS PORTSMOUTH,300000020475578
Portsmouth City Council,PCC,Adult Social Care,Social Care Activities,Adult Services,Third Party Payments,Other establishments,01-Sep-21,6526028,79.5,SUPPLIER,KARE PLUS HOMECARE LTD T/A KARE PLUS PORTSMOUTH,300000020475578
Portsmouth City Council,PCC,Adult Social Care,Social Support - Support for Carer,Adult Services,Third Party Payments,Other establishments,01-Sep-21,6526028,91.68,SUPPLIER,KARE PLUS HOMECARE LTD T/A KARE PLUS PORTSMOUTH,300000020475578
Portsmouth City Council,PCC,Adult Social Care,Social Care Activities,Adult Services,Third Party Payments,Other establishments,01-Sep-21,6526028,121.3,SUPPLIER,KARE PLUS HOMECARE LTD T/A KARE PLUS PORTSMOUTH,300000020475578
Portsmouth City Council,PCC,Adult Social Care,Physical Support Older People (85+),Adult Services,Third Party Payments,Other establishments,01-Sep-21,6526028,310.8,SUPPLIER,KARE PLUS HOMECARE LTD T/A KARE PLUS PORTSMOUTH,300000020475578
Portsmouth City Council,PCC,Adult Social Care,Social Support - Support for Carer,Adult Services,Third Party Payments,Other establishments,01-Sep-21,6526028,366.72,SUPPLIER,KARE PLUS HOMECARE LTD T/A KARE PLUS PORTSMOUTH,300000020475578
Portsmouth City Council,PCC,Adult Social Care,Social Support - Support for Carer,Adult Services,Third Party Payments,Other establishments,01-Sep-21,6526028,366.72,SUPPLIER,KARE PLUS HOMECARE LTD T/A KARE PLUS PORTSMOUTH,300000020475578
Portsmouth City Council,PCC,Adult Social Care,Social Support - Support for Carer,Adult Services,Third Party Payments,Other establishments,01-Sep-21,6526028,366.72,SUPPLIER,KARE PLUS HOMECARE LTD T/A KARE PLUS PORTSMOUTH,300000020475578
Portsmouth City Council,PCC,Adult Social Care,Social Support - Support for Carer,Adult Services,Third Party Payments,Other establishments,01-Sep-21,6526028,366.72,SUPPLIER,KARE PLUS HOMECARE LTD T/A KARE PLUS PORTSMOUTH,300000020475578
Portsmouth City Council,PCC,Adult Social Care,Physical Support Older People (85+),Adult Services,Third Party Payments,Other establishments,01-Sep-21,6526028,381.84,SUPPLIER,KARE PLUS HOMECARE LTD T/A KARE PLUS PORTSMOUTH,300000020475578
Portsmouth City Council,PCC,Adult Social Care,Physical Support Older People (85+),Adult Services,Third Party Payments,Other establishments,01-Sep-21,6526028,381.84,SUPPLIER,KARE PLUS HOMECARE LTD T/A KARE PLUS PORTSMOUTH,300000020475578
Portsmouth City Council,PCC,Adult Social Care,Physical Support Older People (85+),Adult Services,Third Party Payments,Other establishments,01-Sep-21,6526028,381.84,SUPPLIER,KARE PLUS HOMECARE LTD T/A KARE PLUS PORTSMOUTH,300000020475578
Portsmouth City Council,PCC,Adult Social Care,Physical Support Older People (85+),Adult Services,Third Party Payments,Other establishments,01-Sep-21,6526028,488.4,SUPPLIER,KARE PLUS HOMECARE LTD T/A KARE PLUS PORTSMOUTH,300000020475578
Portsmouth City Council,PCC,Adult Social Care,Physical Support Older People (85+),Adult Services,Third Party Payments,Other establishments,01-Sep-21,6526028,488.4,SUPPLIER,KARE PLUS HOMECARE LTD T/A KARE PLUS PORTSMOUTH,300000020475578
Portsmouth City Council,PCC,Adult Social Care,Physical Support Adults (18 - 64),Adult Services,Third Party Payments,Other establishments,01-Sep-21,6526028,497.28,SUPPLIER,KARE PLUS HOMECARE LTD T/A KARE PLUS PORTSMOUTH,300000020475578
Portsmouth City Council,PCC,Adult Social Care,Physical Support Adults (18 - 64),Adult Services,Third Party Payments,Other establishments,01-Sep-21,6526028,497.28,SUPPLIER,KARE PLUS HOMECARE LTD T/A KARE PLUS PORTSMOUTH,300000020475578
Portsmouth City Council,PCC,Adult Social Care,Physical Support Older People (85+),Adult Services,Third Party Payments,Other establishments,01-Sep-21,6526028,532.8,SUPPLIER,KARE PLUS HOMECARE LTD T/A KARE PLUS PORTSMOUTH,300000020475578
Portsmouth City Council,PCC,Adult Social Care,Physical Support Older People (85+),Adult Services,Third Party Payments,Other establishments,01-Sep-21,6526028,532.8,SUPPLIER,KARE PLUS HOMECARE LTD T/A KARE PLUS PORTSMOUTH,300000020475578
Portsmouth City Council,PCC,Adult Social Care,Social Care Activities,Adult Services,Third Party Payments,Other establishments,01-Sep-21,6526028,577.2,SUPPLIER,KARE PLUS HOMECARE LTD T/A KARE PLUS PORTSMOUTH,300000020475578
Portsmouth City Council,PCC,Adult Social Care,Social Care Activities,Adult Services,Third Party Payments,Other establishments,01-Sep-21,6526028,577.2,SUPPLIER,KARE PLUS HOMECARE LTD T/A KARE PLUS PORTSMOUTH,300000020475578
Portsmouth City Council,PCC,Adult Social Care,Physical Support Adults (18 - 64),Adult Services,Third Party Payments,Other establishments,01-Sep-21,6526028,621.6,SUPPLIER,KARE PLUS HOMECARE LTD T/A KARE PLUS PORTSMOUTH,300000020475578
Portsmouth City Council,PCC,Adult Social Care,Physical Support Adults (18 - 64),Adult Services,Third Party Payments,Other establishments,01-Sep-21,6526028,621.6,SUPPLIER,KARE PLUS HOMECARE LTD T/A KARE PLUS PORTSMOUTH,300000020475578
Portsmouth City Council,PCC,Adult Social Care,Physical Support Older People (85+),Adult Services,Third Party Payments,Other establishments,01-Sep-21,6526028,745.92,SUPPLIER,KARE PLUS HOMECARE LTD T/A KARE PLUS PORTSMOUTH,300000020475578
Portsmouth City Council,PCC,Adult Social Care,Physical Support Older People (85+),Adult Services,Third Party Payments,Other establishments,01-Sep-21,6526028,745.92,SUPPLIER,KARE PLUS HOMECARE LTD T/A KARE PLUS PORTSMOUTH,300000020475578
Portsmouth City Council,PCC,Adult Social Care,Social Support - Support for Carer,Adult Services,Third Party Payments,Other establishments,01-Sep-21,6526028,855.68,SUPPLIER,KARE PLUS HOMECARE LTD T/A KARE PLUS PORTSMOUTH,300000020475578
Portsmouth City Council,PCC,Adult Social Care,Social Care Activities,Adult Services,Third Party Payments,Other establishments,01-Sep-21,6526028,932.4,SUPPLIER,KARE PLUS HOMECARE LTD T/A KARE PLUS PORTSMOUTH,300000020475578
Portsmouth City Council,PCC,Adult Social Care,Social Care Activities,Adult Services,Third Party Payments,Other establishments,01-Sep-21,6526028,932.4,SUPPLIER,KARE PLUS HOMECARE LTD T/A KARE PLUS PORTSMOUTH,300000020475578
Portsmouth City Council,PCC,Adult Social Care,Physical Support Older People (85+),Adult Services,Third Party Payments,Other establishments,01-Sep-21,6526028,976.8,SUPPLIER,KARE PLUS HOMECARE LTD T/A KARE PLUS PORTSMOUTH,300000020475578
Portsmouth City Council,PCC,Adult Social Care,Physical Support Older People (85+),Adult Services,Third Party Payments,Other establishments,01-Sep-21,6526028,976.8,SUPPLIER,KARE PLUS HOMECARE LTD T/A KARE PLUS PORTSMOUTH,300000020475578
Portsmouth City Council,PCC,Adult Social Care,Physical Support Adults (18 - 64),Adult Services,Third Party Payments,Other establishments,01-Sep-21,6526028,994.56,SUPPLIER,KARE PLUS HOMECARE LTD T/A KARE PLUS PORTSMOUTH,300000020475578
Portsmouth City Council,PCC,Adult Social Care,Physical Support Adults (18 - 64),Adult Services,Third Party Payments,Other establishments,01-Sep-21,6526028,994.56,SUPPLIER,KARE PLUS HOMECARE LTD T/A KARE PLUS PORTSMOUTH,300000020475578
Portsmouth City Council,PCC,Adult Social Care,Physical Support Older People (85+),Adult Services,Third Party Payments,Other establishments,01-Sep-21,6526028,994.56,SUPPLIER,KARE PLUS HOMECARE LTD T/A KARE PLUS PORTSMOUTH,300000020475578
Portsmouth City Council,PCC,Adult Social Care,Physical Support Older People (85+),Adult Services,Third Party Payments,Other establishments,01-Sep-21,6526028,994.56,SUPPLIER,KARE PLUS HOMECARE LTD T/A KARE PLUS PORTSMOUTH,300000020475578
Portsmouth City Council,PCC,Adult Social Care,Physical Support Adults (18 - 64),Adult Services,Third Party Payments,Other establishments,01-Sep-21,6526028,"1,047.84",SUPPLIER,KARE PLUS HOMECARE LTD T/A KARE PLUS PORTSMOUTH,300000020475578
Portsmouth City Council,PCC,Adult Social Care,Physical Support Adults (18 - 64),Adult Services,Third Party Payments,Other establishments,01-Sep-21,6526028,"1,047.84",SUPPLIER,KARE PLUS HOMECARE LTD T/A KARE PLUS PORTSMOUTH,300000020475578
Portsmouth City Council,PCC,Adult Social Care,Physical Support Older People (85+),Adult Services,Third Party Payments,Other establishments,01-Sep-21,6526028,"1,156.95",SUPPLIER,KARE PLUS HOMECARE LTD T/A KARE PLUS PORTSMOUTH,300000020475578
Portsmouth City Council,PCC,Adult Social Care,Physical Support Older People (85+),Adult Services,Third Party Payments,Other establishments,01-Sep-21,6526028,"1,243.20",SUPPLIER,KARE PLUS HOMECARE LTD T/A KARE PLUS PORTSMOUTH,300000020475578
Portsmouth City Council,PCC,Adult Social Care,Physical Support Older People (85+),Adult Services,Third Party Payments,Other establishments,01-Sep-21,6526028,"1,243.20",SUPPLIER,KARE PLUS HOMECARE LTD T/A KARE PLUS PORTSMOUTH,300000020475578
Portsmouth City Council,PCC,Adult Social Care,Learning Disability Support Adults (18 - 64),Adult Services,Third Party Payments,Other establishments,01-Sep-21,6525777,-103.2,SUPPLIER,ROYAL MENCAP SOCIETY,300000020464286
Portsmouth City Council,PCC,Adult Social Care,Learning Disability Support Adults (18 - 64),Adult Services,Third Party Payments,Other establishments,01-Sep-21,6525777,68.8,SUPPLIER,ROYAL MENCAP SOCIETY,300000020464286
Portsmouth City Council,PCC,Adult Social Care,Learning Disability Support Adults (18 - 64),Adult Services,Third Party Payments,Other establishments,01-Sep-21,6525777,137.6,SUPPLIER,ROYAL MENCAP SOCIETY,300000020464286
Portsmouth City Council,PCC,Adult Social Care,Learning Disability Support Adults (18 - 64),Adult Services,Third Party Payments,Other establishments,01-Sep-21,6525777,206.4,SUPPLIER,ROYAL MENCAP SOCIETY,300000020464286
Portsmouth City Council,PCC,Adult Social Care,Learning Disability Support Adults (18 - 64),Adult Services,Third Party Payments,Other establishments,01-Sep-21,6525777,206.4,SUPPLIER,ROYAL MENCAP SOCIETY,300000020464286
Portsmouth City Council,PCC,Adult Social Care,Learning Disability Support Adults (18 - 64),Adult Services,Third Party Payments,Other establishments,01-Sep-21,6525777,206.4,SUPPLIER,ROYAL MENCAP SOCIETY,300000020464286
Portsmouth City Council,PCC,Adult Social Care,Learning Disability Support Adults (18 - 64),Adult Services,Third Party Payments,Other establishments,01-Sep-21,6525777,275.2,SUPPLIER,ROYAL MENCAP SOCIETY,300000020464286
Portsmouth City Council,PCC,Adult Social Care,Learning Disability Support Adults (18 - 64),Adult Services,Third Party Payments,Other establishments,01-Sep-21,6525777,344,SUPPLIER,ROYAL MENCAP SOCIETY,300000020464286
Portsmouth City Council,PCC,Adult Social Care,Learning Disability Support Adults (18 - 64),Adult Services,Third Party Payments,Other establishments,01-Sep-21,6525777,344,SUPPLIER,ROYAL MENCAP SOCIETY,300000020464286
Portsmouth City Council,PCC,Adult Social Care,Learning Disability Support Adults (18 - 64),Adult Services,Third Party Payments,Other establishments,01-Sep-21,6525777,412.8,SUPPLIER,ROYAL MENCAP SOCIETY,300000020464286
Portsmouth City Council,PCC,Adult Social Care,Learning Disability Support Adults (18 - 64),Adult Services,Third Party Payments,Other establishments,01-Sep-21,6525777,412.8,SUPPLIER,ROYAL MENCAP SOCIETY,300000020464286
Portsmouth City Council,PCC,Adult Social Care,Learning Disability Support Adults (18 - 64),Adult Services,Third Party Payments,Other establishments,01-Sep-21,6525777,481.6,SUPPLIER,ROYAL MENCAP SOCIETY,300000020464286
Portsmouth City Council,PCC,Adult Social Care,Learning Disability Support Adults (18 - 64),Adult Services,Third Party Payments,Other establishments,01-Sep-21,6525777,481.6,SUPPLIER,ROYAL MENCAP SOCIETY,300000020464286
Portsmouth City Council,PCC,Adult Social Care,Learning Disability Support Adults (18 - 64),Adult Services,Third Party Payments,Other establishments,01-Sep-21,6525777,550.4,SUPPLIER,ROYAL MENCAP SOCIETY,300000020464286
Portsmouth City Council,PCC,Adult Social Care,Learning Disability Support Adults (18 - 64),Adult Services,Third Party Payments,Other establishments,01-Sep-21,6525777,550.4,SUPPLIER,ROYAL MENCAP SOCIETY,300000020464286
Portsmouth City Council,PCC,Adult Social Care,Learning Disability Support Adults (18 - 64),Adult Services,Third Party Payments,Other establishments,01-Sep-21,6525777,550.4,SUPPLIER,ROYAL MENCAP SOCIETY,300000020464286
Portsmouth City Council,PCC,Adult Social Care,Learning Disability Support Adults (18 - 64),Adult Services,Third Party Payments,Other establishments,01-Sep-21,6525777,619.2,SUPPLIER,ROYAL MENCAP SOCIETY,300000020464286
Portsmouth City Council,PCC,Adult Social Care,Learning Disability Support Adults (18 - 64),Adult Services,Third Party Payments,Other establishments,01-Sep-21,6525777,825.6,SUPPLIER,ROYAL MENCAP SOCIETY,300000020464286
Portsmouth City Council,PCC,Adult Social Care,Learning Disability Support Adults (18 - 64),Adult Services,Third Party Payments,Other establishments,01-Sep-21,6525777,"1,444.80",SUPPLIER,ROYAL MENCAP SOCIETY,300000020464286
Portsmouth City Council,PCC,Adult Social Care,Social Care Activities,Adult Services,Third Party Payments,Other establishments,01-Sep-21,6525777,"2,984.80",SUPPLIER,ROYAL MENCAP SOCIETY,300000020464286
Portsmouth City Council,PCC,Adult Social Care,Social Care Activities,Adult Services,Third Party Payments,Other establishments,01-Sep-21,6525777,"4,382.24",SUPPLIER,ROYAL MENCAP SOCIETY,300000020464286
Portsmouth City Council,PCC,Adult Social Care,Social Care Activities,Adult Services,Third Party Payments,Other establishments,01-Sep-21,6525777,"7,399.52",SUPPLIER,ROYAL MENCAP SOCIETY,300000020464286
Portsmouth City Council,PCC,Adult Social Care,Social Care Activities,Adult Services,Third Party Payments,Other establishments,03-Sep-21,6526487,"1,012.00",SUPPLIER,MIDSHIRES CARE LTD,300000020480050
Portsmouth City Council,PCC,Adult Social Care,Social Care Activities,Adult Services,Third Party Payments,Other establishments,03-Sep-21,6526487,"4,875.64",SUPPLIER,MIDSHIRES CARE LTD,300000020480050
Portsmouth City Council,PCC,Adult Social Care,Social Care Activities,Adult Services,Third Party Payments,Other establishments,02-Sep-21,6526376,620,SUPPLIER,BROOKVALE HEALTHCARE,300000020463496
Portsmouth City Council,PCC,Adult Social Care,Social Care Activities,Adult Services,Third Party Payments,Other establishments,02-Sep-21,6526376,"2,604.00",SUPPLIER,BROOKVALE HEALTHCARE,300000020463496
Portsmouth City Council,PCC,Adult Social Care,Physical Support Older People (85+),Adult Services,Third Party Payments,Other establishments,02-Sep-21,6526376,"2,688.00",SUPPLIER,BROOKVALE HEALTHCARE,300000020463496
Portsmouth City Council,PCC,Adult Social Care,Social Care Activities,Adult Services,Third Party Payments,Other establishments,02-Sep-21,6526376,"5,208.00",SUPPLIER,BROOKVALE HEALTHCARE,300000020463496
Portsmouth City Council,PCC,Adult Social Care,Social Care Activities,Adult Services,Third Party Payments,Other establishments,02-Sep-21,6526376,"5,208.00",SUPPLIER,BROOKVALE HEALTHCARE,300000020463496
Portsmouth City Council,PCC,Adult Social Care,Social Care Activities,Adult Services,Third Party Payments,Other establishments,02-Sep-21,6526376,"5,580.00",SUPPLIER,BROOKVALE HEALTHCARE,300000020463496
Portsmouth City Council,PCC,Adult Social Care,Social Care Activities,Adult Services,Third Party Payments,Other establishments,02-Sep-21,6526376,"8,680.00",SUPPLIER,BROOKVALE HEALTHCARE,300000020463496
Portsmouth City Council,PCC,Adult Social Care,Social Care Activities,Adult Services,Third Party Payments,Other establishments,02-Sep-21,6526376,"10,416.00",SUPPLIER,BROOKVALE HEALTHCARE,300000020463496
Portsmouth City Council,PCC,Adult Social Care,Learning Disability Support Adults (18 - 64),Adult Services,Third Party Payments,Other establishments,03-Sep-21,6526438,"1,387.36",SUPPLIER,SOUTHAMPTON SPECIAL PURPOSE WORKSHOP LTD,300000020462532
Portsmouth City Council,PCC,Adult Social Care,Social Care Activities,Adult Services,Third Party Payments,Other establishments,01-Sep-21,6526087,612,SUPPLIER,SHAFTESBURY CARE GROUP LTD,300000020478154
Portsmouth City Council,PCC,Adult Social Care,Social Care Activities,Adult Services,Third Party Payments,Other establishments,01-Sep-21,6526087,"2,040.00",SUPPLIER,SHAFTESBURY CARE GROUP LTD,300000020478154
Portsmouth City Council,PCC,Children's and Education Services,Other Education and Community Budget,Regeneration,Premises-Related Expenditure,Energy costs,10-Sep-21,6527626,862.89,PUBLIC LIMITED COMPANY,SCOTTISH AND SOUTHERN ENERGY PLC,300000020481543
Portsmouth City Council,PCC,Housing Revenue Account,Special Services,"Housing, Neighbourhood and Building Services",Premises-Related Expenditure,Energy costs,10-Sep-21,6527626,102.69,PUBLIC LIMITED COMPANY,SCOTTISH AND SOUTHERN ENERGY PLC,300000020481543
Portsmouth City Council,PCC,Housing Revenue Account,Special Services,"Housing, Neighbourhood and Building Services",Premises-Related Expenditure,Energy costs,10-Sep-21,6527626,849.17,PUBLIC LIMITED COMPANY,SCOTTISH AND SOUTHERN ENERGY PLC,300000020481543
Portsmouth City Council,PCC,Housing Revenue Account,Special Services,"Housing, Neighbourhood and Building Services",Premises-Related Expenditure,Energy costs,10-Sep-21,6527626,"1,783.29",PUBLIC LIMITED COMPANY,SCOTTISH AND SOUTHERN ENERGY PLC,300000020481543
Portsmouth City Council,PCC,Housing Revenue Account,Special Services,"Housing, Neighbourhood and Building Services",Premises-Related Expenditure,Energy costs,10-Sep-21,6527626,"3,616.53",PUBLIC LIMITED COMPANY,SCOTTISH AND SOUTHERN ENERGY PLC,300000020481543
Portsmouth City Council,PCC,Housing Revenue Account,Special Services,"Housing, Neighbourhood and Building Services",Premises-Related Expenditure,Energy costs,10-Sep-21,6527626,"1,965.29",PUBLIC LIMITED COMPANY,SCOTTISH AND SOUTHERN ENERGY PLC,300000020481543
Portsmouth City Council,PCC,Housing Revenue Account,Special Services,"Housing, Neighbourhood and Building Services",Premises-Related Expenditure,Energy costs,10-Sep-21,6527626,"1,585.04",PUBLIC LIMITED COMPANY,SCOTTISH AND SOUTHERN ENERGY PLC,300000020481543
Portsmouth City Council,PCC,Housing Revenue Account,Special Services,"Housing, Neighbourhood and Building Services",Premises-Related Expenditure,Energy costs,10-Sep-21,6527626,533.09,PUBLIC LIMITED COMPANY,SCOTTISH AND SOUTHERN ENERGY PLC,300000020481543
Portsmouth City Council,PCC,Housing Revenue Account,Supervision and Management,"Housing, Neighbourhood and Building Services",Premises-Related Expenditure,Energy costs,10-Sep-21,6527626,672.3,PUBLIC LIMITED COMPANY,SCOTTISH AND SOUTHERN ENERGY PLC,300000020481543
Portsmouth City Council,PCC,Cultural and Related Services,Library Service,"Culture, Leisure & Regulatory Services",Premises-Related Expenditure,Energy costs,10-Sep-21,6527626,"-1,693.83",PUBLIC LIMITED COMPANY,SCOTTISH AND SOUTHERN ENERGY PLC,300000020481543
Portsmouth City Council,PCC,Cultural and Related Services,Library Service,"Culture, Leisure & Regulatory Services",Premises-Related Expenditure,Energy costs,10-Sep-21,6527626,728.91,PUBLIC LIMITED COMPANY,SCOTTISH AND SOUTHERN ENERGY PLC,300000020481543
Portsmouth City Council,PCC,Cultural and Related Services,Library Service,"Culture, Leisure & Regulatory Services",Premises-Related Expenditure,Energy costs,10-Sep-21,6527626,619.57,PUBLIC LIMITED COMPANY,SCOTTISH AND SOUTHERN ENERGY PLC,300000020481543
Portsmouth City Council,PCC,Planning Services,Economic Development,Regeneration,Premises-Related Expenditure,Energy costs,10-Sep-21,6527626,"1,123.96",PUBLIC LIMITED COMPANY,SCOTTISH AND SOUTHERN ENERGY PLC,300000020481543
Portsmouth City Council,PCC,Children's and Education Services,Family Support Services,Children's Services and Education,Premises-Related Expenditure,Energy costs,10-Sep-21,6527626,506.81,PUBLIC LIMITED COMPANY,SCOTTISH AND SOUTHERN ENERGY PLC,300000020481543
Portsmouth City Council,PCC,Housing Revenue Account,Special Services,"Housing, Neighbourhood and Building Services",Premises-Related Expenditure,Energy costs,10-Sep-21,6527626,340.09,PUBLIC LIMITED COMPANY,SCOTTISH AND SOUTHERN ENERGY PLC,300000020481543
Portsmouth City Council,PCC,Costs below Net Cost of Services,Trading,Regeneration,Premises-Related Expenditure,Energy costs,10-Sep-21,6527626,851.62,PUBLIC LIMITED COMPANY,SCOTTISH AND SOUTHERN ENERGY PLC,300000020481543
Portsmouth City Council,PCC,Highways and Transport Services,"Environment, Safety and Routine Maintenance",Regeneration,Premises-Related Expenditure,Energy costs,10-Sep-21,6527626,826.23,PUBLIC LIMITED COMPANY,SCOTTISH AND SOUTHERN ENERGY PLC,300000020481543
Portsmouth City Council,PCC,Housing Revenue Account,"Rents, Rates, Taxes and Other Charges","Housing, Neighbourhood and Building Services",Premises-Related Expenditure,Energy costs,10-Sep-21,6527626,-435.72,PUBLIC LIMITED COMPANY,SCOTTISH AND SOUTHERN ENERGY PLC,300000020481543
Portsmouth City Council,PCC,Housing Revenue Account,"Rents, Rates, Taxes and Other Charges","Housing, Neighbourhood and Building Services",Premises-Related Expenditure,Energy costs,10-Sep-21,6527626,196.54,PUBLIC LIMITED COMPANY,SCOTTISH AND SOUTHERN ENERGY PLC,300000020481543
Portsmouth City Council,PCC,Cultural and Related Services,Open Spaces,"Culture, Leisure & Regulatory Services",Premises-Related Expenditure,Energy costs,10-Sep-21,6527626,"2,524.14",PUBLIC LIMITED COMPANY,SCOTTISH AND SOUTHERN ENERGY PLC,300000020481543
Portsmouth City Council,PCC,Housing Revenue Account,Special Services,"Housing, Neighbourhood and Building Services",Premises-Related Expenditure,Energy costs,10-Sep-21,6527626,221.96,PUBLIC LIMITED COMPANY,SCOTTISH AND SOUTHERN ENERGY PLC,300000020481543
Portsmouth City Council,PCC,Cultural and Related Services,Open Spaces,"Culture, Leisure & Regulatory Services",Premises-Related Expenditure,Energy costs,10-Sep-21,6527626,"1,950.67",PUBLIC LIMITED COMPANY,SCOTTISH AND SOUTHERN ENERGY PLC,300000020481543
Portsmouth City Council,PCC,Children's and Education Services,Primary Schools,Children's Services and Education,Premises-Related Expenditure,Energy costs,10-Sep-21,6527626,"1,602.36",PUBLIC LIMITED COMPANY,SCOTTISH AND SOUTHERN ENERGY PLC,300000020481543
Portsmouth City Council,PCC,Children's and Education Services,Primary Schools,Children's Services and Education,Premises-Related Expenditure,Energy costs,10-Sep-21,6527626,"1,912.68",PUBLIC LIMITED COMPANY,SCOTTISH AND SOUTHERN ENERGY PLC,300000020481543
Portsmouth City Council,PCC,Housing Revenue Account,Special Services,"Housing, Neighbourhood and Building Services",Premises-Related Expenditure,Energy costs,10-Sep-21,6527626,"-1,000.75",PUBLIC LIMITED COMPANY,SCOTTISH AND SOUTHERN ENERGY PLC,300000020481543
Portsmouth City Council,PCC,Housing Revenue Account,Special Services,"Housing, Neighbourhood and Building Services",Premises-Related Expenditure,Energy costs,10-Sep-21,6527626,"1,000.75",PUBLIC LIMITED COMPANY,SCOTTISH AND SOUTHERN ENERGY PLC,300000020481543
Portsmouth City Council,PCC,Housing Revenue Account,Special Services,"Housing, Neighbourhood and Building Services",Premises-Related Expenditure,Energy costs,10-Sep-21,6527626,"1,165.74",PUBLIC LIMITED COMPANY,SCOTTISH AND SOUTHERN ENERGY PLC,300000020481543
Portsmouth City Council,PCC,Children's and Education Services,Primary Schools,Children's Services and Education,Premises-Related Expenditure,Energy costs,10-Sep-21,6527626,"2,089.18",PUBLIC LIMITED COMPANY,SCOTTISH AND SOUTHERN ENERGY PLC,300000020481543
Portsmouth City Council,PCC,Housing Services,Homelessness,"Housing, Neighbourhood and Building Services",Premises-Related Expenditure,Energy costs,10-Sep-21,6527626,127,PUBLIC LIMITED COMPANY,SCOTTISH AND SOUTHERN ENERGY PLC,300000020481543
Portsmouth City Council,PCC,Housing Revenue Account,Special Services,"Housing, Neighbourhood and Building Services",Premises-Related Expenditure,Energy costs,10-Sep-21,6527626,118.05,PUBLIC LIMITED COMPANY,SCOTTISH AND SOUTHERN ENERGY PLC,300000020481543
Portsmouth City Council,PCC,Housing Revenue Account,Special Services,"Housing, Neighbourhood and Building Services",Premises-Related Expenditure,Energy costs,10-Sep-21,6527626,728.32,PUBLIC LIMITED COMPANY,SCOTTISH AND SOUTHERN ENERGY PLC,300000020481543
Portsmouth City Council,PCC,Housing Revenue Account,Special Services,"Housing, Neighbourhood and Building Services",Premises-Related Expenditure,Energy costs,10-Sep-21,6527626,"3,509.89",PUBLIC LIMITED COMPANY,SCOTTISH AND SOUTHERN ENERGY PLC,300000020481543
Portsmouth City Council,PCC,Housing Revenue Account,Special Services,"Housing, Neighbourhood and Building Services",Premises-Related Expenditure,Energy costs,10-Sep-21,6527626,324.64,PUBLIC LIMITED COMPANY,SCOTTISH AND SOUTHERN ENERGY PLC,300000020481543
Portsmouth City Council,PCC,Housing Revenue Account,Special Services,"Housing, Neighbourhood and Building Services",Premises-Related Expenditure,Energy costs,10-Sep-21,6527626,"-3,994.75",PUBLIC LIMITED COMPANY,SCOTTISH AND SOUTHERN ENERGY PLC,300000020481543
Portsmouth City Council,PCC,Housing Revenue Account,Special Services,"Housing, Neighbourhood and Building Services",Premises-Related Expenditure,Energy costs,10-Sep-21,6527626,85.38,PUBLIC LIMITED COMPANY,SCOTTISH AND SOUTHERN ENERGY PLC,300000020481543
Portsmouth City Council,PCC,Housing Revenue Account,Special Services,"Housing, Neighbourhood and Building Services",Premises-Related Expenditure,Energy costs,10-Sep-21,6527626,76.73,PUBLIC LIMITED COMPANY,SCOTTISH AND SOUTHERN ENERGY PLC,300000020481543
Portsmouth City Council,PCC,Housing Revenue Account,Special Services,"Housing, Neighbourhood and Building Services",Premises-Related Expenditure,Energy costs,10-Sep-21,6527626,"1,931.04",PUBLIC LIMITED COMPANY,SCOTTISH AND SOUTHERN ENERGY PLC,300000020481543
Portsmouth City Council,PCC,Housing Revenue Account,Special Services,"Housing, Neighbourhood and Building Services",Premises-Related Expenditure,Energy costs,10-Sep-21,6527626,702.64,PUBLIC LIMITED COMPANY,SCOTTISH AND SOUTHERN ENERGY PLC,300000020481543
